Workbook

Sheet MENU
A2: Sistema para el reporte de información por parte de
A3: los Jefes de Control Interno al Alcalde Mayor
A5: MENU PRINCIPAL
S9: =IF('ACTUALIZACION DATOS'!K12>0,'ACTUALIZACION DATOS'!K12,"Datos NO Actualizados") -> Transmilenio S.A.
S10: =IF(S9="Datos NO Actualizados","",(IF(AND('ACTUALIZACION DATOS'!K16>0,'ACTUALIZACION DATOS'!Q19>0,'ACTUALIZACION DATOS'!K23>0,'ACTUALIZACION DATOS'!K25>0,'ACTUALIZACION DATOS'!Q25>0),"","Faltan datos por ACTUALIZAR"))) -> 
A11: P R E S E N T A C I Ó N D E I N F O R M E S
A31: SECRETARÍA GENERAL DE LA ALCALDÍA MAYOR DE BOGOTÁ D.C. - OFICINA DE CONTROL INTERNO 2016

Sheet ACTUALIZACION DATOS
A2: Sistema para el reporte de información por parte de
A3: los Jefes de Control Interno al Alcalde Mayor
D10: Sector Administrativo | K10: Movilidad
D12: Entidad | K12: Transmilenio S.A.
D14: Nivel | K14: =IF(ISERROR(INDEX('BD1'!P3:AC50,MATCH(K12,INDIRECT(K10),0),MATCH(K10,'BD1'!P2:AC2,0))),"",INDEX('BD1'!P3:AC50,MATCH(K12,INDIRECT(K10),0),MATCH(K10,'BD1'!P2:AC2,0))) -> Descentralizada / Vinculada
D16: Nombre del Jefe Oficina de Control Interno (o quien haga sus veces ) | K16: Héctor Fabio Rodríguez Devia
D19: Fecha de posesión | K19: 2014-01-08 | P19: Vacante | Q19: NO
P21: En Encargo | Q21: NO
D23: Correo electrónico | K23: hector.rodriguez@transmilenio.gov.co
D25: Teléfono oficina | K25: 2203000 | P25: Extensión | Q25: 1201
D27: Telefono móvil | I27: Telefono movil
A32: SECRETARÍA GENERAL DE LA ALCALDÍA MAYOR DE BOGOTÁ D.C. - OFICINA DE CONTROL INTERNO 2016

Sheet F1
C3: ENTIDAD | E3: =MENU!S9 -> Transmilenio S.A. | K3: VIGENCIA | N3: 2015 | P3: PERIODO REPORTADO | T3: 31 DE DICIEMBRE
C7: EJE_UNO | E7: =IF(ISERROR(INDEX('BD1'!$C$56:$E$56,1,MATCH(C7,'BD1'!$C$55:$E$55,0))),"",(INDEX('BD1'!$C$56:$E$56,1,MATCH(C7,'BD1'!$C$55:$E$55,0)))) -> Una ciudad que supera la segregación y la discriminación
C9: PROGRAMA | D9: Número y nombre del Proyecto de Inversión (En caso de ser entidad del Sector Salud, el proyecto puede equivaler al programa o convenio que desarrolle la Meta Plan a reportar) | E9: Presupuesto definitivo para la Meta del Proyecto de Inversión | F9: Meta - Proyecto de Inversión | H9: GESTIÓN CONTRACTUAL | M9: GESTIÓN PRESUPUESTAL (CIFRAS MILLONES DE PESOS) | R9: GESTIÓN FÍSICA
H10: AVANCE | J10: EJEC / PROG | M10: AVANCE | O10: EJEC / PROG | R10: AVANCE | T10: EJEC / PROG
C11: Fortalecimiento y mejoramiento de la calidad y cobertura de los servicios públicos | D11: 7223. Operación y control del sistema de transporte | F11: Beneficiar Mensualmente 199507 Personas En Condición De Discapacidad Con Una Tarifa Preferencial De Acceso Al Sistema Integrado De Transporte Público. | H11: P | I11: N/A | J11: =IF(ISERROR(IF(I12="","",IF((I12/I11)>1,1,I12/I11))),"",IF(I12="","",IF((I12/I11)>1,1,I12/I11))) ->  | K11: =IF(J11="","",(IF(J11<'BD1'!$C$76,'BD1'!$E$75,IF(J11<'BD1'!$C$77,'BD1'!$E$76,'BD1'!$E$77)))) ->  | M11: P | N11: 10000 | O11: =IF(ISERROR(IF(N12="","",IF((N12/N11)>1,1,N12/N11))),"",IF(N12="","",IF((N12/N11)>1,1,N12/N11))) -> 1 | P11: =IF(O11="","",(IF(O11<'BD1'!$C$76,'BD1'!$E$75,IF(O11<'BD1'!$C$77,'BD1'!$E$76,'BD1'!$E$77)))) -> SATISFACTORIO | R11: P | S11: 199507 | T11: =IF(ISERROR(IF(S12="","",IF((S12/S11)>1,1,S12/S11))),"",IF(S12="","",IF((S12/S11)>1,1,S12/S11))) -> 0.2310545495 | U11: =IF(T11="","",(IF(T11<'BD1'!$C$76,'BD1'!$E$75,IF(T11<'BD1'!$C$77,'BD1'!$E$76,'BD1'!$E$77)))) -> ALERTA
H12: E | I12: N/A | M12: E | N12: 10000 | R12: E | S12: 46097
H13: P | J13: =IF(ISERROR(IF(I14="","",IF((I14/I13)>1,1,I14/I13))),"",IF(I14="","",IF((I14/I13)>1,1,I14/I13))) ->  | K13: =IF(J13="","",(IF(J13<'BD1'!$C$76,'BD1'!$E$75,IF(J13<'BD1'!$C$77,'BD1'!$E$76,'BD1'!$E$77)))) ->  | M13: P | O13: =IF(ISERROR(IF(N14="","",IF((N14/N13)>1,1,N14/N13))),"",IF(N14="","",IF((N14/N13)>1,1,N14/N13))) ->  | P13: =IF(O13="","",(IF(O13<'BD1'!$C$76,'BD1'!$E$75,IF(O13<'BD1'!$C$77,'BD1'!$E$76,'BD1'!$E$77)))) ->  | R13: P | T13: =IF(ISERROR(IF(S14="","",IF((S14/S13)>1,1,S14/S13))),"",IF(S14="","",IF((S14/S13)>1,1,S14/S13))) ->  | U13: =IF(T13="","",(IF(T13<'BD1'!$C$76,'BD1'!$E$75,IF(T13<'BD1'!$C$77,'BD1'!$E$76,'BD1'!$E$77)))) -> 
H14: E | M14: E | R14: E
H15: P | J15: =IF(ISERROR(IF(I16="","",IF((I16/I15)>1,1,I16/I15))),"",IF(I16="","",IF((I16/I15)>1,1,I16/I15))) ->  | K15: =IF(J15="","",(IF(J15<'BD1'!$C$76,'BD1'!$E$75,IF(J15<'BD1'!$C$77,'BD1'!$E$76,'BD1'!$E$77)))) ->  | M15: P | O15: =IF(ISERROR(IF(N16="","",IF((N16/N15)>1,1,N16/N15))),"",IF(N16="","",IF((N16/N15)>1,1,N16/N15))) ->  | P15: =IF(O15="","",(IF(O15<'BD1'!$C$76,'BD1'!$E$75,IF(O15<'BD1'!$C$77,'BD1'!$E$76,'BD1'!$E$77)))) ->  | R15: P | T15: =IF(ISERROR(IF(S16="","",IF((S16/S15)>1,1,S16/S15))),"",IF(S16="","",IF((S16/S15)>1,1,S16/S15))) ->  | U15: =IF(T15="","",(IF(T15<'BD1'!$C$76,'BD1'!$E$75,IF(T15<'BD1'!$C$77,'BD1'!$E$76,'BD1'!$E$77)))) -> 
H16: E | M16: E | R16: E
H17: P | J17: =IF(ISERROR(IF(I18="","",IF((I18/I17)>1,1,I18/I17))),"",IF(I18="","",IF((I18/I17)>1,1,I18/I17))) ->  | K17: =IF(J17="","",(IF(J17<'BD1'!$C$76,'BD1'!$E$75,IF(J17<'BD1'!$C$77,'BD1'!$E$76,'BD1'!$E$77)))) ->  | M17: P | O17: =IF(ISERROR(IF(N18="","",IF((N18/N17)>1,1,N18/N17))),"",IF(N18="","",IF((N18/N17)>1,1,N18/N17))) ->  | P17: =IF(O17="","",(IF(O17<'BD1'!$C$76,'BD1'!$E$75,IF(O17<'BD1'!$C$77,'BD1'!$E$76,'BD1'!$E$77)))) ->  | R17: P | T17: =IF(ISERROR(IF(S18="","",IF((S18/S17)>1,1,S18/S17))),"",IF(S18="","",IF((S18/S17)>1,1,S18/S17))) ->  | U17: =IF(T17="","",(IF(T17<'BD1'!$C$76,'BD1'!$E$75,IF(T17<'BD1'!$C$77,'BD1'!$E$76,'BD1'!$E$77)))) -> 
H18: E | M18: E | R18: E
H19: P | J19: =IF(ISERROR(IF(I20="","",IF((I20/I19)>1,1,I20/I19))),"",IF(I20="","",IF((I20/I19)>1,1,I20/I19))) ->  | K19: =IF(J19="","",(IF(J19<'BD1'!$C$76,'BD1'!$E$75,IF(J19<'BD1'!$C$77,'BD1'!$E$76,'BD1'!$E$77)))) ->  | M19: P | O19: =IF(ISERROR(IF(N20="","",IF((N20/N19)>1,1,N20/N19))),"",IF(N20="","",IF((N20/N19)>1,1,N20/N19))) ->  | P19: =IF(O19="","",(IF(O19<'BD1'!$C$76,'BD1'!$E$75,IF(O19<'BD1'!$C$77,'BD1'!$E$76,'BD1'!$E$77)))) ->  | R19: P | T19: =IF(ISERROR(IF(S20="","",IF((S20/S19)>1,1,S20/S19))),"",IF(S20="","",IF((S20/S19)>1,1,S20/S19))) ->  | U19: =IF(T19="","",(IF(T19<'BD1'!$C$76,'BD1'!$E$75,IF(T19<'BD1'!$C$77,'BD1'!$E$76,'BD1'!$E$77)))) -> 
H20: E | M20: E | R20: E
H21: P | J21: =IF(ISERROR(IF(I22="","",IF((I22/I21)>1,1,I22/I21))),"",IF(I22="","",IF((I22/I21)>1,1,I22/I21))) ->  | K21: =IF(J21="","",(IF(J21<'BD1'!$C$76,'BD1'!$E$75,IF(J21<'BD1'!$C$77,'BD1'!$E$76,'BD1'!$E$77)))) ->  | M21: P | O21: =IF(ISERROR(IF(N22="","",IF((N22/N21)>1,1,N22/N21))),"",IF(N22="","",IF((N22/N21)>1,1,N22/N21))) ->  | P21: =IF(O21="","",(IF(O21<'BD1'!$C$76,'BD1'!$E$75,IF(O21<'BD1'!$C$77,'BD1'!$E$76,'BD1'!$E$77)))) ->  | R21: P | T21: =IF(ISERROR(IF(S22="","",IF((S22/S21)>1,1,S22/S21))),"",IF(S22="","",IF((S22/S21)>1,1,S22/S21))) ->  | U21: =IF(T21="","",(IF(T21<'BD1'!$C$76,'BD1'!$E$75,IF(T21<'BD1'!$C$77,'BD1'!$E$76,'BD1'!$E$77)))) -> 
H22: E | M22: E | R22: E
H23: P | J23: =IF(ISERROR(IF(I24="","",IF((I24/I23)>1,1,I24/I23))),"",IF(I24="","",IF((I24/I23)>1,1,I24/I23))) ->  | K23: =IF(J23="","",(IF(J23<'BD1'!$C$76,'BD1'!$E$75,IF(J23<'BD1'!$C$77,'BD1'!$E$76,'BD1'!$E$77)))) ->  | M23: P | O23: =IF(ISERROR(IF(N24="","",IF((N24/N23)>1,1,N24/N23))),"",IF(N24="","",IF((N24/N23)>1,1,N24/N23))) ->  | P23: =IF(O23="","",(IF(O23<'BD1'!$C$76,'BD1'!$E$75,IF(O23<'BD1'!$C$77,'BD1'!$E$76,'BD1'!$E$77)))) ->  | R23: P | T23: =IF(ISERROR(IF(S24="","",IF((S24/S23)>1,1,S24/S23))),"",IF(S24="","",IF((S24/S23)>1,1,S24/S23))) ->  | U23: =IF(T23="","",(IF(T23<'BD1'!$C$76,'BD1'!$E$75,IF(T23<'BD1'!$C$77,'BD1'!$E$76,'BD1'!$E$77)))) -> 
H24: E | M24: E | R24: E
H25: P | J25: =IF(ISERROR(IF(I26="","",IF((I26/I25)>1,1,I26/I25))),"",IF(I26="","",IF((I26/I25)>1,1,I26/I25))) ->  | K25: =IF(J25="","",(IF(J25<'BD1'!$C$76,'BD1'!$E$75,IF(J25<'BD1'!$C$77,'BD1'!$E$76,'BD1'!$E$77)))) ->  | M25: P | O25: =IF(ISERROR(IF(N26="","",IF((N26/N25)>1,1,N26/N25))),"",IF(N26="","",IF((N26/N25)>1,1,N26/N25))) ->  | P25: =IF(O25="","",(IF(O25<'BD1'!$C$76,'BD1'!$E$75,IF(O25<'BD1'!$C$77,'BD1'!$E$76,'BD1'!$E$77)))) ->  | R25: P | T25: =IF(ISERROR(IF(S26="","",IF((S26/S25)>1,1,S26/S25))),"",IF(S26="","",IF((S26/S25)>1,1,S26/S25))) ->  | U25: =IF(T25="","",(IF(T25<'BD1'!$C$76,'BD1'!$E$75,IF(T25<'BD1'!$C$77,'BD1'!$E$76,'BD1'!$E$77)))) -> 
H26: E | M26: E | R26: E
H27: P | J27: =IF(ISERROR(IF(I28="","",IF((I28/I27)>1,1,I28/I27))),"",IF(I28="","",IF((I28/I27)>1,1,I28/I27))) ->  | K27: =IF(J27="","",(IF(J27<'BD1'!$C$76,'BD1'!$E$75,IF(J27<'BD1'!$C$77,'BD1'!$E$76,'BD1'!$E$77)))) ->  | M27: P | O27: =IF(ISERROR(IF(N28="","",IF((N28/N27)>1,1,N28/N27))),"",IF(N28="","",IF((N28/N27)>1,1,N28/N27))) ->  | P27: =IF(O27="","",(IF(O27<'BD1'!$C$76,'BD1'!$E$75,IF(O27<'BD1'!$C$77,'BD1'!$E$76,'BD1'!$E$77)))) ->  | R27: P | T27: =IF(ISERROR(IF(S28="","",IF((S28/S27)>1,1,S28/S27))),"",IF(S28="","",IF((S28/S27)>1,1,S28/S27))) ->  | U27: =IF(T27="","",(IF(T27<'BD1'!$C$76,'BD1'!$E$75,IF(T27<'BD1'!$C$77,'BD1'!$E$76,'BD1'!$E$77)))) -> 
H28: E | M28: E | R28: E
H29: P | J29: =IF(ISERROR(IF(I30="","",IF((I30/I29)>1,1,I30/I29))),"",IF(I30="","",IF((I30/I29)>1,1,I30/I29))) ->  | K29: =IF(J29="","",(IF(J29<'BD1'!$C$76,'BD1'!$E$75,IF(J29<'BD1'!$C$77,'BD1'!$E$76,'BD1'!$E$77)))) ->  | M29: P | O29: =IF(ISERROR(IF(N30="","",IF((N30/N29)>1,1,N30/N29))),"",IF(N30="","",IF((N30/N29)>1,1,N30/N29))) ->  | P29: =IF(O29="","",(IF(O29<'BD1'!$C$76,'BD1'!$E$75,IF(O29<'BD1'!$C$77,'BD1'!$E$76,'BD1'!$E$77)))) ->  | R29: P | T29: =IF(ISERROR(IF(S30="","",IF((S30/S29)>1,1,S30/S29))),"",IF(S30="","",IF((S30/S29)>1,1,S30/S29))) ->  | U29: =IF(T29="","",(IF(T29<'BD1'!$C$76,'BD1'!$E$75,IF(T29<'BD1'!$C$77,'BD1'!$E$76,'BD1'!$E$77)))) -> 
H30: E | M30: E | R30: E
H31: P | J31: =IF(ISERROR(IF(I32="","",IF((I32/I31)>1,1,I32/I31))),"",IF(I32="","",IF((I32/I31)>1,1,I32/I31))) ->  | K31: =IF(J31="","",(IF(J31<'BD1'!$C$76,'BD1'!$E$75,IF(J31<'BD1'!$C$77,'BD1'!$E$76,'BD1'!$E$77)))) ->  | M31: P | O31: =IF(ISERROR(IF(N32="","",IF((N32/N31)>1,1,N32/N31))),"",IF(N32="","",IF((N32/N31)>1,1,N32/N31))) ->  | P31: =IF(O31="","",(IF(O31<'BD1'!$C$76,'BD1'!$E$75,IF(O31<'BD1'!$C$77,'BD1'!$E$76,'BD1'!$E$77)))) ->  | R31: P | T31: =IF(ISERROR(IF(S32="","",IF((S32/S31)>1,1,S32/S31))),"",IF(S32="","",IF((S32/S31)>1,1,S32/S31))) ->  | U31: =IF(T31="","",(IF(T31<'BD1'!$C$76,'BD1'!$E$75,IF(T31<'BD1'!$C$77,'BD1'!$E$76,'BD1'!$E$77)))) -> 
H32: E | M32: E | R32: E
H33: P | J33: =IF(ISERROR(IF(I34="","",IF((I34/I33)>1,1,I34/I33))),"",IF(I34="","",IF((I34/I33)>1,1,I34/I33))) ->  | K33: =IF(J33="","",(IF(J33<'BD1'!$C$76,'BD1'!$E$75,IF(J33<'BD1'!$C$77,'BD1'!$E$76,'BD1'!$E$77)))) ->  | M33: P | O33: =IF(ISERROR(IF(N34="","",IF((N34/N33)>1,1,N34/N33))),"",IF(N34="","",IF((N34/N33)>1,1,N34/N33))) ->  | P33: =IF(O33="","",(IF(O33<'BD1'!$C$76,'BD1'!$E$75,IF(O33<'BD1'!$C$77,'BD1'!$E$76,'BD1'!$E$77)))) ->  | R33: P | T33: =IF(ISERROR(IF(S34="","",IF((S34/S33)>1,1,S34/S33))),"",IF(S34="","",IF((S34/S33)>1,1,S34/S33))) ->  | U33: =IF(T33="","",(IF(T33<'BD1'!$C$76,'BD1'!$E$75,IF(T33<'BD1'!$C$77,'BD1'!$E$76,'BD1'!$E$77)))) -> 
H34: E | M34: E | R34: E
H35: P | J35: =IF(ISERROR(IF(I36="","",IF((I36/I35)>1,1,I36/I35))),"",IF(I36="","",IF((I36/I35)>1,1,I36/I35))) ->  | K35: =IF(J35="","",(IF(J35<'BD1'!$C$76,'BD1'!$E$75,IF(J35<'BD1'!$C$77,'BD1'!$E$76,'BD1'!$E$77)))) ->  | M35: P | O35: =IF(ISERROR(IF(N36="","",IF((N36/N35)>1,1,N36/N35))),"",IF(N36="","",IF((N36/N35)>1,1,N36/N35))) ->  | P35: =IF(O35="","",(IF(O35<'BD1'!$C$76,'BD1'!$E$75,IF(O35<'BD1'!$C$77,'BD1'!$E$76,'BD1'!$E$77)))) ->  | R35: P | T35: =IF(ISERROR(IF(S36="","",IF((S36/S35)>1,1,S36/S35))),"",IF(S36="","",IF((S36/S35)>1,1,S36/S35))) ->  | U35: =IF(T35="","",(IF(T35<'BD1'!$C$76,'BD1'!$E$75,IF(T35<'BD1'!$C$77,'BD1'!$E$76,'BD1'!$E$77)))) -> 
H36: E | M36: E | R36: E
H37: P | J37: =IF(ISERROR(IF(I38="","",IF((I38/I37)>1,1,I38/I37))),"",IF(I38="","",IF((I38/I37)>1,1,I38/I37))) ->  | K37: =IF(J37="","",(IF(J37<'BD1'!$C$76,'BD1'!$E$75,IF(J37<'BD1'!$C$77,'BD1'!$E$76,'BD1'!$E$77)))) ->  | M37: P | O37: =IF(ISERROR(IF(N38="","",IF((N38/N37)>1,1,N38/N37))),"",IF(N38="","",IF((N38/N37)>1,1,N38/N37))) ->  | P37: =IF(O37="","",(IF(O37<'BD1'!$C$76,'BD1'!$E$75,IF(O37<'BD1'!$C$77,'BD1'!$E$76,'BD1'!$E$77)))) ->  | R37: P | T37: =IF(ISERROR(IF(S38="","",IF((S38/S37)>1,1,S38/S37))),"",IF(S38="","",IF((S38/S37)>1,1,S38/S37))) ->  | U37: =IF(T37="","",(IF(T37<'BD1'!$C$76,'BD1'!$E$75,IF(T37<'BD1'!$C$77,'BD1'!$E$76,'BD1'!$E$77)))) -> 
H38: E | M38: E | R38: E
H39: P | J39: =IF(ISERROR(IF(I40="","",IF((I40/I39)>1,1,I40/I39))),"",IF(I40="","",IF((I40/I39)>1,1,I40/I39))) ->  | K39: =IF(J39="","",(IF(J39<'BD1'!$C$76,'BD1'!$E$75,IF(J39<'BD1'!$C$77,'BD1'!$E$76,'BD1'!$E$77)))) ->  | M39: P | O39: =IF(ISERROR(IF(N40="","",IF((N40/N39)>1,1,N40/N39))),"",IF(N40="","",IF((N40/N39)>1,1,N40/N39))) ->  | P39: =IF(O39="","",(IF(O39<'BD1'!$C$76,'BD1'!$E$75,IF(O39<'BD1'!$C$77,'BD1'!$E$76,'BD1'!$E$77)))) ->  | R39: P | T39: =IF(ISERROR(IF(S40="","",IF((S40/S39)>1,1,S40/S39))),"",IF(S40="","",IF((S40/S39)>1,1,S40/S39))) ->  | U39: =IF(T39="","",(IF(T39<'BD1'!$C$76,'BD1'!$E$75,IF(T39<'BD1'!$C$77,'BD1'!$E$76,'BD1'!$E$77)))) -> 
H40: E | M40: E | R40: E
H41: P | J41: =IF(ISERROR(IF(I42="","",IF((I42/I41)>1,1,I42/I41))),"",IF(I42="","",IF((I42/I41)>1,1,I42/I41))) ->  | K41: =IF(J41="","",(IF(J41<'BD1'!$C$76,'BD1'!$E$75,IF(J41<'BD1'!$C$77,'BD1'!$E$76,'BD1'!$E$77)))) ->  | M41: P | O41: =IF(ISERROR(IF(N42="","",IF((N42/N41)>1,1,N42/N41))),"",IF(N42="","",IF((N42/N41)>1,1,N42/N41))) ->  | P41: =IF(O41="","",(IF(O41<'BD1'!$C$76,'BD1'!$E$75,IF(O41<'BD1'!$C$77,'BD1'!$E$76,'BD1'!$E$77)))) ->  | R41: P | T41: =IF(ISERROR(IF(S42="","",IF((S42/S41)>1,1,S42/S41))),"",IF(S42="","",IF((S42/S41)>1,1,S42/S41))) ->  | U41: =IF(T41="","",(IF(T41<'BD1'!$C$76,'BD1'!$E$75,IF(T41<'BD1'!$C$77,'BD1'!$E$76,'BD1'!$E$77)))) -> 
H42: E | M42: E | R42: E
H43: P | J43: =IF(ISERROR(IF(I44="","",IF((I44/I43)>1,1,I44/I43))),"",IF(I44="","",IF((I44/I43)>1,1,I44/I43))) ->  | K43: =IF(J43="","",(IF(J43<'BD1'!$C$76,'BD1'!$E$75,IF(J43<'BD1'!$C$77,'BD1'!$E$76,'BD1'!$E$77)))) ->  | M43: P | O43: =IF(ISERROR(IF(N44="","",IF((N44/N43)>1,1,N44/N43))),"",IF(N44="","",IF((N44/N43)>1,1,N44/N43))) ->  | P43: =IF(O43="","",(IF(O43<'BD1'!$C$76,'BD1'!$E$75,IF(O43<'BD1'!$C$77,'BD1'!$E$76,'BD1'!$E$77)))) ->  | R43: P | T43: =IF(ISERROR(IF(S44="","",IF((S44/S43)>1,1,S44/S43))),"",IF(S44="","",IF((S44/S43)>1,1,S44/S43))) ->  | U43: =IF(T43="","",(IF(T43<'BD1'!$C$76,'BD1'!$E$75,IF(T43<'BD1'!$C$77,'BD1'!$E$76,'BD1'!$E$77)))) -> 
H44: E | M44: E | R44: E
H45: P | J45: =IF(ISERROR(IF(I46="","",IF((I46/I45)>1,1,I46/I45))),"",IF(I46="","",IF((I46/I45)>1,1,I46/I45))) ->  | K45: =IF(J45="","",(IF(J45<'BD1'!$C$76,'BD1'!$E$75,IF(J45<'BD1'!$C$77,'BD1'!$E$76,'BD1'!$E$77)))) ->  | M45: P | O45: =IF(ISERROR(IF(N46="","",IF((N46/N45)>1,1,N46/N45))),"",IF(N46="","",IF((N46/N45)>1,1,N46/N45))) ->  | P45: =IF(O45="","",(IF(O45<'BD1'!$C$76,'BD1'!$E$75,IF(O45<'BD1'!$C$77,'BD1'!$E$76,'BD1'!$E$77)))) ->  | R45: P | T45: =IF(ISERROR(IF(S46="","",IF((S46/S45)>1,1,S46/S45))),"",IF(S46="","",IF((S46/S45)>1,1,S46/S45))) ->  | U45: =IF(T45="","",(IF(T45<'BD1'!$C$76,'BD1'!$E$75,IF(T45<'BD1'!$C$77,'BD1'!$E$76,'BD1'!$E$77)))) -> 
H46: E | M46: E | R46: E
H47: P | J47: =IF(ISERROR(IF(I48="","",IF((I48/I47)>1,1,I48/I47))),"",IF(I48="","",IF((I48/I47)>1,1,I48/I47))) ->  | K47: =IF(J47="","",(IF(J47<'BD1'!$C$76,'BD1'!$E$75,IF(J47<'BD1'!$C$77,'BD1'!$E$76,'BD1'!$E$77)))) ->  | M47: P | O47: =IF(ISERROR(IF(N48="","",IF((N48/N47)>1,1,N48/N47))),"",IF(N48="","",IF((N48/N47)>1,1,N48/N47))) ->  | P47: =IF(O47="","",(IF(O47<'BD1'!$C$76,'BD1'!$E$75,IF(O47<'BD1'!$C$77,'BD1'!$E$76,'BD1'!$E$77)))) ->  | R47: P | T47: =IF(ISERROR(IF(S48="","",IF((S48/S47)>1,1,S48/S47))),"",IF(S48="","",IF((S48/S47)>1,1,S48/S47))) ->  | U47: =IF(T47="","",(IF(T47<'BD1'!$C$76,'BD1'!$E$75,IF(T47<'BD1'!$C$77,'BD1'!$E$76,'BD1'!$E$77)))) -> 
H48: E | M48: E | R48: E
H49: P | J49: =IF(ISERROR(IF(I50="","",IF((I50/I49)>1,1,I50/I49))),"",IF(I50="","",IF((I50/I49)>1,1,I50/I49))) ->  | K49: =IF(J49="","",(IF(J49<'BD1'!$C$76,'BD1'!$E$75,IF(J49<'BD1'!$C$77,'BD1'!$E$76,'BD1'!$E$77)))) ->  | M49: P | O49: =IF(ISERROR(IF(N50="","",IF((N50/N49)>1,1,N50/N49))),"",IF(N50="","",IF((N50/N49)>1,1,N50/N49))) ->  | P49: =IF(O49="","",(IF(O49<'BD1'!$C$76,'BD1'!$E$75,IF(O49<'BD1'!$C$77,'BD1'!$E$76,'BD1'!$E$77)))) ->  | R49: P | T49: =IF(ISERROR(IF(S50="","",IF((S50/S49)>1,1,S50/S49))),"",IF(S50="","",IF((S50/S49)>1,1,S50/S49))) ->  | U49: =IF(T49="","",(IF(T49<'BD1'!$C$76,'BD1'!$E$75,IF(T49<'BD1'!$C$77,'BD1'!$E$76,'BD1'!$E$77)))) -> 
H50: E | M50: E | R50: E
H51: P | J51: =IF(ISERROR(IF(I52="","",IF((I52/I51)>1,1,I52/I51))),"",IF(I52="","",IF((I52/I51)>1,1,I52/I51))) ->  | K51: =IF(J51="","",(IF(J51<'BD1'!$C$76,'BD1'!$E$75,IF(J51<'BD1'!$C$77,'BD1'!$E$76,'BD1'!$E$77)))) ->  | M51: P | O51: =IF(ISERROR(IF(N52="","",IF((N52/N51)>1,1,N52/N51))),"",IF(N52="","",IF((N52/N51)>1,1,N52/N51))) ->  | P51: =IF(O51="","",(IF(O51<'BD1'!$C$76,'BD1'!$E$75,IF(O51<'BD1'!$C$77,'BD1'!$E$76,'BD1'!$E$77)))) ->  | R51: P | T51: =IF(ISERROR(IF(S52="","",IF((S52/S51)>1,1,S52/S51))),"",IF(S52="","",IF((S52/S51)>1,1,S52/S51))) ->  | U51: =IF(T51="","",(IF(T51<'BD1'!$C$76,'BD1'!$E$75,IF(T51<'BD1'!$C$77,'BD1'!$E$76,'BD1'!$E$77)))) -> 
H52: E | M52: E | R52: E
H53: P | J53: =IF(ISERROR(IF(I54="","",IF((I54/I53)>1,1,I54/I53))),"",IF(I54="","",IF((I54/I53)>1,1,I54/I53))) ->  | K53: =IF(J53="","",(IF(J53<'BD1'!$C$76,'BD1'!$E$75,IF(J53<'BD1'!$C$77,'BD1'!$E$76,'BD1'!$E$77)))) ->  | M53: P | O53: =IF(ISERROR(IF(N54="","",IF((N54/N53)>1,1,N54/N53))),"",IF(N54="","",IF((N54/N53)>1,1,N54/N53))) ->  | P53: =IF(O53="","",(IF(O53<'BD1'!$C$76,'BD1'!$E$75,IF(O53<'BD1'!$C$77,'BD1'!$E$76,'BD1'!$E$77)))) ->  | R53: P | T53: =IF(ISERROR(IF(S54="","",IF((S54/S53)>1,1,S54/S53))),"",IF(S54="","",IF((S54/S53)>1,1,S54/S53))) ->  | U53: =IF(T53="","",(IF(T53<'BD1'!$C$76,'BD1'!$E$75,IF(T53<'BD1'!$C$77,'BD1'!$E$76,'BD1'!$E$77)))) -> 
H54: E | M54: E | R54: E
H55: P | J55: =IF(ISERROR(IF(I56="","",IF((I56/I55)>1,1,I56/I55))),"",IF(I56="","",IF((I56/I55)>1,1,I56/I55))) ->  | K55: =IF(J55="","",(IF(J55<'BD1'!$C$76,'BD1'!$E$75,IF(J55<'BD1'!$C$77,'BD1'!$E$76,'BD1'!$E$77)))) ->  | M55: P | O55: =IF(ISERROR(IF(N56="","",IF((N56/N55)>1,1,N56/N55))),"",IF(N56="","",IF((N56/N55)>1,1,N56/N55))) ->  | P55: =IF(O55="","",(IF(O55<'BD1'!$C$76,'BD1'!$E$75,IF(O55<'BD1'!$C$77,'BD1'!$E$76,'BD1'!$E$77)))) ->  | R55: P | T55: =IF(ISERROR(IF(S56="","",IF((S56/S55)>1,1,S56/S55))),"",IF(S56="","",IF((S56/S55)>1,1,S56/S55))) ->  | U55: =IF(T55="","",(IF(T55<'BD1'!$C$76,'BD1'!$E$75,IF(T55<'BD1'!$C$77,'BD1'!$E$76,'BD1'!$E$77)))) -> 
H56: E | M56: E | R56: E
H57: P | J57: =IF(ISERROR(IF(I58="","",IF((I58/I57)>1,1,I58/I57))),"",IF(I58="","",IF((I58/I57)>1,1,I58/I57))) ->  | K57: =IF(J57="","",(IF(J57<'BD1'!$C$76,'BD1'!$E$75,IF(J57<'BD1'!$C$77,'BD1'!$E$76,'BD1'!$E$77)))) ->  | M57: P | O57: =IF(ISERROR(IF(N58="","",IF((N58/N57)>1,1,N58/N57))),"",IF(N58="","",IF((N58/N57)>1,1,N58/N57))) ->  | P57: =IF(O57="","",(IF(O57<'BD1'!$C$76,'BD1'!$E$75,IF(O57<'BD1'!$C$77,'BD1'!$E$76,'BD1'!$E$77)))) ->  | R57: P | T57: =IF(ISERROR(IF(S58="","",IF((S58/S57)>1,1,S58/S57))),"",IF(S58="","",IF((S58/S57)>1,1,S58/S57))) ->  | U57: =IF(T57="","",(IF(T57<'BD1'!$C$76,'BD1'!$E$75,IF(T57<'BD1'!$C$77,'BD1'!$E$76,'BD1'!$E$77)))) -> 
H58: E | M58: E | R58: E
H59: P | J59: =IF(ISERROR(IF(I60="","",IF((I60/I59)>1,1,I60/I59))),"",IF(I60="","",IF((I60/I59)>1,1,I60/I59))) ->  | K59: =IF(J59="","",(IF(J59<'BD1'!$C$76,'BD1'!$E$75,IF(J59<'BD1'!$C$77,'BD1'!$E$76,'BD1'!$E$77)))) ->  | M59: P | O59: =IF(ISERROR(IF(N60="","",IF((N60/N59)>1,1,N60/N59))),"",IF(N60="","",IF((N60/N59)>1,1,N60/N59))) ->  | P59: =IF(O59="","",(IF(O59<'BD1'!$C$76,'BD1'!$E$75,IF(O59<'BD1'!$C$77,'BD1'!$E$76,'BD1'!$E$77)))) ->  | R59: P | T59: =IF(ISERROR(IF(S60="","",IF((S60/S59)>1,1,S60/S59))),"",IF(S60="","",IF((S60/S59)>1,1,S60/S59))) ->  | U59: =IF(T59="","",(IF(T59<'BD1'!$C$76,'BD1'!$E$75,IF(T59<'BD1'!$C$77,'BD1'!$E$76,'BD1'!$E$77)))) -> 
H60: E | M60: E | R60: E
H61: P | J61: =IF(ISERROR(IF(I62="","",IF((I62/I61)>1,1,I62/I61))),"",IF(I62="","",IF((I62/I61)>1,1,I62/I61))) ->  | K61: =IF(J61="","",(IF(J61<'BD1'!$C$76,'BD1'!$E$75,IF(J61<'BD1'!$C$77,'BD1'!$E$76,'BD1'!$E$77)))) ->  | M61: P | O61: =IF(ISERROR(IF(N62="","",IF((N62/N61)>1,1,N62/N61))),"",IF(N62="","",IF((N62/N61)>1,1,N62/N61))) ->  | P61: =IF(O61="","",(IF(O61<'BD1'!$C$76,'BD1'!$E$75,IF(O61<'BD1'!$C$77,'BD1'!$E$76,'BD1'!$E$77)))) ->  | R61: P | T61: =IF(ISERROR(IF(S62="","",IF((S62/S61)>1,1,S62/S61))),"",IF(S62="","",IF((S62/S61)>1,1,S62/S61))) ->  | U61: =IF(T61="","",(IF(T61<'BD1'!$C$76,'BD1'!$E$75,IF(T61<'BD1'!$C$77,'BD1'!$E$76,'BD1'!$E$77)))) -> 
H62: E | M62: E | R62: E
H63: P | J63: =IF(ISERROR(IF(I64="","",IF((I64/I63)>1,1,I64/I63))),"",IF(I64="","",IF((I64/I63)>1,1,I64/I63))) ->  | K63: =IF(J63="","",(IF(J63<'BD1'!$C$76,'BD1'!$E$75,IF(J63<'BD1'!$C$77,'BD1'!$E$76,'BD1'!$E$77)))) ->  | M63: P | O63: =IF(ISERROR(IF(N64="","",IF((N64/N63)>1,1,N64/N63))),"",IF(N64="","",IF((N64/N63)>1,1,N64/N63))) ->  | P63: =IF(O63="","",(IF(O63<'BD1'!$C$76,'BD1'!$E$75,IF(O63<'BD1'!$C$77,'BD1'!$E$76,'BD1'!$E$77)))) ->  | R63: P | T63: =IF(ISERROR(IF(S64="","",IF((S64/S63)>1,1,S64/S63))),"",IF(S64="","",IF((S64/S63)>1,1,S64/S63))) ->  | U63: =IF(T63="","",(IF(T63<'BD1'!$C$76,'BD1'!$E$75,IF(T63<'BD1'!$C$77,'BD1'!$E$76,'BD1'!$E$77)))) -> 
H64: E | M64: E | R64: E
H65: P | J65: =IF(ISERROR(IF(I66="","",IF((I66/I65)>1,1,I66/I65))),"",IF(I66="","",IF((I66/I65)>1,1,I66/I65))) ->  | K65: =IF(J65="","",(IF(J65<'BD1'!$C$76,'BD1'!$E$75,IF(J65<'BD1'!$C$77,'BD1'!$E$76,'BD1'!$E$77)))) ->  | M65: P | O65: =IF(ISERROR(IF(N66="","",IF((N66/N65)>1,1,N66/N65))),"",IF(N66="","",IF((N66/N65)>1,1,N66/N65))) ->  | P65: =IF(O65="","",(IF(O65<'BD1'!$C$76,'BD1'!$E$75,IF(O65<'BD1'!$C$77,'BD1'!$E$76,'BD1'!$E$77)))) ->  | R65: P | T65: =IF(ISERROR(IF(S66="","",IF((S66/S65)>1,1,S66/S65))),"",IF(S66="","",IF((S66/S65)>1,1,S66/S65))) ->  | U65: =IF(T65="","",(IF(T65<'BD1'!$C$76,'BD1'!$E$75,IF(T65<'BD1'!$C$77,'BD1'!$E$76,'BD1'!$E$77)))) -> 
H66: E | M66: E | R66: E
H67: P | J67: =IF(ISERROR(IF(I68="","",IF((I68/I67)>1,1,I68/I67))),"",IF(I68="","",IF((I68/I67)>1,1,I68/I67))) ->  | K67: =IF(J67="","",(IF(J67<'BD1'!$C$76,'BD1'!$E$75,IF(J67<'BD1'!$C$77,'BD1'!$E$76,'BD1'!$E$77)))) ->  | M67: P | O67: =IF(ISERROR(IF(N68="","",IF((N68/N67)>1,1,N68/N67))),"",IF(N68="","",IF((N68/N67)>1,1,N68/N67))) ->  | P67: =IF(O67="","",(IF(O67<'BD1'!$C$76,'BD1'!$E$75,IF(O67<'BD1'!$C$77,'BD1'!$E$76,'BD1'!$E$77)))) ->  | R67: P | T67: =IF(ISERROR(IF(S68="","",IF((S68/S67)>1,1,S68/S67))),"",IF(S68="","",IF((S68/S67)>1,1,S68/S67))) ->  | U67: =IF(T67="","",(IF(T67<'BD1'!$C$76,'BD1'!$E$75,IF(T67<'BD1'!$C$77,'BD1'!$E$76,'BD1'!$E$77)))) -> 
H68: E | M68: E | R68: E
H69: P | J69: =IF(ISERROR(IF(I70="","",IF((I70/I69)>1,1,I70/I69))),"",IF(I70="","",IF((I70/I69)>1,1,I70/I69))) ->  | K69: =IF(J69="","",(IF(J69<'BD1'!$C$76,'BD1'!$E$75,IF(J69<'BD1'!$C$77,'BD1'!$E$76,'BD1'!$E$77)))) ->  | M69: P | O69: =IF(ISERROR(IF(N70="","",IF((N70/N69)>1,1,N70/N69))),"",IF(N70="","",IF((N70/N69)>1,1,N70/N69))) ->  | P69: =IF(O69="","",(IF(O69<'BD1'!$C$76,'BD1'!$E$75,IF(O69<'BD1'!$C$77,'BD1'!$E$76,'BD1'!$E$77)))) ->  | R69: P | T69: =IF(ISERROR(IF(S70="","",IF((S70/S69)>1,1,S70/S69))),"",IF(S70="","",IF((S70/S69)>1,1,S70/S69))) ->  | U69: =IF(T69="","",(IF(T69<'BD1'!$C$76,'BD1'!$E$75,IF(T69<'BD1'!$C$77,'BD1'!$E$76,'BD1'!$E$77)))) -> 
H70: E | M70: E | R70: E
H71: P | J71: =IF(ISERROR(IF(I72="","",IF((I72/I71)>1,1,I72/I71))),"",IF(I72="","",IF((I72/I71)>1,1,I72/I71))) ->  | K71: =IF(J71="","",(IF(J71<'BD1'!$C$76,'BD1'!$E$75,IF(J71<'BD1'!$C$77,'BD1'!$E$76,'BD1'!$E$77)))) ->  | M71: P | O71: =IF(ISERROR(IF(N72="","",IF((N72/N71)>1,1,N72/N71))),"",IF(N72="","",IF((N72/N71)>1,1,N72/N71))) ->  | P71: =IF(O71="","",(IF(O71<'BD1'!$C$76,'BD1'!$E$75,IF(O71<'BD1'!$C$77,'BD1'!$E$76,'BD1'!$E$77)))) ->  | R71: P | T71: =IF(ISERROR(IF(S72="","",IF((S72/S71)>1,1,S72/S71))),"",IF(S72="","",IF((S72/S71)>1,1,S72/S71))) ->  | U71: =IF(T71="","",(IF(T71<'BD1'!$C$76,'BD1'!$E$75,IF(T71<'BD1'!$C$77,'BD1'!$E$76,'BD1'!$E$77)))) -> 
H72: E | M72: E | R72: E
C75: CAUSAS IDENTIFICADAS
C76: 1 | E76: CAUSA RELACIONADA CON: | F76: Gestión_Contractual | I76: CAUSA: | J76: OTRA | R76: AFECTA EN EL CICLO PHVA | T76: =IF(ISERROR(INDEX('BD1'!$L$56:$N$70,MATCH(J76,INDIRECT(F76),0),MATCH(F76,'BD1'!$L$55:$N$55,0))),"",(INDEX('BD1'!$L$56:$N$70,MATCH(J76,INDIRECT(F76),0),MATCH(F76,'BD1'!$L$55:$N$55,0)))) -> -
H77: SELECCIONE AQUÍ ↑ | Q77: SELECCIONE AQUÍ ↑
E78: DESCRIPCION | L78: ACCIONES PROPUESTAS
E79: Acorde con el Plan de Adquisiciones del año 2015 esta meta no tiene asociados objetos contractuales para su ejecución, ya que la fuente de financiación de la misma es el Distrito Capital | L79: Teniendo en cuenta la descripción anterior, no aplica la formulación de acciones correctivas
C82: 2 | E82: CAUSA RELACIONADA CON: | F82: Gestión_Presupuestal | I82: CAUSA: | J82: OTRA | R82: AFECTA EN EL CICLO PHVA | T82: =IF(ISERROR(INDEX('BD1'!$L$56:$N$70,MATCH(J82,INDIRECT(F82),0),MATCH(F82,'BD1'!$L$55:$N$55,0))),"",(INDEX('BD1'!$L$56:$N$70,MATCH(J82,INDIRECT(F82),0),MATCH(F82,'BD1'!$L$55:$N$55,0)))) -> -
H83: SELECCIONE AQUÍ ↑ | Q83: SELECCIONE AQUÍ ↑
E84: DESCRIPCION | L84: ACCIONES PROPUESTAS
E85: La afectación presupuestal de esta meta a 31 de diciembre de 2015 fue ejecutada satisfactoriamente, acorde con su fuente de financiación. Es importante precisar, que la información que hace parte del insumo para la elaboración de este informe es tomada del reporte del cuarto trimestre de la vigencia 2015 que se realiza por medio del SEGPLAN a la Secretaría Distrital de Planeación, de acuerdo a los términos establecidos por esta Entidad y la brindada por la Oficina Asesora de Planeación de TRANSMILENIO S.A. con corte a 31 de diciembre de 2015. | L85: Teniendo en cuenta la descripción anterior, no aplica la formulación de acciones correctivas
C88: 3 | E88: CAUSA RELACIONADA CON: | F88: Gestión_Fisica | I88: CAUSA: | J88: OTRA | R88: AFECTA EN EL CICLO PHVA | T88: =IF(ISERROR(INDEX('BD1'!$L$56:$N$70,MATCH(J88,INDIRECT(F88),0),MATCH(F88,'BD1'!$L$55:$N$55,0))),"",(INDEX('BD1'!$L$56:$N$70,MATCH(J88,INDIRECT(F88),0),MATCH(F88,'BD1'!$L$55:$N$55,0)))) -> -
H89: SELECCIONE AQUÍ ↑ | Q89: SELECCIONE AQUÍ ↑
E90: DESCRIPCION | L90: ACCIONES PROPUESTAS
E91: El resultado en el avance físico con corte a 31 de diciembre de 2015 para esta meta fué del 23.1%. Este resultado se originó por causas tales como: Los incentivos solo se cargaban con la tarjeta verde de "tu llave" la cual se comenzó a utilizar en todo el sistema al finalizar el año 2015 y por ende los incentivos fueron pocos; a pesar de haber adelantado campañas con la Secretaría de Salud y la Secretaría de Movilidad para la entrega de las tarjetas "tu llave" con la cual pueden acceder al beneficio, no fue posible su entrega personalizada en el mismo sitio en donde se realizó la campaña; en la meta no quedo incluída la población Sisben con incentivos dato con el cual si se hubiera logrado la meta propuesta Es importante precisar, que la información que hace parte del insumo para la elaboración de este informe es tomada del reporte del cuarto trimestre de la vigencia 2015 que se realiza por medio del SEGPLAN a la Secretaría Distrital de Planeación, de acuerdo a los términos establecidos por esta Entidad y la brindada por la Oficina Asesora de Planeación de TRANSMILENIO S.A. con corte a 31 de diciembre de 2015. | L91: Teniendo en cuenta las consideraciones sustentadas en la descripción anterior, no aplica la formulación de acciones correctivas, no obstante, es necesario seguir adelantando acciones encaminadas al cumplimiento de la meta desde su componente de gestión física siempre y cuando la política del nuevo alcalde sea la de continuar dando esta clase de incentivos.
C94: 4 | E94: CAUSA RELACIONADA CON: | I94: CAUSA: | R94: AFECTA EN EL CICLO PHVA | T94: =IF(ISERROR(INDEX('BD1'!$L$56:$N$70,MATCH(J94,INDIRECT(F94),0),MATCH(F94,'BD1'!$L$55:$N$55,0))),"",(INDEX('BD1'!$L$56:$N$70,MATCH(J94,INDIRECT(F94),0),MATCH(F94,'BD1'!$L$55:$N$55,0)))) -> 
H95: SELECCIONE AQUÍ ↑ | Q95: SELECCIONE AQUÍ ↑
E96: DESCRIPCION | L96: ACCIONES PROPUESTAS
C100: 5 | E100: CAUSA RELACIONADA CON: | I100: CAUSA: | R100: AFECTA EN EL CICLO PHVA | T100: =IF(ISERROR(INDEX('BD1'!$L$56:$N$70,MATCH(J100,INDIRECT(F100),0),MATCH(F100,'BD1'!$L$55:$N$55,0))),"",(INDEX('BD1'!$L$56:$N$70,MATCH(J100,INDIRECT(F100),0),MATCH(F100,'BD1'!$L$55:$N$55,0)))) -> 
H101: SELECCIONE AQUÍ ↑ | Q101: SELECCIONE AQUÍ ↑
E102: DESCRIPCION | L102: ACCIONES PROPUESTAS
C106: 6 | E106: CAUSA RELACIONADA CON: | I106: CAUSA: | R106: AFECTA EN EL CICLO PHVA | T106: =IF(ISERROR(INDEX('BD1'!$L$56:$N$70,MATCH(J106,INDIRECT(F106),0),MATCH(F106,'BD1'!$L$55:$N$55,0))),"",(INDEX('BD1'!$L$56:$N$70,MATCH(J106,INDIRECT(F106),0),MATCH(F106,'BD1'!$L$55:$N$55,0)))) -> 
H107: SELECCIONE AQUÍ ↑ | Q107: SELECCIONE AQUÍ ↑
E108: DESCRIPCION | L108: ACCIONES PROPUESTAS
C112: 7 | E112: CAUSA RELACIONADA CON: | F112: Gestión_Contractual | I112: CAUSA: | J112: OTRA | R112: AFECTA EN EL CICLO PHVA | T112: =IF(ISERROR(INDEX('BD1'!$L$56:$N$70,MATCH(J112,INDIRECT(F112),0),MATCH(F112,'BD1'!$L$55:$N$55,0))),"",(INDEX('BD1'!$L$56:$N$70,MATCH(J112,INDIRECT(F112),0),MATCH(F112,'BD1'!$L$55:$N$55,0)))) -> -
H113: SELECCIONE AQUÍ ↑ | Q113: SELECCIONE AQUÍ ↑
E114: DESCRIPCION | L114: ACCIONES PROPUESTAS
C118: 8 | E118: CAUSA RELACIONADA CON: | I118: CAUSA: | R118: AFECTA EN EL CICLO PHVA | T118: =IF(ISERROR(INDEX('BD1'!$L$56:$N$70,MATCH(J118,INDIRECT(F118),0),MATCH(F118,'BD1'!$L$55:$N$55,0))),"",(INDEX('BD1'!$L$56:$N$70,MATCH(J118,INDIRECT(F118),0),MATCH(F118,'BD1'!$L$55:$N$55,0)))) -> 
H119: SELECCIONE AQUÍ ↑ | Q119: SELECCIONE AQUÍ ↑
E120: DESCRIPCION | L120: ACCIONES PROPUESTAS
C124: 9 | E124: CAUSA RELACIONADA CON: | I124: CAUSA: | R124: AFECTA EN EL CICLO PHVA | T124: =IF(ISERROR(INDEX('BD1'!$L$56:$N$70,MATCH(J124,INDIRECT(F124),0),MATCH(F124,'BD1'!$L$55:$N$55,0))),"",(INDEX('BD1'!$L$56:$N$70,MATCH(J124,INDIRECT(F124),0),MATCH(F124,'BD1'!$L$55:$N$55,0)))) -> 
H125: SELECCIONE AQUÍ ↑ | Q125: SELECCIONE AQUÍ ↑
E126: DESCRIPCION | L126: ACCIONES PROPUESTAS
C130: 10 | E130: CAUSA RELACIONADA CON: | I130: CAUSA: | R130: AFECTA EN EL CICLO PHVA | T130: =IF(ISERROR(INDEX('BD1'!$L$56:$N$70,MATCH(J130,INDIRECT(F130),0),MATCH(F130,'BD1'!$L$55:$N$55,0))),"",(INDEX('BD1'!$L$56:$N$70,MATCH(J130,INDIRECT(F130),0),MATCH(F130,'BD1'!$L$55:$N$55,0)))) -> 
H131: SELECCIONE AQUÍ ↑ | Q131: SELECCIONE AQUÍ ↑
E132: DESCRIPCION | L132: ACCIONES PROPUESTAS
C136: 11 | E136: CAUSA RELACIONADA CON: | I136: CAUSA: | R136: AFECTA EN EL CICLO PHVA | T136: =IF(ISERROR(INDEX('BD1'!$L$56:$N$70,MATCH(J136,INDIRECT(F136),0),MATCH(F136,'BD1'!$L$55:$N$55,0))),"",(INDEX('BD1'!$L$56:$N$70,MATCH(J136,INDIRECT(F136),0),MATCH(F136,'BD1'!$L$55:$N$55,0)))) -> 
H137: SELECCIONE AQUÍ ↑ | Q137: SELECCIONE AQUÍ ↑
E138: DESCRIPCION | L138: ACCIONES PROPUESTAS
C142: 12 | E142: CAUSA RELACIONADA CON: | I142: CAUSA: | R142: AFECTA EN EL CICLO PHVA | T142: =IF(ISERROR(INDEX('BD1'!$L$56:$N$70,MATCH(J142,INDIRECT(F142),0),MATCH(F142,'BD1'!$L$55:$N$55,0))),"",(INDEX('BD1'!$L$56:$N$70,MATCH(J142,INDIRECT(F142),0),MATCH(F142,'BD1'!$L$55:$N$55,0)))) -> 
H143: SELECCIONE AQUÍ ↑ | Q143: SELECCIONE AQUÍ ↑
E144: DESCRIPCION | L144: ACCIONES PROPUESTAS
C148: 13 | E148: CAUSA RELACIONADA CON: | I148: CAUSA: | R148: AFECTA EN EL CICLO PHVA | T148: =IF(ISERROR(INDEX('BD1'!$L$56:$N$70,MATCH(J148,INDIRECT(F148),0),MATCH(F148,'BD1'!$L$55:$N$55,0))),"",(INDEX('BD1'!$L$56:$N$70,MATCH(J148,INDIRECT(F148),0),MATCH(F148,'BD1'!$L$55:$N$55,0)))) -> 
H149: SELECCIONE AQUÍ ↑ | Q149: SELECCIONE AQUÍ ↑
E150: DESCRIPCION | L150: ACCIONES PROPUESTAS
C154: 14 | E154: CAUSA RELACIONADA CON: | I154: CAUSA: | R154: AFECTA EN EL CICLO PHVA | T154: =IF(ISERROR(INDEX('BD1'!$L$56:$N$70,MATCH(J154,INDIRECT(F154),0),MATCH(F154,'BD1'!$L$55:$N$55,0))),"",(INDEX('BD1'!$L$56:$N$70,MATCH(J154,INDIRECT(F154),0),MATCH(F154,'BD1'!$L$55:$N$55,0)))) -> 
H155: SELECCIONE AQUÍ ↑ | Q155: SELECCIONE AQUÍ ↑
E156: DESCRIPCION | L156: ACCIONES PROPUESTAS
C160: 15 | E160: CAUSA RELACIONADA CON: | I160: CAUSA: | R160: AFECTA EN EL CICLO PHVA | T160: =IF(ISERROR(INDEX('BD1'!$L$56:$N$70,MATCH(J160,INDIRECT(F160),0),MATCH(F160,'BD1'!$L$55:$N$55,0))),"",(INDEX('BD1'!$L$56:$N$70,MATCH(J160,INDIRECT(F160),0),MATCH(F160,'BD1'!$L$55:$N$55,0)))) -> 
H161: SELECCIONE AQUÍ ↑ | Q161: SELECCIONE AQUÍ ↑
E162: DESCRIPCION | L162: ACCIONES PROPUESTAS
C166: 16 | E166: CAUSA RELACIONADA CON: | I166: CAUSA: | R166: AFECTA EN EL CICLO PHVA | T166: =IF(ISERROR(INDEX('BD1'!$L$56:$N$70,MATCH(J166,INDIRECT(F166),0),MATCH(F166,'BD1'!$L$55:$N$55,0))),"",(INDEX('BD1'!$L$56:$N$70,MATCH(J166,INDIRECT(F166),0),MATCH(F166,'BD1'!$L$55:$N$55,0)))) -> 
H167: SELECCIONE AQUÍ ↑ | Q167: SELECCIONE AQUÍ ↑
E168: DESCRIPCION | L168: ACCIONES PROPUESTAS
C172: 17 | E172: CAUSA RELACIONADA CON: | I172: CAUSA: | R172: AFECTA EN EL CICLO PHVA | T172: =IF(ISERROR(INDEX('BD1'!$L$56:$N$70,MATCH(J172,INDIRECT(F172),0),MATCH(F172,'BD1'!$L$55:$N$55,0))),"",(INDEX('BD1'!$L$56:$N$70,MATCH(J172,INDIRECT(F172),0),MATCH(F172,'BD1'!$L$55:$N$55,0)))) -> 
H173: SELECCIONE AQUÍ ↑ | Q173: SELECCIONE AQUÍ ↑
E174: DESCRIPCION | L174: ACCIONES PROPUESTAS
C178: 18 | E178: CAUSA RELACIONADA CON: | I178: CAUSA: | R178: AFECTA EN EL CICLO PHVA | T178: =IF(ISERROR(INDEX('BD1'!$L$56:$N$70,MATCH(J178,INDIRECT(F178),0),MATCH(F178,'BD1'!$L$55:$N$55,0))),"",(INDEX('BD1'!$L$56:$N$70,MATCH(J178,INDIRECT(F178),0),MATCH(F178,'BD1'!$L$55:$N$55,0)))) -> 
H179: SELECCIONE AQUÍ ↑ | Q179: SELECCIONE AQUÍ ↑
E180: DESCRIPCION | L180: ACCIONES PROPUESTAS
C186: EJE_DOS | E186: =IF(ISERROR(INDEX('BD1'!$C$56:$E$56,1,MATCH(C186,'BD1'!$C$55:$E$55,0))),"",(INDEX('BD1'!$C$56:$E$56,1,MATCH(C186,'BD1'!$C$55:$E$55,0)))) -> Un territorio que enfrenta el cambio climático
C188: PROGRAMA | D188: Número y nombre del Proyecto de Inversión | E188: Presupuesto definitivo para la Meta del Proyecto de Inversión | F188: Meta - Proyecto de Inversión | H188: GESTIÓN CONTRACTUAL | M188: GESTIÓN PRESUPUESTAL (CIFRAS MILLONES DE PESOS) | R188: GESTIÓN FÍSICA
H189: AVANCE | J189: EJEC / PROG | M189: AVANCE | O189: EJEC / PROG | R189: AVANCE | T189: EJEC / PROG
C190: Movilidad Humana | D190: 7223. Operación y control del sistema de transporte | F190: 1. Controlar 2.915 Vehículos Para La Operación Troncal Y De Alimentación | H190: P | I190: 3 | J190: =IF(ISERROR(IF(I191="","",IF((I191/I190)>1,1,I191/I190))),"",IF(I191="","",IF((I191/I190)>1,1,I191/I190))) -> 1 | K190: =IF(J190="","",(IF(J190<'BD1'!$C$76,'BD1'!$E$75,IF(J190<'BD1'!$C$77,'BD1'!$E$76,'BD1'!$E$77)))) -> SATISFACTORIO | M190: P | N190: 13407 | O190: =IF(ISERROR(IF(N191="","",IF((N191/N190)>1,1,N191/N190))),"",IF(N191="","",IF((N191/N190)>1,1,N191/N190))) -> 0.965838741 | P190: =IF(O190="","",(IF(O190<'BD1'!$C$76,'BD1'!$E$75,IF(O190<'BD1'!$C$77,'BD1'!$E$76,'BD1'!$E$77)))) -> SATISFACTORIO | R190: P | S190: 2915 | T190: =IF(ISERROR(IF(S191="","",IF((S191/S190)>1,1,S191/S190))),"",IF(S191="","",IF((S191/S190)>1,1,S191/S190))) -> 1 | U190: =IF(T190="","",(IF(T190<'BD1'!$C$76,'BD1'!$E$75,IF(T190<'BD1'!$C$77,'BD1'!$E$76,'BD1'!$E$77)))) -> SATISFACTORIO
H191: E | I191: 3 | M191: E | N191: 12949 | R191: E | S191: 2956
C192: Movilidad Humana | D192: 7223. Operación y control del sistema de transporte | F192: 2. Monitorear La Operación Y El Control De 9830 Vehículos Del Sistema Integrado De Transporte Público | H192: P | I192: 5 | J192: =IF(ISERROR(IF(I193="","",IF((I193/I192)>1,1,I193/I192))),"",IF(I193="","",IF((I193/I192)>1,1,I193/I192))) -> 1 | K192: =IF(J192="","",(IF(J192<'BD1'!$C$76,'BD1'!$E$75,IF(J192<'BD1'!$C$77,'BD1'!$E$76,'BD1'!$E$77)))) -> SATISFACTORIO | M192: P | N192: 195 | O192: =IF(ISERROR(IF(N193="","",IF((N193/N192)>1,1,N193/N192))),"",IF(N193="","",IF((N193/N192)>1,1,N193/N192))) -> 0.8153846154 | P192: =IF(O192="","",(IF(O192<'BD1'!$C$76,'BD1'!$E$75,IF(O192<'BD1'!$C$77,'BD1'!$E$76,'BD1'!$E$77)))) -> ACEPTABLE | R192: P | S192: 9830 | T192: =IF(ISERROR(IF(S193="","",IF((S193/S192)>1,1,S193/S192))),"",IF(S193="","",IF((S193/S192)>1,1,S193/S192))) -> 0.6674465921 | U192: =IF(T192="","",(IF(T192<'BD1'!$C$76,'BD1'!$E$75,IF(T192<'BD1'!$C$77,'BD1'!$E$76,'BD1'!$E$77)))) -> ACEPTABLE
H193: E | I193: 5 | M193: E | N193: 159 | R193: E | S193: 6561
C194: Movilidad Humana | D194: 7223. Operación y control del sistema de transporte | F194: 3. Movilizar 90 Por Ciento De Los Viajes Del Sistema De Transporte Público De Bogotá | H194: P | I194: 42 | J194: =IF(ISERROR(IF(I195="","",IF((I195/I194)>1,1,I195/I194))),"",IF(I195="","",IF((I195/I194)>1,1,I195/I194))) -> 0.7857142857 | K194: =IF(J194="","",(IF(J194<'BD1'!$C$76,'BD1'!$E$75,IF(J194<'BD1'!$C$77,'BD1'!$E$76,'BD1'!$E$77)))) -> ACEPTABLE | M194: P | N194: 14071 | O194: =IF(ISERROR(IF(N195="","",IF((N195/N194)>1,1,N195/N194))),"",IF(N195="","",IF((N195/N194)>1,1,N195/N194))) -> 0.1991329685 | P194: =IF(O194="","",(IF(O194<'BD1'!$C$76,'BD1'!$E$75,IF(O194<'BD1'!$C$77,'BD1'!$E$76,'BD1'!$E$77)))) -> ALERTA | R194: P | S194: 75 | T194: =IF(ISERROR(IF(S195="","",IF((S195/S194)>1,1,S195/S194))),"",IF(S195="","",IF((S195/S194)>1,1,S195/S194))) -> 1 | U194: =IF(T194="","",(IF(T194<'BD1'!$C$76,'BD1'!$E$75,IF(T194<'BD1'!$C$77,'BD1'!$E$76,'BD1'!$E$77)))) -> SATISFACTORIO
H195: E | I195: 33 | M195: E | N195: 2802 | R195: E | S195: 75
C196: Movilidad Humana | D196: 7223. Operación y control del sistema de transporte | F196: 4. Monitorear 1 Sistema De Información Y Comunicaciones Que Garantice La Operación Del Sistema Integrado De Transporte Público | H196: P | I196: 9 | J196: =IF(ISERROR(IF(I197="","",IF((I197/I196)>1,1,I197/I196))),"",IF(I197="","",IF((I197/I196)>1,1,I197/I196))) -> 0.7777777778 | K196: =IF(J196="","",(IF(J196<'BD1'!$C$76,'BD1'!$E$75,IF(J196<'BD1'!$C$77,'BD1'!$E$76,'BD1'!$E$77)))) -> ACEPTABLE | M196: P | N196: 6437 | O196: =IF(ISERROR(IF(N197="","",IF((N197/N196)>1,1,N197/N196))),"",IF(N197="","",IF((N197/N196)>1,1,N197/N196))) -> 0.9703277924 | P196: =IF(O196="","",(IF(O196<'BD1'!$C$76,'BD1'!$E$75,IF(O196<'BD1'!$C$77,'BD1'!$E$76,'BD1'!$E$77)))) -> SATISFACTORIO | R196: P | S196: 1 | T196: =IF(ISERROR(IF(S197="","",IF((S197/S196)>1,1,S197/S196))),"",IF(S197="","",IF((S197/S196)>1,1,S197/S196))) -> 1 | U196: =IF(T196="","",(IF(T196<'BD1'!$C$76,'BD1'!$E$75,IF(T196<'BD1'!$C$77,'BD1'!$E$76,'BD1'!$E$77)))) -> SATISFACTORIO
H197: E | I197: 7 | M197: E | N197: 6246 | R197: E | S197: 1
C198: Movilidad Humana | D198: 7223. Operación y control del sistema de transporte | F198: 5. Operar 150 Estaciones Del Sistema De Transporte Masivo Transmilenio | H198: P | I198: 8 | J198: =IF(ISERROR(IF(I199="","",IF((I199/I198)>1,1,I199/I198))),"",IF(I199="","",IF((I199/I198)>1,1,I199/I198))) -> 1 | K198: =IF(J198="","",(IF(J198<'BD1'!$C$76,'BD1'!$E$75,IF(J198<'BD1'!$C$77,'BD1'!$E$76,'BD1'!$E$77)))) -> SATISFACTORIO | M198: P | N198: 19848 | O198: =IF(ISERROR(IF(N199="","",IF((N199/N198)>1,1,N199/N198))),"",IF(N199="","",IF((N199/N198)>1,1,N199/N198))) -> 0.9994961709 | P198: =IF(O198="","",(IF(O198<'BD1'!$C$76,'BD1'!$E$75,IF(O198<'BD1'!$C$77,'BD1'!$E$76,'BD1'!$E$77)))) -> SATISFACTORIO | R198: P | S198: 147 | T198: =IF(ISERROR(IF(S199="","",IF((S199/S198)>1,1,S199/S198))),"",IF(S199="","",IF((S199/S198)>1,1,S199/S198))) -> 1 | U198: =IF(T198="","",(IF(T198<'BD1'!$C$76,'BD1'!$E$75,IF(T198<'BD1'!$C$77,'BD1'!$E$76,'BD1'!$E$77)))) -> SATISFACTORIO
H199: E | I199: 9 | M199: E | N199: 19838 | R199: E | S199: 147
C200: Movilidad Humana | D200: 7223. Operación y control del sistema de transporte | F200: 6. Monitorear La Operación Y El Control De 13 Zonas Del Sitp En Su Componente Zonal | H200: P | I200: 16 | J200: =IF(ISERROR(IF(I201="","",IF((I201/I200)>1,1,I201/I200))),"",IF(I201="","",IF((I201/I200)>1,1,I201/I200))) -> 0.875 | K200: =IF(J200="","",(IF(J200<'BD1'!$C$76,'BD1'!$E$75,IF(J200<'BD1'!$C$77,'BD1'!$E$76,'BD1'!$E$77)))) -> ACEPTABLE | M200: P | N200: 18072 | O200: =IF(ISERROR(IF(N201="","",IF((N201/N200)>1,1,N201/N200))),"",IF(N201="","",IF((N201/N200)>1,1,N201/N200))) -> 0.9684041611 | P200: =IF(O200="","",(IF(O200<'BD1'!$C$76,'BD1'!$E$75,IF(O200<'BD1'!$C$77,'BD1'!$E$76,'BD1'!$E$77)))) -> SATISFACTORIO | R200: P | S200: 13 | T200: =IF(ISERROR(IF(S201="","",IF((S201/S200)>1,1,S201/S200))),"",IF(S201="","",IF((S201/S200)>1,1,S201/S200))) -> 1 | U200: =IF(T200="","",(IF(T200<'BD1'!$C$76,'BD1'!$E$75,IF(T200<'BD1'!$C$77,'BD1'!$E$76,'BD1'!$E$77)))) -> SATISFACTORIO
H201: E | I201: 14 | M201: E | N201: 17501 | R201: E | S201: 13
C202: Movilidad Humana | D202: 7223. Operación y control del sistema de transporte | F202: 7. Realizar 600 Auditorias De Seguridad Operacional Y Física Al Sistema Transmilenio | H202: P | I202: 4 | J202: =IF(ISERROR(IF(I203="","",IF((I203/I202)>1,1,I203/I202))),"",IF(I203="","",IF((I203/I202)>1,1,I203/I202))) -> 0.75 | K202: =IF(J202="","",(IF(J202<'BD1'!$C$76,'BD1'!$E$75,IF(J202<'BD1'!$C$77,'BD1'!$E$76,'BD1'!$E$77)))) -> ACEPTABLE | M202: P | N202: 2279 | O202: =IF(ISERROR(IF(N203="","",IF((N203/N202)>1,1,N203/N202))),"",IF(N203="","",IF((N203/N202)>1,1,N203/N202))) -> 0.8148310663 | P202: =IF(O202="","",(IF(O202<'BD1'!$C$76,'BD1'!$E$75,IF(O202<'BD1'!$C$77,'BD1'!$E$76,'BD1'!$E$77)))) -> ACEPTABLE | R202: P | S202: 150 | T202: =IF(ISERROR(IF(S203="","",IF((S203/S202)>1,1,S203/S202))),"",IF(S203="","",IF((S203/S202)>1,1,S203/S202))) -> 1 | U202: =IF(T202="","",(IF(T202<'BD1'!$C$76,'BD1'!$E$75,IF(T202<'BD1'!$C$77,'BD1'!$E$76,'BD1'!$E$77)))) -> SATISFACTORIO
H203: E | I203: 3 | M203: E | N203: 1857 | R203: E | S203: 150
C204: Movilidad Humana | D204: 7223. Operación y control del sistema de transporte | F204: 8. Realizar 4057 Auditorias para la ejecución de programas de seguridad operacional y atención de emergencia a los concesionarios zonales | H204: P | I204: 3 | J204: =IF(ISERROR(IF(I205="","",IF((I205/I204)>1,1,I205/I204))),"",IF(I205="","",IF((I205/I204)>1,1,I205/I204))) -> 0.3333333333 | K204: =IF(J204="","",(IF(J204<'BD1'!$C$76,'BD1'!$E$75,IF(J204<'BD1'!$C$77,'BD1'!$E$76,'BD1'!$E$77)))) -> ALERTA | M204: P | N204: 262 | O204: =IF(ISERROR(IF(N205="","",IF((N205/N204)>1,1,N205/N204))),"",IF(N205="","",IF((N205/N204)>1,1,N205/N204))) -> 0.2099236641 | P204: =IF(O204="","",(IF(O204<'BD1'!$C$76,'BD1'!$E$75,IF(O204<'BD1'!$C$77,'BD1'!$E$76,'BD1'!$E$77)))) -> ALERTA | R204: P | S204: 500 | T204: =IF(ISERROR(IF(S205="","",IF((S205/S204)>1,1,S205/S204))),"",IF(S205="","",IF((S205/S204)>1,1,S205/S204))) -> 1 | U204: =IF(T204="","",(IF(T204<'BD1'!$C$76,'BD1'!$E$75,IF(T204<'BD1'!$C$77,'BD1'!$E$76,'BD1'!$E$77)))) -> SATISFACTORIO
H205: E | I205: 1 | M205: E | N205: 55 | R205: E | S205: 500
C206: Movilidad Humana | D206: 7223. Operación y control del sistema de transporte | F206: 9. Reducir 235529 Toneladas De Gases De Efecto Invernadero (Co2eq) Por Año Por La Operación Del Sistema De Transporte Masivo | H206: P | I206: 9 | J206: =IF(ISERROR(IF(I207="","",IF((I207/I206)>1,1,I207/I206))),"",IF(I207="","",IF((I207/I206)>1,1,I207/I206))) -> 0.8888888889 | K206: =IF(J206="","",(IF(J206<'BD1'!$C$76,'BD1'!$E$75,IF(J206<'BD1'!$C$77,'BD1'!$E$76,'BD1'!$E$77)))) -> ACEPTABLE | M206: P | N206: 519 | O206: =IF(ISERROR(IF(N207="","",IF((N207/N206)>1,1,N207/N206))),"",IF(N207="","",IF((N207/N206)>1,1,N207/N206))) -> 0.8998073218 | P206: =IF(O206="","",(IF(O206<'BD1'!$C$76,'BD1'!$E$75,IF(O206<'BD1'!$C$77,'BD1'!$E$76,'BD1'!$E$77)))) -> ACEPTABLE | R206: P | S206: 235529 | T206: =IF(ISERROR(IF(S207="","",IF((S207/S206)>1,1,S207/S206))),"",IF(S207="","",IF((S207/S206)>1,1,S207/S206))) -> 0.5759927652 | U206: =IF(T206="","",(IF(T206<'BD1'!$C$76,'BD1'!$E$75,IF(T206<'BD1'!$C$77,'BD1'!$E$76,'BD1'!$E$77)))) -> ALERTA
H207: E | I207: 8 | M207: E | N207: 467 | R207: E | S207: 135663
C208: Movilidad Humana | D208: 7223. Operación y control del sistema de transporte | F208: 10. Ejecutar anualmente el 100% de las actividades programadas para la administración Financiera del Fondo de Estabilización Tarifaria del sistema Integrado de Transporte Público-SITP- de Bogotá D.C. bajo el control y responsabilidad del Ente Gestor del Sistema | H208: P | I208: N/A | J208: =IF(ISERROR(IF(I209="","",IF((I209/I208)>1,1,I209/I208))),"",IF(I209="","",IF((I209/I208)>1,1,I209/I208))) ->  | K208: =IF(J208="","",(IF(J208<'BD1'!$C$76,'BD1'!$E$75,IF(J208<'BD1'!$C$77,'BD1'!$E$76,'BD1'!$E$77)))) ->  | M208: P | N208: 778213 | O208: =IF(ISERROR(IF(N209="","",IF((N209/N208)>1,1,N209/N208))),"",IF(N209="","",IF((N209/N208)>1,1,N209/N208))) -> 0.9215985855 | P208: =IF(O208="","",(IF(O208<'BD1'!$C$76,'BD1'!$E$75,IF(O208<'BD1'!$C$77,'BD1'!$E$76,'BD1'!$E$77)))) -> SATISFACTORIO | R208: P | S208: 100 | T208: =IF(ISERROR(IF(S209="","",IF((S209/S208)>1,1,S209/S208))),"",IF(S209="","",IF((S209/S208)>1,1,S209/S208))) -> 1 | U208: =IF(T208="","",(IF(T208<'BD1'!$C$76,'BD1'!$E$75,IF(T208<'BD1'!$C$77,'BD1'!$E$76,'BD1'!$E$77)))) -> SATISFACTORIO
H209: E | I209: N/A | M209: E | N209: 717200 | R209: E | S209: 100
C210: Movilidad Humana | D210: 7251. Gestión de Infraestructura del Transporte Público | F210: 11. Ejecutar Anualmente El 100 Por Ciento De Los Recursos Para La Construcción De Las Troncales Carrera 10 Y Calle 26 | H210: P | I210: N/A | J210: =IF(ISERROR(IF(I211="","",IF((I211/I210)>1,1,I211/I210))),"",IF(I211="","",IF((I211/I210)>1,1,I211/I210))) ->  | K210: =IF(J210="","",(IF(J210<'BD1'!$C$76,'BD1'!$E$75,IF(J210<'BD1'!$C$77,'BD1'!$E$76,'BD1'!$E$77)))) ->  | M210: P | N210: 520432 | O210: =IF(ISERROR(IF(N211="","",IF((N211/N210)>1,1,N211/N210))),"",IF(N211="","",IF((N211/N210)>1,1,N211/N210))) -> 0.9524299044 | P210: =IF(O210="","",(IF(O210<'BD1'!$C$76,'BD1'!$E$75,IF(O210<'BD1'!$C$77,'BD1'!$E$76,'BD1'!$E$77)))) -> SATISFACTORIO | R210: P | S210: 100 | T210: =IF(ISERROR(IF(S211="","",IF((S211/S210)>1,1,S211/S210))),"",IF(S211="","",IF((S211/S210)>1,1,S211/S210))) -> 0.9524 | U210: =IF(T210="","",(IF(T210<'BD1'!$C$76,'BD1'!$E$75,IF(T210<'BD1'!$C$77,'BD1'!$E$76,'BD1'!$E$77)))) -> SATISFACTORIO
H211: E | I211: N/A | M211: E | N211: 495675 | R211: E | S211: 95.24
C212: Movilidad Humana | D212: 7251. Gestión de Infraestructura del Transporte Público | F212: 12. Ejecutar Anualmente El 100 Por Ciento De Los Recursos Destinados Al Apoyo Institucional Necesario Para La Implementación Del Sitp | H212: P | I212: N/A | J212: =IF(ISERROR(IF(I213="","",IF((I213/I212)>1,1,I213/I212))),"",IF(I213="","",IF((I213/I212)>1,1,I213/I212))) ->  | K212: =IF(J212="","",(IF(J212<'BD1'!$C$76,'BD1'!$E$75,IF(J212<'BD1'!$C$77,'BD1'!$E$76,'BD1'!$E$77)))) ->  | M212: P | N212: 0 | O212: =IF(ISERROR(IF(N213="","",IF((N213/N212)>1,1,N213/N212))),"",IF(N213="","",IF((N213/N212)>1,1,N213/N212))) ->  | P212: =IF(O212="","",(IF(O212<'BD1'!$C$76,'BD1'!$E$75,IF(O212<'BD1'!$C$77,'BD1'!$E$76,'BD1'!$E$77)))) ->  | R212: P | S212: 0 | T212: =IF(ISERROR(IF(S213="","",IF((S213/S212)>1,1,S213/S212))),"",IF(S213="","",IF((S213/S212)>1,1,S213/S212))) ->  | U212: =IF(T212="","",(IF(T212<'BD1'!$C$76,'BD1'!$E$75,IF(T212<'BD1'!$C$77,'BD1'!$E$76,'BD1'!$E$77)))) -> 
H213: E | I213: N/A | M213: E | N213: 0 | R213: E | S213: 0
C214: Movilidad Humana | D214: 7251. Gestión de Infraestructura del Transporte Público | F214: 13. Ejecutar Anualmente El 100 Por Ciento De Los Recursos Para La Adecuación De La Infraestructura Necesaria Y Obras Complementarias, Para La Puesta En Operación Del Sitp | H214: P | I214: N/A | J214: =IF(ISERROR(IF(I215="","",IF((I215/I214)>1,1,I215/I214))),"",IF(I215="","",IF((I215/I214)>1,1,I215/I214))) ->  | K214: =IF(J214="","",(IF(J214<'BD1'!$C$76,'BD1'!$E$75,IF(J214<'BD1'!$C$77,'BD1'!$E$76,'BD1'!$E$77)))) ->  | M214: P | N214: 208905 | O214: =IF(ISERROR(IF(N215="","",IF((N215/N214)>1,1,N215/N214))),"",IF(N215="","",IF((N215/N214)>1,1,N215/N214))) -> 0.8971207008 | P214: =IF(O214="","",(IF(O214<'BD1'!$C$76,'BD1'!$E$75,IF(O214<'BD1'!$C$77,'BD1'!$E$76,'BD1'!$E$77)))) -> ACEPTABLE | R214: P | S214: 100 | T214: =IF(ISERROR(IF(S215="","",IF((S215/S214)>1,1,S215/S214))),"",IF(S215="","",IF((S215/S214)>1,1,S215/S214))) -> 0.8971 | U214: =IF(T214="","",(IF(T214<'BD1'!$C$76,'BD1'!$E$75,IF(T214<'BD1'!$C$77,'BD1'!$E$76,'BD1'!$E$77)))) -> ACEPTABLE
H215: E | I215: N/A | M215: E | N215: 187413 | R215: E | S215: 89.71
C216: Movilidad Humana | D216: 7251. Gestión de Infraestructura del Transporte Público | F216: 14. Ejecutar Anualmente El 100 Por Ciento De Las Actividades De Seguimiento A Los Estudios, Diseños, Construcción Y Mantenimiento De La Infraestructura Asosiada Al Sitp | H216: P | I216: N/A | J216: =IF(ISERROR(IF(I217="","",IF((I217/I216)>1,1,I217/I216))),"",IF(I217="","",IF((I217/I216)>1,1,I217/I216))) ->  | K216: =IF(J216="","",(IF(J216<'BD1'!$C$76,'BD1'!$E$75,IF(J216<'BD1'!$C$77,'BD1'!$E$76,'BD1'!$E$77)))) ->  | M216: P | N216: 53610 | O216: =IF(ISERROR(IF(N217="","",IF((N217/N216)>1,1,N217/N216))),"",IF(N217="","",IF((N217/N216)>1,1,N217/N216))) -> 0.8692035068 | P216: =IF(O216="","",(IF(O216<'BD1'!$C$76,'BD1'!$E$75,IF(O216<'BD1'!$C$77,'BD1'!$E$76,'BD1'!$E$77)))) -> ACEPTABLE | R216: P | S216: 100 | T216: =IF(ISERROR(IF(S217="","",IF((S217/S216)>1,1,S217/S216))),"",IF(S217="","",IF((S217/S216)>1,1,S217/S216))) -> 1 | U216: =IF(T216="","",(IF(T216<'BD1'!$C$76,'BD1'!$E$75,IF(T216<'BD1'!$C$77,'BD1'!$E$76,'BD1'!$E$77)))) -> SATISFACTORIO
H217: E | I217: N/A | M217: E | N217: 46598 | R217: E | S217: 100
C218: Movilidad Humana | D218: 7251. Gestión de Infraestructura del Transporte Público | F218: 15. Ejecutar Anualmente El 100 Por Ciento De Las Actividades De Gestión Y Seguimiento A Los Estudios, Diseños, Construcción Y Mantenimiento De 7 Obras Para La Integración Del Sistema Transmilenio Al Sitp. | H218: P | I218: N/A | J218: =IF(ISERROR(IF(I219="","",IF((I219/I218)>1,1,I219/I218))),"",IF(I219="","",IF((I219/I218)>1,1,I219/I218))) ->  | K218: =IF(J218="","",(IF(J218<'BD1'!$C$76,'BD1'!$E$75,IF(J218<'BD1'!$C$77,'BD1'!$E$76,'BD1'!$E$77)))) ->  | M218: P | N218: 0 | O218: =IF(ISERROR(IF(N219="","",IF((N219/N218)>1,1,N219/N218))),"",IF(N219="","",IF((N219/N218)>1,1,N219/N218))) ->  | P218: =IF(O218="","",(IF(O218<'BD1'!$C$76,'BD1'!$E$75,IF(O218<'BD1'!$C$77,'BD1'!$E$76,'BD1'!$E$77)))) ->  | R218: P | S218: 0 | T218: =IF(ISERROR(IF(S219="","",IF((S219/S218)>1,1,S219/S218))),"",IF(S219="","",IF((S219/S218)>1,1,S219/S218))) ->  | U218: =IF(T218="","",(IF(T218<'BD1'!$C$76,'BD1'!$E$75,IF(T218<'BD1'!$C$77,'BD1'!$E$76,'BD1'!$E$77)))) -> 
H219: E | I219: N/A | M219: E | N219: 0 | R219: E | S219: 0
C220: Movilidad Humana | D220: 7251. Gestión de Infraestructura del Transporte Público | F220: 16. Ejecutar Anualmente El 100 % de los recurso para estudios, diseños y construcción De La Troncal Avenida Boyacá | H220: P | I220: N/A | J220: =IF(ISERROR(IF(I221="","",IF((I221/I220)>1,1,I221/I220))),"",IF(I221="","",IF((I221/I220)>1,1,I221/I220))) ->  | K220: =IF(J220="","",(IF(J220<'BD1'!$C$76,'BD1'!$E$75,IF(J220<'BD1'!$C$77,'BD1'!$E$76,'BD1'!$E$77)))) ->  | M220: P | N220: 891175 | O220: =IF(ISERROR(IF(N221="","",IF((N221/N220)>1,1,N221/N220))),"",IF(N221="","",IF((N221/N220)>1,1,N221/N220))) -> 0 | P220: =IF(O220="","",(IF(O220<'BD1'!$C$76,'BD1'!$E$75,IF(O220<'BD1'!$C$77,'BD1'!$E$76,'BD1'!$E$77)))) -> ALERTA | R220: P | S220: 100 | T220: =IF(ISERROR(IF(S221="","",IF((S221/S220)>1,1,S221/S220))),"",IF(S221="","",IF((S221/S220)>1,1,S221/S220))) -> 0 | U220: =IF(T220="","",(IF(T220<'BD1'!$C$76,'BD1'!$E$75,IF(T220<'BD1'!$C$77,'BD1'!$E$76,'BD1'!$E$77)))) -> ALERTA
H221: E | I221: N/A | M221: E | N221: 0 | R221: E | S221: 0
C222: Movilidad Humana | D222: 7251. Gestión de Infraestructura del Transporte Público | F222: 17. Ejecutar 100% de los recursos destinado anualmente a las actividades de gestión y desarrollo de la primera línea del metro. | H222: P | I222: N/A | J222: =IF(ISERROR(IF(I223="","",IF((I223/I222)>1,1,I223/I222))),"",IF(I223="","",IF((I223/I222)>1,1,I223/I222))) ->  | K222: =IF(J222="","",(IF(J222<'BD1'!$C$76,'BD1'!$E$75,IF(J222<'BD1'!$C$77,'BD1'!$E$76,'BD1'!$E$77)))) ->  | M222: P | N222: 7500 | O222: =IF(ISERROR(IF(N223="","",IF((N223/N222)>1,1,N223/N222))),"",IF(N223="","",IF((N223/N222)>1,1,N223/N222))) -> 0.9892 | P222: =IF(O222="","",(IF(O222<'BD1'!$C$76,'BD1'!$E$75,IF(O222<'BD1'!$C$77,'BD1'!$E$76,'BD1'!$E$77)))) -> SATISFACTORIO | R222: P | S222: 100 | T222: =IF(ISERROR(IF(S223="","",IF((S223/S222)>1,1,S223/S222))),"",IF(S223="","",IF((S223/S222)>1,1,S223/S222))) -> 0.9892 | U222: =IF(T222="","",(IF(T222<'BD1'!$C$76,'BD1'!$E$75,IF(T222<'BD1'!$C$77,'BD1'!$E$76,'BD1'!$E$77)))) -> SATISFACTORIO
H223: E | I223: N/A | M223: E | N223: 7419 | R223: E | S223: 98.92
H224: P | J224: =IF(ISERROR(IF(I225="","",IF((I225/I224)>1,1,I225/I224))),"",IF(I225="","",IF((I225/I224)>1,1,I225/I224))) ->  | K224: =IF(J224="","",(IF(J224<'BD1'!$C$76,'BD1'!$E$75,IF(J224<'BD1'!$C$77,'BD1'!$E$76,'BD1'!$E$77)))) ->  | M224: P | O224: =IF(ISERROR(IF(N225="","",IF((N225/N224)>1,1,N225/N224))),"",IF(N225="","",IF((N225/N224)>1,1,N225/N224))) ->  | P224: =IF(O224="","",(IF(O224<'BD1'!$C$76,'BD1'!$E$75,IF(O224<'BD1'!$C$77,'BD1'!$E$76,'BD1'!$E$77)))) ->  | R224: P | T224: =IF(ISERROR(IF(S225="","",IF((S225/S224)>1,1,S225/S224))),"",IF(S225="","",IF((S225/S224)>1,1,S225/S224))) ->  | U224: =IF(T224="","",(IF(T224<'BD1'!$C$76,'BD1'!$E$75,IF(T224<'BD1'!$C$77,'BD1'!$E$76,'BD1'!$E$77)))) -> 
H225: E | M225: E | R225: E
H226: P | J226: =IF(ISERROR(IF(I227="","",IF((I227/I226)>1,1,I227/I226))),"",IF(I227="","",IF((I227/I226)>1,1,I227/I226))) ->  | K226: =IF(J226="","",(IF(J226<'BD1'!$C$76,'BD1'!$E$75,IF(J226<'BD1'!$C$77,'BD1'!$E$76,'BD1'!$E$77)))) ->  | M226: P | O226: =IF(ISERROR(IF(N227="","",IF((N227/N226)>1,1,N227/N226))),"",IF(N227="","",IF((N227/N226)>1,1,N227/N226))) ->  | P226: =IF(O226="","",(IF(O226<'BD1'!$C$76,'BD1'!$E$75,IF(O226<'BD1'!$C$77,'BD1'!$E$76,'BD1'!$E$77)))) ->  | R226: P | T226: =IF(ISERROR(IF(S227="","",IF((S227/S226)>1,1,S227/S226))),"",IF(S227="","",IF((S227/S226)>1,1,S227/S226))) ->  | U226: =IF(T226="","",(IF(T226<'BD1'!$C$76,'BD1'!$E$75,IF(T226<'BD1'!$C$77,'BD1'!$E$76,'BD1'!$E$77)))) -> 
H227: E | M227: E | R227: E
H228: P | J228: =IF(ISERROR(IF(I229="","",IF((I229/I228)>1,1,I229/I228))),"",IF(I229="","",IF((I229/I228)>1,1,I229/I228))) ->  | K228: =IF(J228="","",(IF(J228<'BD1'!$C$76,'BD1'!$E$75,IF(J228<'BD1'!$C$77,'BD1'!$E$76,'BD1'!$E$77)))) ->  | M228: P | O228: =IF(ISERROR(IF(N229="","",IF((N229/N228)>1,1,N229/N228))),"",IF(N229="","",IF((N229/N228)>1,1,N229/N228))) ->  | P228: =IF(O228="","",(IF(O228<'BD1'!$C$76,'BD1'!$E$75,IF(O228<'BD1'!$C$77,'BD1'!$E$76,'BD1'!$E$77)))) ->  | R228: P | T228: =IF(ISERROR(IF(S229="","",IF((S229/S228)>1,1,S229/S228))),"",IF(S229="","",IF((S229/S228)>1,1,S229/S228))) ->  | U228: =IF(T228="","",(IF(T228<'BD1'!$C$76,'BD1'!$E$75,IF(T228<'BD1'!$C$77,'BD1'!$E$76,'BD1'!$E$77)))) -> 
H229: E | M229: E | R229: E
H230: P | J230: =IF(ISERROR(IF(I231="","",IF((I231/I230)>1,1,I231/I230))),"",IF(I231="","",IF((I231/I230)>1,1,I231/I230))) ->  | K230: =IF(J230="","",(IF(J230<'BD1'!$C$76,'BD1'!$E$75,IF(J230<'BD1'!$C$77,'BD1'!$E$76,'BD1'!$E$77)))) ->  | M230: P | O230: =IF(ISERROR(IF(N231="","",IF((N231/N230)>1,1,N231/N230))),"",IF(N231="","",IF((N231/N230)>1,1,N231/N230))) ->  | P230: =IF(O230="","",(IF(O230<'BD1'!$C$76,'BD1'!$E$75,IF(O230<'BD1'!$C$77,'BD1'!$E$76,'BD1'!$E$77)))) ->  | R230: P | T230: =IF(ISERROR(IF(S231="","",IF((S231/S230)>1,1,S231/S230))),"",IF(S231="","",IF((S231/S230)>1,1,S231/S230))) ->  | U230: =IF(T230="","",(IF(T230<'BD1'!$C$76,'BD1'!$E$75,IF(T230<'BD1'!$C$77,'BD1'!$E$76,'BD1'!$E$77)))) -> 
H231: E | M231: E | R231: E
H232: P | J232: =IF(ISERROR(IF(I233="","",IF((I233/I232)>1,1,I233/I232))),"",IF(I233="","",IF((I233/I232)>1,1,I233/I232))) ->  | K232: =IF(J232="","",(IF(J232<'BD1'!$C$76,'BD1'!$E$75,IF(J232<'BD1'!$C$77,'BD1'!$E$76,'BD1'!$E$77)))) ->  | M232: P | O232: =IF(ISERROR(IF(N233="","",IF((N233/N232)>1,1,N233/N232))),"",IF(N233="","",IF((N233/N232)>1,1,N233/N232))) ->  | P232: =IF(O232="","",(IF(O232<'BD1'!$C$76,'BD1'!$E$75,IF(O232<'BD1'!$C$77,'BD1'!$E$76,'BD1'!$E$77)))) ->  | R232: P | T232: =IF(ISERROR(IF(S233="","",IF((S233/S232)>1,1,S233/S232))),"",IF(S233="","",IF((S233/S232)>1,1,S233/S232))) ->  | U232: =IF(T232="","",(IF(T232<'BD1'!$C$76,'BD1'!$E$75,IF(T232<'BD1'!$C$77,'BD1'!$E$76,'BD1'!$E$77)))) -> 
H233: E | M233: E | R233: E
H234: P | J234: =IF(ISERROR(IF(I235="","",IF((I235/I234)>1,1,I235/I234))),"",IF(I235="","",IF((I235/I234)>1,1,I235/I234))) ->  | K234: =IF(J234="","",(IF(J234<'BD1'!$C$76,'BD1'!$E$75,IF(J234<'BD1'!$C$77,'BD1'!$E$76,'BD1'!$E$77)))) ->  | M234: P | O234: =IF(ISERROR(IF(N235="","",IF((N235/N234)>1,1,N235/N234))),"",IF(N235="","",IF((N235/N234)>1,1,N235/N234))) ->  | P234: =IF(O234="","",(IF(O234<'BD1'!$C$76,'BD1'!$E$75,IF(O234<'BD1'!$C$77,'BD1'!$E$76,'BD1'!$E$77)))) ->  | R234: P | T234: =IF(ISERROR(IF(S235="","",IF((S235/S234)>1,1,S235/S234))),"",IF(S235="","",IF((S235/S234)>1,1,S235/S234))) ->  | U234: =IF(T234="","",(IF(T234<'BD1'!$C$76,'BD1'!$E$75,IF(T234<'BD1'!$C$77,'BD1'!$E$76,'BD1'!$E$77)))) -> 
H235: E | M235: E | R235: E
H236: P | J236: =IF(ISERROR(IF(I237="","",IF((I237/I236)>1,1,I237/I236))),"",IF(I237="","",IF((I237/I236)>1,1,I237/I236))) ->  | K236: =IF(J236="","",(IF(J236<'BD1'!$C$76,'BD1'!$E$75,IF(J236<'BD1'!$C$77,'BD1'!$E$76,'BD1'!$E$77)))) ->  | M236: P | O236: =IF(ISERROR(IF(N237="","",IF((N237/N236)>1,1,N237/N236))),"",IF(N237="","",IF((N237/N236)>1,1,N237/N236))) ->  | P236: =IF(O236="","",(IF(O236<'BD1'!$C$76,'BD1'!$E$75,IF(O236<'BD1'!$C$77,'BD1'!$E$76,'BD1'!$E$77)))) ->  | R236: P | T236: =IF(ISERROR(IF(S237="","",IF((S237/S236)>1,1,S237/S236))),"",IF(S237="","",IF((S237/S236)>1,1,S237/S236))) ->  | U236: =IF(T236="","",(IF(T236<'BD1'!$C$76,'BD1'!$E$75,IF(T236<'BD1'!$C$77,'BD1'!$E$76,'BD1'!$E$77)))) -> 
H237: E | M237: E | R237: E
H238: P | J238: =IF(ISERROR(IF(I239="","",IF((I239/I238)>1,1,I239/I238))),"",IF(I239="","",IF((I239/I238)>1,1,I239/I238))) ->  | K238: =IF(J238="","",(IF(J238<'BD1'!$C$76,'BD1'!$E$75,IF(J238<'BD1'!$C$77,'BD1'!$E$76,'BD1'!$E$77)))) ->  | M238: P | O238: =IF(ISERROR(IF(N239="","",IF((N239/N238)>1,1,N239/N238))),"",IF(N239="","",IF((N239/N238)>1,1,N239/N238))) ->  | P238: =IF(O238="","",(IF(O238<'BD1'!$C$76,'BD1'!$E$75,IF(O238<'BD1'!$C$77,'BD1'!$E$76,'BD1'!$E$77)))) ->  | R238: P | T238: =IF(ISERROR(IF(S239="","",IF((S239/S238)>1,1,S239/S238))),"",IF(S239="","",IF((S239/S238)>1,1,S239/S238))) ->  | U238: =IF(T238="","",(IF(T238<'BD1'!$C$76,'BD1'!$E$75,IF(T238<'BD1'!$C$77,'BD1'!$E$76,'BD1'!$E$77)))) -> 
H239: E | M239: E | R239: E
H240: P | J240: =IF(ISERROR(IF(I241="","",IF((I241/I240)>1,1,I241/I240))),"",IF(I241="","",IF((I241/I240)>1,1,I241/I240))) ->  | K240: =IF(J240="","",(IF(J240<'BD1'!$C$76,'BD1'!$E$75,IF(J240<'BD1'!$C$77,'BD1'!$E$76,'BD1'!$E$77)))) ->  | M240: P | O240: =IF(ISERROR(IF(N241="","",IF((N241/N240)>1,1,N241/N240))),"",IF(N241="","",IF((N241/N240)>1,1,N241/N240))) ->  | P240: =IF(O240="","",(IF(O240<'BD1'!$C$76,'BD1'!$E$75,IF(O240<'BD1'!$C$77,'BD1'!$E$76,'BD1'!$E$77)))) ->  | R240: P | T240: =IF(ISERROR(IF(S241="","",IF((S241/S240)>1,1,S241/S240))),"",IF(S241="","",IF((S241/S240)>1,1,S241/S240))) ->  | U240: =IF(T240="","",(IF(T240<'BD1'!$C$76,'BD1'!$E$75,IF(T240<'BD1'!$C$77,'BD1'!$E$76,'BD1'!$E$77)))) -> 
H241: E | M241: E | R241: E
H242: P | J242: =IF(ISERROR(IF(I243="","",IF((I243/I242)>1,1,I243/I242))),"",IF(I243="","",IF((I243/I242)>1,1,I243/I242))) ->  | K242: =IF(J242="","",(IF(J242<'BD1'!$C$76,'BD1'!$E$75,IF(J242<'BD1'!$C$77,'BD1'!$E$76,'BD1'!$E$77)))) ->  | M242: P | O242: =IF(ISERROR(IF(N243="","",IF((N243/N242)>1,1,N243/N242))),"",IF(N243="","",IF((N243/N242)>1,1,N243/N242))) ->  | P242: =IF(O242="","",(IF(O242<'BD1'!$C$76,'BD1'!$E$75,IF(O242<'BD1'!$C$77,'BD1'!$E$76,'BD1'!$E$77)))) ->  | R242: P | T242: =IF(ISERROR(IF(S243="","",IF((S243/S242)>1,1,S243/S242))),"",IF(S243="","",IF((S243/S242)>1,1,S243/S242))) ->  | U242: =IF(T242="","",(IF(T242<'BD1'!$C$76,'BD1'!$E$75,IF(T242<'BD1'!$C$77,'BD1'!$E$76,'BD1'!$E$77)))) -> 
H243: E | M243: E | R243: E
H244: P | J244: =IF(ISERROR(IF(I245="","",IF((I245/I244)>1,1,I245/I244))),"",IF(I245="","",IF((I245/I244)>1,1,I245/I244))) ->  | K244: =IF(J244="","",(IF(J244<'BD1'!$C$76,'BD1'!$E$75,IF(J244<'BD1'!$C$77,'BD1'!$E$76,'BD1'!$E$77)))) ->  | M244: P | O244: =IF(ISERROR(IF(N245="","",IF((N245/N244)>1,1,N245/N244))),"",IF(N245="","",IF((N245/N244)>1,1,N245/N244))) ->  | P244: =IF(O244="","",(IF(O244<'BD1'!$C$76,'BD1'!$E$75,IF(O244<'BD1'!$C$77,'BD1'!$E$76,'BD1'!$E$77)))) ->  | R244: P | T244: =IF(ISERROR(IF(S245="","",IF((S245/S244)>1,1,S245/S244))),"",IF(S245="","",IF((S245/S244)>1,1,S245/S244))) ->  | U244: =IF(T244="","",(IF(T244<'BD1'!$C$76,'BD1'!$E$75,IF(T244<'BD1'!$C$77,'BD1'!$E$76,'BD1'!$E$77)))) -> 
H245: E | M245: E | R245: E
H246: P | J246: =IF(ISERROR(IF(I247="","",IF((I247/I246)>1,1,I247/I246))),"",IF(I247="","",IF((I247/I246)>1,1,I247/I246))) ->  | K246: =IF(J246="","",(IF(J246<'BD1'!$C$76,'BD1'!$E$75,IF(J246<'BD1'!$C$77,'BD1'!$E$76,'BD1'!$E$77)))) ->  | M246: P | O246: =IF(ISERROR(IF(N247="","",IF((N247/N246)>1,1,N247/N246))),"",IF(N247="","",IF((N247/N246)>1,1,N247/N246))) ->  | P246: =IF(O246="","",(IF(O246<'BD1'!$C$76,'BD1'!$E$75,IF(O246<'BD1'!$C$77,'BD1'!$E$76,'BD1'!$E$77)))) ->  | R246: P | T246: =IF(ISERROR(IF(S247="","",IF((S247/S246)>1,1,S247/S246))),"",IF(S247="","",IF((S247/S246)>1,1,S247/S246))) ->  | U246: =IF(T246="","",(IF(T246<'BD1'!$C$76,'BD1'!$E$75,IF(T246<'BD1'!$C$77,'BD1'!$E$76,'BD1'!$E$77)))) -> 
H247: E | M247: E | R247: E
H248: P | J248: =IF(ISERROR(IF(I249="","",IF((I249/I248)>1,1,I249/I248))),"",IF(I249="","",IF((I249/I248)>1,1,I249/I248))) ->  | K248: =IF(J248="","",(IF(J248<'BD1'!$C$76,'BD1'!$E$75,IF(J248<'BD1'!$C$77,'BD1'!$E$76,'BD1'!$E$77)))) ->  | M248: P | O248: =IF(ISERROR(IF(N249="","",IF((N249/N248)>1,1,N249/N248))),"",IF(N249="","",IF((N249/N248)>1,1,N249/N248))) ->  | P248: =IF(O248="","",(IF(O248<'BD1'!$C$76,'BD1'!$E$75,IF(O248<'BD1'!$C$77,'BD1'!$E$76,'BD1'!$E$77)))) ->  | R248: P | T248: =IF(ISERROR(IF(S249="","",IF((S249/S248)>1,1,S249/S248))),"",IF(S249="","",IF((S249/S248)>1,1,S249/S248))) ->  | U248: =IF(T248="","",(IF(T248<'BD1'!$C$76,'BD1'!$E$75,IF(T248<'BD1'!$C$77,'BD1'!$E$76,'BD1'!$E$77)))) -> 
H249: E | M249: E | R249: E
H250: P | J250: =IF(ISERROR(IF(I251="","",IF((I251/I250)>1,1,I251/I250))),"",IF(I251="","",IF((I251/I250)>1,1,I251/I250))) ->  | K250: =IF(J250="","",(IF(J250<'BD1'!$C$76,'BD1'!$E$75,IF(J250<'BD1'!$C$77,'BD1'!$E$76,'BD1'!$E$77)))) ->  | M250: P | O250: =IF(ISERROR(IF(N251="","",IF((N251/N250)>1,1,N251/N250))),"",IF(N251="","",IF((N251/N250)>1,1,N251/N250))) ->  | P250: =IF(O250="","",(IF(O250<'BD1'!$C$76,'BD1'!$E$75,IF(O250<'BD1'!$C$77,'BD1'!$E$76,'BD1'!$E$77)))) ->  | R250: P | T250: =IF(ISERROR(IF(S251="","",IF((S251/S250)>1,1,S251/S250))),"",IF(S251="","",IF((S251/S250)>1,1,S251/S250))) ->  | U250: =IF(T250="","",(IF(T250<'BD1'!$C$76,'BD1'!$E$75,IF(T250<'BD1'!$C$77,'BD1'!$E$76,'BD1'!$E$77)))) -> 
H251: E | M251: E | R251: E
C255: CAUSAS IDENTIFICADAS
C256: 1 | E256: CAUSA RELACIONADA CON: | F256: Gestión_Contractual | I256: CAUSA: | J256: OTRA | R256: AFECTA EN EL CICLO PHVA | T256: =IF(ISERROR(INDEX('BD1'!$L$56:$N$70,MATCH(J256,INDIRECT(F256),0),MATCH(F256,'BD1'!$L$55:$N$55,0))),"",(INDEX('BD1'!$L$56:$N$70,MATCH(J256,INDIRECT(F256),0),MATCH(F256,'BD1'!$L$55:$N$55,0)))) -> -
H257: SELECCIONE AQUÍ ↑ | Q257: SELECCIONE AQUÍ ↑
E258: DESCRIPCION | L258: ACCIONES PROPUESTAS
E259: Las metas números 1, 2 y 5 obtuvieron un resultado satisfactorio en lo referente a contratación. Es importante precisar, que la información que hace parte del insumo para la elaboración de este informe es tomada del reporte del cuarto trimestre de la vigencia 2015 que se realiza por medio del SEGPLAN a la Secretaría Distrital de Planeación, de acuerdo a los términos establecidos por esta Entidad y la brindada por la Oficina Asesora de Planeación de TRANSMILENIO S.A. con corte a 31 de diciembre de 2015. Igualmente se toma como referencia la ejecución presupuestal suministrada por la Subgerencia Económica con corte a 31 de diciembre de 2015 | L259: Teniendo en cuenta la descripción anterior, no aplica la formulacion de acciones correctivas
C262: 2 | E262: CAUSA RELACIONADA CON: | F262: Gestión_Contractual | I262: CAUSA: | J262: Incumplimiento y/o modificaciones al plan contractual/ plan de compras aprobado. | R262: AFECTA EN EL CICLO PHVA | T262: =IF(ISERROR(INDEX('BD1'!$L$56:$N$70,MATCH(J262,INDIRECT(F262),0),MATCH(F262,'BD1'!$L$55:$N$55,0))),"",(INDEX('BD1'!$L$56:$N$70,MATCH(J262,INDIRECT(F262),0),MATCH(F262,'BD1'!$L$55:$N$55,0)))) -> PLANEAR
H263: SELECCIONE AQUÍ ↑ | Q263: SELECCIONE AQUÍ ↑
E264: DESCRIPCION | L264: ACCIONES PROPUESTAS
E265: Las metas numeros 3,4,6,7,9 obtuvieron un resultado aceptable en lo referente a contratación, basicamente por recorte presupuestal en la Entidad lo cual limitó la parte contractual Es importante precisar, que la información que hace parte del insumo para la elaboración de este informe es tomada del reporte del cuarto trimestre de la vigencia 2015 que se realiza por medio del SEGPLAN a la Secretaría Distrital de Planeación, de acuerdo a los términos establecidos por esta Entidad y la brindada por la Oficina Asesora de Planeación de TRANSMILENIO S.A. con corte a 31 de diciembre de 2015. Igualmente se toma como referencia la ejecucíon presupuestal suministrada por la Subgerencia Economica con corte a 31 de diciembre de 2015 | L265: Teniendo en cuenta las consideraciones sustentadas en la descripción, no aplica la formulación de acciones correctivas, no obstante, es necesario seguir adelantando acciones encaminadas al cumplimiento de la meta desde su componente contractual.
C268: 3 | E268: CAUSA RELACIONADA CON: | F268: Gestión_Contractual | I268: CAUSA: | J268: Falta de definición y/o incumplimiento de tiempos/términos al interior de la Entidad para desarrollar la contratación. | R268: AFECTA EN EL CICLO PHVA | T268: =IF(ISERROR(INDEX('BD1'!$L$56:$N$70,MATCH(J268,INDIRECT(F268),0),MATCH(F268,'BD1'!$L$55:$N$55,0))),"",(INDEX('BD1'!$L$56:$N$70,MATCH(J268,INDIRECT(F268),0),MATCH(F268,'BD1'!$L$55:$N$55,0)))) -> PLANEAR
H269: SELECCIONE AQUÍ ↑ | Q269: SELECCIONE AQUÍ ↑
... 175 more rows

Sheet F2
A1: E V A L U A C IÓ N M A P A D E R I E S G O S
C3: ENTIDAD | D3: =MENU!S9 -> Transmilenio S.A. | H3: VIGENCIA | K3: PERIODO EVALUADO
I4: SELECCIONE AQUÍ ↑ | L4: SELECCIONE AQUI ↑
D6: =IF(ISERROR(INDEX('BD1'!$C$56:$E$56,1,MATCH(C6,'BD1'!$C$55:$E$55,0))),"",(INDEX('BD1'!$C$56:$E$56,1,MATCH(C6,'BD1'!$C$55:$E$55,0)))) ->  | H6: PROGRAMA
C7: SELECCIONE EJE AQUÍ ↑ | J7: SELECCIONE AQUÍ ↑
C8: RIESGOS IDENTIFICADOS | D8: TIPO DE RIESGO | E8: CONTROLES | F8: RESULTADOS DE LA EVALUACIÓN DEL RIESGO | I8: PLAN DE MANEJO | K8: OBSERVACIONES (Resultado de Evaluaciones / Auditorías Internas)
F9: IMPACTO | G9: PROBABILIDAD | H9: ZONA DE RIESGO | I9: OPCIONES DE MANEJO | J9: ACCIONES
H10: =IF(ISERROR(INDEX('BD1'!$AE$26:$AI$30,MATCH(F10,'BD1'!$AE$25:$AI$25,0),MATCH(G10,'BD1'!$AD$26:$AD$30,0))),"",INDEX('BD1'!$AE$26:$AI$30,MATCH(F10,'BD1'!$AE$25:$AI$25,0),MATCH(G10,'BD1'!$AD$26:$AD$30,0))) ->  | I10: =IF(ISERROR(INDEX('BD1'!$AE$35:$AI$39,MATCH(F10,'BD1'!$AE$25:$AI$25,0),MATCH(G10,'BD1'!$AD$26:$AD$30,0))),"",(INDEX('BD1'!$AE$35:$AI$39,MATCH(F10,'BD1'!$AE$25:$AI$25,0),MATCH(G10,'BD1'!$AD$26:$AD$30,0)))) -> 
H11: =IF(ISERROR(INDEX('BD1'!$AE$26:$AI$30,MATCH(F11,'BD1'!$AE$25:$AI$25,0),MATCH(G11,'BD1'!$AD$26:$AD$30,0))),"",INDEX('BD1'!$AE$26:$AI$30,MATCH(F11,'BD1'!$AE$25:$AI$25,0),MATCH(G11,'BD1'!$AD$26:$AD$30,0))) ->  | I11: =IF(ISERROR(INDEX('BD1'!$AE$35:$AI$39,MATCH(F11,'BD1'!$AE$25:$AI$25,0),MATCH(G11,'BD1'!$AD$26:$AD$30,0))),"",(INDEX('BD1'!$AE$35:$AI$39,MATCH(F11,'BD1'!$AE$25:$AI$25,0),MATCH(G11,'BD1'!$AD$26:$AD$30,0)))) -> 
H12: =IF(ISERROR(INDEX('BD1'!$AE$26:$AI$30,MATCH(F12,'BD1'!$AE$25:$AI$25,0),MATCH(G12,'BD1'!$AD$26:$AD$30,0))),"",INDEX('BD1'!$AE$26:$AI$30,MATCH(F12,'BD1'!$AE$25:$AI$25,0),MATCH(G12,'BD1'!$AD$26:$AD$30,0))) ->  | I12: =IF(ISERROR(INDEX('BD1'!$AE$35:$AI$39,MATCH(F12,'BD1'!$AE$25:$AI$25,0),MATCH(G12,'BD1'!$AD$26:$AD$30,0))),"",(INDEX('BD1'!$AE$35:$AI$39,MATCH(F12,'BD1'!$AE$25:$AI$25,0),MATCH(G12,'BD1'!$AD$26:$AD$30,0)))) -> 
H13: =IF(ISERROR(INDEX('BD1'!$AE$26:$AI$30,MATCH(F13,'BD1'!$AE$25:$AI$25,0),MATCH(G13,'BD1'!$AD$26:$AD$30,0))),"",INDEX('BD1'!$AE$26:$AI$30,MATCH(F13,'BD1'!$AE$25:$AI$25,0),MATCH(G13,'BD1'!$AD$26:$AD$30,0))) ->  | I13: =IF(ISERROR(INDEX('BD1'!$AE$35:$AI$39,MATCH(F13,'BD1'!$AE$25:$AI$25,0),MATCH(G13,'BD1'!$AD$26:$AD$30,0))),"",(INDEX('BD1'!$AE$35:$AI$39,MATCH(F13,'BD1'!$AE$25:$AI$25,0),MATCH(G13,'BD1'!$AD$26:$AD$30,0)))) -> 
H14: =IF(ISERROR(INDEX('BD1'!$AE$26:$AI$30,MATCH(F14,'BD1'!$AE$25:$AI$25,0),MATCH(G14,'BD1'!$AD$26:$AD$30,0))),"",INDEX('BD1'!$AE$26:$AI$30,MATCH(F14,'BD1'!$AE$25:$AI$25,0),MATCH(G14,'BD1'!$AD$26:$AD$30,0))) ->  | I14: =IF(ISERROR(INDEX('BD1'!$AE$35:$AI$39,MATCH(F14,'BD1'!$AE$25:$AI$25,0),MATCH(G14,'BD1'!$AD$26:$AD$30,0))),"",(INDEX('BD1'!$AE$35:$AI$39,MATCH(F14,'BD1'!$AE$25:$AI$25,0),MATCH(G14,'BD1'!$AD$26:$AD$30,0)))) -> 
H15: =IF(ISERROR(INDEX('BD1'!$AE$26:$AI$30,MATCH(F15,'BD1'!$AE$25:$AI$25,0),MATCH(G15,'BD1'!$AD$26:$AD$30,0))),"",INDEX('BD1'!$AE$26:$AI$30,MATCH(F15,'BD1'!$AE$25:$AI$25,0),MATCH(G15,'BD1'!$AD$26:$AD$30,0))) ->  | I15: =IF(ISERROR(INDEX('BD1'!$AE$35:$AI$39,MATCH(F15,'BD1'!$AE$25:$AI$25,0),MATCH(G15,'BD1'!$AD$26:$AD$30,0))),"",(INDEX('BD1'!$AE$35:$AI$39,MATCH(F15,'BD1'!$AE$25:$AI$25,0),MATCH(G15,'BD1'!$AD$26:$AD$30,0)))) -> 
H16: =IF(ISERROR(INDEX('BD1'!$AE$26:$AI$30,MATCH(F16,'BD1'!$AE$25:$AI$25,0),MATCH(G16,'BD1'!$AD$26:$AD$30,0))),"",INDEX('BD1'!$AE$26:$AI$30,MATCH(F16,'BD1'!$AE$25:$AI$25,0),MATCH(G16,'BD1'!$AD$26:$AD$30,0))) ->  | I16: =IF(ISERROR(INDEX('BD1'!$AE$35:$AI$39,MATCH(F16,'BD1'!$AE$25:$AI$25,0),MATCH(G16,'BD1'!$AD$26:$AD$30,0))),"",(INDEX('BD1'!$AE$35:$AI$39,MATCH(F16,'BD1'!$AE$25:$AI$25,0),MATCH(G16,'BD1'!$AD$26:$AD$30,0)))) -> 
H17: =IF(ISERROR(INDEX('BD1'!$AE$26:$AI$30,MATCH(F17,'BD1'!$AE$25:$AI$25,0),MATCH(G17,'BD1'!$AD$26:$AD$30,0))),"",INDEX('BD1'!$AE$26:$AI$30,MATCH(F17,'BD1'!$AE$25:$AI$25,0),MATCH(G17,'BD1'!$AD$26:$AD$30,0))) ->  | I17: =IF(ISERROR(INDEX('BD1'!$AE$35:$AI$39,MATCH(F17,'BD1'!$AE$25:$AI$25,0),MATCH(G17,'BD1'!$AD$26:$AD$30,0))),"",(INDEX('BD1'!$AE$35:$AI$39,MATCH(F17,'BD1'!$AE$25:$AI$25,0),MATCH(G17,'BD1'!$AD$26:$AD$30,0)))) -> 
H18: =IF(ISERROR(INDEX('BD1'!$AE$26:$AI$30,MATCH(F18,'BD1'!$AE$25:$AI$25,0),MATCH(G18,'BD1'!$AD$26:$AD$30,0))),"",INDEX('BD1'!$AE$26:$AI$30,MATCH(F18,'BD1'!$AE$25:$AI$25,0),MATCH(G18,'BD1'!$AD$26:$AD$30,0))) ->  | I18: =IF(ISERROR(INDEX('BD1'!$AE$35:$AI$39,MATCH(F18,'BD1'!$AE$25:$AI$25,0),MATCH(G18,'BD1'!$AD$26:$AD$30,0))),"",(INDEX('BD1'!$AE$35:$AI$39,MATCH(F18,'BD1'!$AE$25:$AI$25,0),MATCH(G18,'BD1'!$AD$26:$AD$30,0)))) -> 
H19: =IF(ISERROR(INDEX('BD1'!$AE$26:$AI$30,MATCH(F19,'BD1'!$AE$25:$AI$25,0),MATCH(G19,'BD1'!$AD$26:$AD$30,0))),"",INDEX('BD1'!$AE$26:$AI$30,MATCH(F19,'BD1'!$AE$25:$AI$25,0),MATCH(G19,'BD1'!$AD$26:$AD$30,0))) ->  | I19: =IF(ISERROR(INDEX('BD1'!$AE$35:$AI$39,MATCH(F19,'BD1'!$AE$25:$AI$25,0),MATCH(G19,'BD1'!$AD$26:$AD$30,0))),"",(INDEX('BD1'!$AE$35:$AI$39,MATCH(F19,'BD1'!$AE$25:$AI$25,0),MATCH(G19,'BD1'!$AD$26:$AD$30,0)))) -> 
H20: =IF(ISERROR(INDEX('BD1'!$AE$26:$AI$30,MATCH(F20,'BD1'!$AE$25:$AI$25,0),MATCH(G20,'BD1'!$AD$26:$AD$30,0))),"",INDEX('BD1'!$AE$26:$AI$30,MATCH(F20,'BD1'!$AE$25:$AI$25,0),MATCH(G20,'BD1'!$AD$26:$AD$30,0))) ->  | I20: =IF(ISERROR(INDEX('BD1'!$AE$35:$AI$39,MATCH(F20,'BD1'!$AE$25:$AI$25,0),MATCH(G20,'BD1'!$AD$26:$AD$30,0))),"",(INDEX('BD1'!$AE$35:$AI$39,MATCH(F20,'BD1'!$AE$25:$AI$25,0),MATCH(G20,'BD1'!$AD$26:$AD$30,0)))) -> 
H21: =IF(ISERROR(INDEX('BD1'!$AE$26:$AI$30,MATCH(F21,'BD1'!$AE$25:$AI$25,0),MATCH(G21,'BD1'!$AD$26:$AD$30,0))),"",INDEX('BD1'!$AE$26:$AI$30,MATCH(F21,'BD1'!$AE$25:$AI$25,0),MATCH(G21,'BD1'!$AD$26:$AD$30,0))) ->  | I21: =IF(ISERROR(INDEX('BD1'!$AE$35:$AI$39,MATCH(F21,'BD1'!$AE$25:$AI$25,0),MATCH(G21,'BD1'!$AD$26:$AD$30,0))),"",(INDEX('BD1'!$AE$35:$AI$39,MATCH(F21,'BD1'!$AE$25:$AI$25,0),MATCH(G21,'BD1'!$AD$26:$AD$30,0)))) -> 
H22: =IF(ISERROR(INDEX('BD1'!$AE$26:$AI$30,MATCH(F22,'BD1'!$AE$25:$AI$25,0),MATCH(G22,'BD1'!$AD$26:$AD$30,0))),"",INDEX('BD1'!$AE$26:$AI$30,MATCH(F22,'BD1'!$AE$25:$AI$25,0),MATCH(G22,'BD1'!$AD$26:$AD$30,0))) ->  | I22: =IF(ISERROR(INDEX('BD1'!$AE$35:$AI$39,MATCH(F22,'BD1'!$AE$25:$AI$25,0),MATCH(G22,'BD1'!$AD$26:$AD$30,0))),"",(INDEX('BD1'!$AE$35:$AI$39,MATCH(F22,'BD1'!$AE$25:$AI$25,0),MATCH(G22,'BD1'!$AD$26:$AD$30,0)))) -> 
H23: =IF(ISERROR(INDEX('BD1'!$AE$26:$AI$30,MATCH(F23,'BD1'!$AE$25:$AI$25,0),MATCH(G23,'BD1'!$AD$26:$AD$30,0))),"",INDEX('BD1'!$AE$26:$AI$30,MATCH(F23,'BD1'!$AE$25:$AI$25,0),MATCH(G23,'BD1'!$AD$26:$AD$30,0))) ->  | I23: =IF(ISERROR(INDEX('BD1'!$AE$35:$AI$39,MATCH(F23,'BD1'!$AE$25:$AI$25,0),MATCH(G23,'BD1'!$AD$26:$AD$30,0))),"",(INDEX('BD1'!$AE$35:$AI$39,MATCH(F23,'BD1'!$AE$25:$AI$25,0),MATCH(G23,'BD1'!$AD$26:$AD$30,0)))) -> 
H24: =IF(ISERROR(INDEX('BD1'!$AE$26:$AI$30,MATCH(F24,'BD1'!$AE$25:$AI$25,0),MATCH(G24,'BD1'!$AD$26:$AD$30,0))),"",INDEX('BD1'!$AE$26:$AI$30,MATCH(F24,'BD1'!$AE$25:$AI$25,0),MATCH(G24,'BD1'!$AD$26:$AD$30,0))) ->  | I24: =IF(ISERROR(INDEX('BD1'!$AE$35:$AI$39,MATCH(F24,'BD1'!$AE$25:$AI$25,0),MATCH(G24,'BD1'!$AD$26:$AD$30,0))),"",(INDEX('BD1'!$AE$35:$AI$39,MATCH(F24,'BD1'!$AE$25:$AI$25,0),MATCH(G24,'BD1'!$AD$26:$AD$30,0)))) -> 
H25: =IF(ISERROR(INDEX('BD1'!$AE$26:$AI$30,MATCH(F25,'BD1'!$AE$25:$AI$25,0),MATCH(G25,'BD1'!$AD$26:$AD$30,0))),"",INDEX('BD1'!$AE$26:$AI$30,MATCH(F25,'BD1'!$AE$25:$AI$25,0),MATCH(G25,'BD1'!$AD$26:$AD$30,0))) ->  | I25: =IF(ISERROR(INDEX('BD1'!$AE$35:$AI$39,MATCH(F25,'BD1'!$AE$25:$AI$25,0),MATCH(G25,'BD1'!$AD$26:$AD$30,0))),"",(INDEX('BD1'!$AE$35:$AI$39,MATCH(F25,'BD1'!$AE$25:$AI$25,0),MATCH(G25,'BD1'!$AD$26:$AD$30,0)))) -> 
D29: =IF(ISERROR(INDEX('BD1'!$C$56:$E$56,1,MATCH(C29,'BD1'!$C$55:$E$55,0))),"",(INDEX('BD1'!$C$56:$E$56,1,MATCH(C29,'BD1'!$C$55:$E$55,0)))) ->  | H29: PROGRAMA
C30: SELECCIONE EJE AQUÍ ↑ | J30: SELECCIONE AQUÍ ↑
C31: RIESGOS IDENTIFICADOS | D31: TIPO DE RIESGO | E31: CONTROLES | F31: RESULTADOS DE LA EVALUACIÓN DEL RIESGO | I31: PLAN DE MANEJO | K31: OBSERVACIONES (Resultado de Evaluaciones / Auditorías Internas)
F32: IMPACTO | G32: PROBABILIDAD | H32: ZONA DE RIESGO | I32: OPCIONES DE MANEJO | J32: ACCIONES
H33: =IF(ISERROR(INDEX('BD1'!$AE$26:$AI$30,MATCH(F33,'BD1'!$AE$25:$AI$25,0),MATCH(G33,'BD1'!$AD$26:$AD$30,0))),"",INDEX('BD1'!$AE$26:$AI$30,MATCH(F33,'BD1'!$AE$25:$AI$25,0),MATCH(G33,'BD1'!$AD$26:$AD$30,0))) ->  | I33: =IF(ISERROR(INDEX('BD1'!$AE$35:$AI$39,MATCH(F33,'BD1'!$AE$25:$AI$25,0),MATCH(G33,'BD1'!$AD$26:$AD$30,0))),"",(INDEX('BD1'!$AE$35:$AI$39,MATCH(F33,'BD1'!$AE$25:$AI$25,0),MATCH(G33,'BD1'!$AD$26:$AD$30,0)))) -> 
H34: =IF(ISERROR(INDEX('BD1'!$AE$26:$AI$30,MATCH(F34,'BD1'!$AE$25:$AI$25,0),MATCH(G34,'BD1'!$AD$26:$AD$30,0))),"",INDEX('BD1'!$AE$26:$AI$30,MATCH(F34,'BD1'!$AE$25:$AI$25,0),MATCH(G34,'BD1'!$AD$26:$AD$30,0))) ->  | I34: =IF(ISERROR(INDEX('BD1'!$AE$35:$AI$39,MATCH(F34,'BD1'!$AE$25:$AI$25,0),MATCH(G34,'BD1'!$AD$26:$AD$30,0))),"",(INDEX('BD1'!$AE$35:$AI$39,MATCH(F34,'BD1'!$AE$25:$AI$25,0),MATCH(G34,'BD1'!$AD$26:$AD$30,0)))) -> 
H35: =IF(ISERROR(INDEX('BD1'!$AE$26:$AI$30,MATCH(F35,'BD1'!$AE$25:$AI$25,0),MATCH(G35,'BD1'!$AD$26:$AD$30,0))),"",INDEX('BD1'!$AE$26:$AI$30,MATCH(F35,'BD1'!$AE$25:$AI$25,0),MATCH(G35,'BD1'!$AD$26:$AD$30,0))) ->  | I35: =IF(ISERROR(INDEX('BD1'!$AE$35:$AI$39,MATCH(F35,'BD1'!$AE$25:$AI$25,0),MATCH(G35,'BD1'!$AD$26:$AD$30,0))),"",(INDEX('BD1'!$AE$35:$AI$39,MATCH(F35,'BD1'!$AE$25:$AI$25,0),MATCH(G35,'BD1'!$AD$26:$AD$30,0)))) -> 
H36: =IF(ISERROR(INDEX('BD1'!$AE$26:$AI$30,MATCH(F36,'BD1'!$AE$25:$AI$25,0),MATCH(G36,'BD1'!$AD$26:$AD$30,0))),"",INDEX('BD1'!$AE$26:$AI$30,MATCH(F36,'BD1'!$AE$25:$AI$25,0),MATCH(G36,'BD1'!$AD$26:$AD$30,0))) ->  | I36: =IF(ISERROR(INDEX('BD1'!$AE$35:$AI$39,MATCH(F36,'BD1'!$AE$25:$AI$25,0),MATCH(G36,'BD1'!$AD$26:$AD$30,0))),"",(INDEX('BD1'!$AE$35:$AI$39,MATCH(F36,'BD1'!$AE$25:$AI$25,0),MATCH(G36,'BD1'!$AD$26:$AD$30,0)))) -> 
H37: =IF(ISERROR(INDEX('BD1'!$AE$26:$AI$30,MATCH(F37,'BD1'!$AE$25:$AI$25,0),MATCH(G37,'BD1'!$AD$26:$AD$30,0))),"",INDEX('BD1'!$AE$26:$AI$30,MATCH(F37,'BD1'!$AE$25:$AI$25,0),MATCH(G37,'BD1'!$AD$26:$AD$30,0))) ->  | I37: =IF(ISERROR(INDEX('BD1'!$AE$35:$AI$39,MATCH(F37,'BD1'!$AE$25:$AI$25,0),MATCH(G37,'BD1'!$AD$26:$AD$30,0))),"",(INDEX('BD1'!$AE$35:$AI$39,MATCH(F37,'BD1'!$AE$25:$AI$25,0),MATCH(G37,'BD1'!$AD$26:$AD$30,0)))) -> 
H38: =IF(ISERROR(INDEX('BD1'!$AE$26:$AI$30,MATCH(F38,'BD1'!$AE$25:$AI$25,0),MATCH(G38,'BD1'!$AD$26:$AD$30,0))),"",INDEX('BD1'!$AE$26:$AI$30,MATCH(F38,'BD1'!$AE$25:$AI$25,0),MATCH(G38,'BD1'!$AD$26:$AD$30,0))) ->  | I38: =IF(ISERROR(INDEX('BD1'!$AE$35:$AI$39,MATCH(F38,'BD1'!$AE$25:$AI$25,0),MATCH(G38,'BD1'!$AD$26:$AD$30,0))),"",(INDEX('BD1'!$AE$35:$AI$39,MATCH(F38,'BD1'!$AE$25:$AI$25,0),MATCH(G38,'BD1'!$AD$26:$AD$30,0)))) -> 
H39: =IF(ISERROR(INDEX('BD1'!$AE$26:$AI$30,MATCH(F39,'BD1'!$AE$25:$AI$25,0),MATCH(G39,'BD1'!$AD$26:$AD$30,0))),"",INDEX('BD1'!$AE$26:$AI$30,MATCH(F39,'BD1'!$AE$25:$AI$25,0),MATCH(G39,'BD1'!$AD$26:$AD$30,0))) ->  | I39: =IF(ISERROR(INDEX('BD1'!$AE$35:$AI$39,MATCH(F39,'BD1'!$AE$25:$AI$25,0),MATCH(G39,'BD1'!$AD$26:$AD$30,0))),"",(INDEX('BD1'!$AE$35:$AI$39,MATCH(F39,'BD1'!$AE$25:$AI$25,0),MATCH(G39,'BD1'!$AD$26:$AD$30,0)))) -> 
H40: =IF(ISERROR(INDEX('BD1'!$AE$26:$AI$30,MATCH(F40,'BD1'!$AE$25:$AI$25,0),MATCH(G40,'BD1'!$AD$26:$AD$30,0))),"",INDEX('BD1'!$AE$26:$AI$30,MATCH(F40,'BD1'!$AE$25:$AI$25,0),MATCH(G40,'BD1'!$AD$26:$AD$30,0))) ->  | I40: =IF(ISERROR(INDEX('BD1'!$AE$35:$AI$39,MATCH(F40,'BD1'!$AE$25:$AI$25,0),MATCH(G40,'BD1'!$AD$26:$AD$30,0))),"",(INDEX('BD1'!$AE$35:$AI$39,MATCH(F40,'BD1'!$AE$25:$AI$25,0),MATCH(G40,'BD1'!$AD$26:$AD$30,0)))) -> 
H41: =IF(ISERROR(INDEX('BD1'!$AE$26:$AI$30,MATCH(F41,'BD1'!$AE$25:$AI$25,0),MATCH(G41,'BD1'!$AD$26:$AD$30,0))),"",INDEX('BD1'!$AE$26:$AI$30,MATCH(F41,'BD1'!$AE$25:$AI$25,0),MATCH(G41,'BD1'!$AD$26:$AD$30,0))) ->  | I41: =IF(ISERROR(INDEX('BD1'!$AE$35:$AI$39,MATCH(F41,'BD1'!$AE$25:$AI$25,0),MATCH(G41,'BD1'!$AD$26:$AD$30,0))),"",(INDEX('BD1'!$AE$35:$AI$39,MATCH(F41,'BD1'!$AE$25:$AI$25,0),MATCH(G41,'BD1'!$AD$26:$AD$30,0)))) -> 
H42: =IF(ISERROR(INDEX('BD1'!$AE$26:$AI$30,MATCH(F42,'BD1'!$AE$25:$AI$25,0),MATCH(G42,'BD1'!$AD$26:$AD$30,0))),"",INDEX('BD1'!$AE$26:$AI$30,MATCH(F42,'BD1'!$AE$25:$AI$25,0),MATCH(G42,'BD1'!$AD$26:$AD$30,0))) ->  | I42: =IF(ISERROR(INDEX('BD1'!$AE$35:$AI$39,MATCH(F42,'BD1'!$AE$25:$AI$25,0),MATCH(G42,'BD1'!$AD$26:$AD$30,0))),"",(INDEX('BD1'!$AE$35:$AI$39,MATCH(F42,'BD1'!$AE$25:$AI$25,0),MATCH(G42,'BD1'!$AD$26:$AD$30,0)))) -> 
H43: =IF(ISERROR(INDEX('BD1'!$AE$26:$AI$30,MATCH(F43,'BD1'!$AE$25:$AI$25,0),MATCH(G43,'BD1'!$AD$26:$AD$30,0))),"",INDEX('BD1'!$AE$26:$AI$30,MATCH(F43,'BD1'!$AE$25:$AI$25,0),MATCH(G43,'BD1'!$AD$26:$AD$30,0))) ->  | I43: =IF(ISERROR(INDEX('BD1'!$AE$35:$AI$39,MATCH(F43,'BD1'!$AE$25:$AI$25,0),MATCH(G43,'BD1'!$AD$26:$AD$30,0))),"",(INDEX('BD1'!$AE$35:$AI$39,MATCH(F43,'BD1'!$AE$25:$AI$25,0),MATCH(G43,'BD1'!$AD$26:$AD$30,0)))) -> 
H44: =IF(ISERROR(INDEX('BD1'!$AE$26:$AI$30,MATCH(F44,'BD1'!$AE$25:$AI$25,0),MATCH(G44,'BD1'!$AD$26:$AD$30,0))),"",INDEX('BD1'!$AE$26:$AI$30,MATCH(F44,'BD1'!$AE$25:$AI$25,0),MATCH(G44,'BD1'!$AD$26:$AD$30,0))) ->  | I44: =IF(ISERROR(INDEX('BD1'!$AE$35:$AI$39,MATCH(F44,'BD1'!$AE$25:$AI$25,0),MATCH(G44,'BD1'!$AD$26:$AD$30,0))),"",(INDEX('BD1'!$AE$35:$AI$39,MATCH(F44,'BD1'!$AE$25:$AI$25,0),MATCH(G44,'BD1'!$AD$26:$AD$30,0)))) -> 
H45: =IF(ISERROR(INDEX('BD1'!$AE$26:$AI$30,MATCH(F45,'BD1'!$AE$25:$AI$25,0),MATCH(G45,'BD1'!$AD$26:$AD$30,0))),"",INDEX('BD1'!$AE$26:$AI$30,MATCH(F45,'BD1'!$AE$25:$AI$25,0),MATCH(G45,'BD1'!$AD$26:$AD$30,0))) ->  | I45: =IF(ISERROR(INDEX('BD1'!$AE$35:$AI$39,MATCH(F45,'BD1'!$AE$25:$AI$25,0),MATCH(G45,'BD1'!$AD$26:$AD$30,0))),"",(INDEX('BD1'!$AE$35:$AI$39,MATCH(F45,'BD1'!$AE$25:$AI$25,0),MATCH(G45,'BD1'!$AD$26:$AD$30,0)))) -> 
H46: =IF(ISERROR(INDEX('BD1'!$AE$26:$AI$30,MATCH(F46,'BD1'!$AE$25:$AI$25,0),MATCH(G46,'BD1'!$AD$26:$AD$30,0))),"",INDEX('BD1'!$AE$26:$AI$30,MATCH(F46,'BD1'!$AE$25:$AI$25,0),MATCH(G46,'BD1'!$AD$26:$AD$30,0))) ->  | I46: =IF(ISERROR(INDEX('BD1'!$AE$35:$AI$39,MATCH(F46,'BD1'!$AE$25:$AI$25,0),MATCH(G46,'BD1'!$AD$26:$AD$30,0))),"",(INDEX('BD1'!$AE$35:$AI$39,MATCH(F46,'BD1'!$AE$25:$AI$25,0),MATCH(G46,'BD1'!$AD$26:$AD$30,0)))) -> 
H47: =IF(ISERROR(INDEX('BD1'!$AE$26:$AI$30,MATCH(F47,'BD1'!$AE$25:$AI$25,0),MATCH(G47,'BD1'!$AD$26:$AD$30,0))),"",INDEX('BD1'!$AE$26:$AI$30,MATCH(F47,'BD1'!$AE$25:$AI$25,0),MATCH(G47,'BD1'!$AD$26:$AD$30,0))) ->  | I47: =IF(ISERROR(INDEX('BD1'!$AE$35:$AI$39,MATCH(F47,'BD1'!$AE$25:$AI$25,0),MATCH(G47,'BD1'!$AD$26:$AD$30,0))),"",(INDEX('BD1'!$AE$35:$AI$39,MATCH(F47,'BD1'!$AE$25:$AI$25,0),MATCH(G47,'BD1'!$AD$26:$AD$30,0)))) -> 
H48: =IF(ISERROR(INDEX('BD1'!$AE$26:$AI$30,MATCH(F48,'BD1'!$AE$25:$AI$25,0),MATCH(G48,'BD1'!$AD$26:$AD$30,0))),"",INDEX('BD1'!$AE$26:$AI$30,MATCH(F48,'BD1'!$AE$25:$AI$25,0),MATCH(G48,'BD1'!$AD$26:$AD$30,0))) ->  | I48: =IF(ISERROR(INDEX('BD1'!$AE$35:$AI$39,MATCH(F48,'BD1'!$AE$25:$AI$25,0),MATCH(G48,'BD1'!$AD$26:$AD$30,0))),"",(INDEX('BD1'!$AE$35:$AI$39,MATCH(F48,'BD1'!$AE$25:$AI$25,0),MATCH(G48,'BD1'!$AD$26:$AD$30,0)))) -> 
D52: =IF(ISERROR(INDEX('BD1'!$C$56:$E$56,1,MATCH(C52,'BD1'!$C$55:$E$55,0))),"",(INDEX('BD1'!$C$56:$E$56,1,MATCH(C52,'BD1'!$C$55:$E$55,0)))) ->  | H52: PROGRAMA
C53: SELECCIONE EJE AQUÍ ↑ | J53: SELECCIONE AQUÍ ↑
C54: RIESGOS IDENTIFICADOS | D54: TIPO DE RIESGO | E54: CONTROLES | F54: RESULTADOS DE LA EVALUACIÓN DEL RIESGO | I54: PLAN DE MANEJO | K54: OBSERVACIONES (Resultado de Evaluaciones / Auditorías Internas)
F55: IMPACTO | G55: PROBABILIDAD | H55: ZONA DE RIESGO | I55: OPCIONES DE MANEJO | J55: ACCIONES
H56: =IF(ISERROR(INDEX('BD1'!$AE$26:$AI$30,MATCH(F56,'BD1'!$AE$25:$AI$25,0),MATCH(G56,'BD1'!$AD$26:$AD$30,0))),"",INDEX('BD1'!$AE$26:$AI$30,MATCH(F56,'BD1'!$AE$25:$AI$25,0),MATCH(G56,'BD1'!$AD$26:$AD$30,0))) ->  | I56: =IF(ISERROR(INDEX('BD1'!$AE$35:$AI$39,MATCH(F56,'BD1'!$AE$25:$AI$25,0),MATCH(G56,'BD1'!$AD$26:$AD$30,0))),"",(INDEX('BD1'!$AE$35:$AI$39,MATCH(F56,'BD1'!$AE$25:$AI$25,0),MATCH(G56,'BD1'!$AD$26:$AD$30,0)))) -> 
H57: =IF(ISERROR(INDEX('BD1'!$AE$26:$AI$30,MATCH(F57,'BD1'!$AE$25:$AI$25,0),MATCH(G57,'BD1'!$AD$26:$AD$30,0))),"",INDEX('BD1'!$AE$26:$AI$30,MATCH(F57,'BD1'!$AE$25:$AI$25,0),MATCH(G57,'BD1'!$AD$26:$AD$30,0))) ->  | I57: =IF(ISERROR(INDEX('BD1'!$AE$35:$AI$39,MATCH(F57,'BD1'!$AE$25:$AI$25,0),MATCH(G57,'BD1'!$AD$26:$AD$30,0))),"",(INDEX('BD1'!$AE$35:$AI$39,MATCH(F57,'BD1'!$AE$25:$AI$25,0),MATCH(G57,'BD1'!$AD$26:$AD$30,0)))) -> 
H58: =IF(ISERROR(INDEX('BD1'!$AE$26:$AI$30,MATCH(F58,'BD1'!$AE$25:$AI$25,0),MATCH(G58,'BD1'!$AD$26:$AD$30,0))),"",INDEX('BD1'!$AE$26:$AI$30,MATCH(F58,'BD1'!$AE$25:$AI$25,0),MATCH(G58,'BD1'!$AD$26:$AD$30,0))) ->  | I58: =IF(ISERROR(INDEX('BD1'!$AE$35:$AI$39,MATCH(F58,'BD1'!$AE$25:$AI$25,0),MATCH(G58,'BD1'!$AD$26:$AD$30,0))),"",(INDEX('BD1'!$AE$35:$AI$39,MATCH(F58,'BD1'!$AE$25:$AI$25,0),MATCH(G58,'BD1'!$AD$26:$AD$30,0)))) -> 
H59: =IF(ISERROR(INDEX('BD1'!$AE$26:$AI$30,MATCH(F59,'BD1'!$AE$25:$AI$25,0),MATCH(G59,'BD1'!$AD$26:$AD$30,0))),"",INDEX('BD1'!$AE$26:$AI$30,MATCH(F59,'BD1'!$AE$25:$AI$25,0),MATCH(G59,'BD1'!$AD$26:$AD$30,0))) ->  | I59: =IF(ISERROR(INDEX('BD1'!$AE$35:$AI$39,MATCH(F59,'BD1'!$AE$25:$AI$25,0),MATCH(G59,'BD1'!$AD$26:$AD$30,0))),"",(INDEX('BD1'!$AE$35:$AI$39,MATCH(F59,'BD1'!$AE$25:$AI$25,0),MATCH(G59,'BD1'!$AD$26:$AD$30,0)))) -> 
H60: =IF(ISERROR(INDEX('BD1'!$AE$26:$AI$30,MATCH(F60,'BD1'!$AE$25:$AI$25,0),MATCH(G60,'BD1'!$AD$26:$AD$30,0))),"",INDEX('BD1'!$AE$26:$AI$30,MATCH(F60,'BD1'!$AE$25:$AI$25,0),MATCH(G60,'BD1'!$AD$26:$AD$30,0))) ->  | I60: =IF(ISERROR(INDEX('BD1'!$AE$35:$AI$39,MATCH(F60,'BD1'!$AE$25:$AI$25,0),MATCH(G60,'BD1'!$AD$26:$AD$30,0))),"",(INDEX('BD1'!$AE$35:$AI$39,MATCH(F60,'BD1'!$AE$25:$AI$25,0),MATCH(G60,'BD1'!$AD$26:$AD$30,0)))) -> 
H61: =IF(ISERROR(INDEX('BD1'!$AE$26:$AI$30,MATCH(F61,'BD1'!$AE$25:$AI$25,0),MATCH(G61,'BD1'!$AD$26:$AD$30,0))),"",INDEX('BD1'!$AE$26:$AI$30,MATCH(F61,'BD1'!$AE$25:$AI$25,0),MATCH(G61,'BD1'!$AD$26:$AD$30,0))) ->  | I61: =IF(ISERROR(INDEX('BD1'!$AE$35:$AI$39,MATCH(F61,'BD1'!$AE$25:$AI$25,0),MATCH(G61,'BD1'!$AD$26:$AD$30,0))),"",(INDEX('BD1'!$AE$35:$AI$39,MATCH(F61,'BD1'!$AE$25:$AI$25,0),MATCH(G61,'BD1'!$AD$26:$AD$30,0)))) -> 
H62: =IF(ISERROR(INDEX('BD1'!$AE$26:$AI$30,MATCH(F62,'BD1'!$AE$25:$AI$25,0),MATCH(G62,'BD1'!$AD$26:$AD$30,0))),"",INDEX('BD1'!$AE$26:$AI$30,MATCH(F62,'BD1'!$AE$25:$AI$25,0),MATCH(G62,'BD1'!$AD$26:$AD$30,0))) ->  | I62: =IF(ISERROR(INDEX('BD1'!$AE$35:$AI$39,MATCH(F62,'BD1'!$AE$25:$AI$25,0),MATCH(G62,'BD1'!$AD$26:$AD$30,0))),"",(INDEX('BD1'!$AE$35:$AI$39,MATCH(F62,'BD1'!$AE$25:$AI$25,0),MATCH(G62,'BD1'!$AD$26:$AD$30,0)))) -> 
H63: =IF(ISERROR(INDEX('BD1'!$AE$26:$AI$30,MATCH(F63,'BD1'!$AE$25:$AI$25,0),MATCH(G63,'BD1'!$AD$26:$AD$30,0))),"",INDEX('BD1'!$AE$26:$AI$30,MATCH(F63,'BD1'!$AE$25:$AI$25,0),MATCH(G63,'BD1'!$AD$26:$AD$30,0))) ->  | I63: =IF(ISERROR(INDEX('BD1'!$AE$35:$AI$39,MATCH(F63,'BD1'!$AE$25:$AI$25,0),MATCH(G63,'BD1'!$AD$26:$AD$30,0))),"",(INDEX('BD1'!$AE$35:$AI$39,MATCH(F63,'BD1'!$AE$25:$AI$25,0),MATCH(G63,'BD1'!$AD$26:$AD$30,0)))) -> 
H64: =IF(ISERROR(INDEX('BD1'!$AE$26:$AI$30,MATCH(F64,'BD1'!$AE$25:$AI$25,0),MATCH(G64,'BD1'!$AD$26:$AD$30,0))),"",INDEX('BD1'!$AE$26:$AI$30,MATCH(F64,'BD1'!$AE$25:$AI$25,0),MATCH(G64,'BD1'!$AD$26:$AD$30,0))) ->  | I64: =IF(ISERROR(INDEX('BD1'!$AE$35:$AI$39,MATCH(F64,'BD1'!$AE$25:$AI$25,0),MATCH(G64,'BD1'!$AD$26:$AD$30,0))),"",(INDEX('BD1'!$AE$35:$AI$39,MATCH(F64,'BD1'!$AE$25:$AI$25,0),MATCH(G64,'BD1'!$AD$26:$AD$30,0)))) -> 
H65: =IF(ISERROR(INDEX('BD1'!$AE$26:$AI$30,MATCH(F65,'BD1'!$AE$25:$AI$25,0),MATCH(G65,'BD1'!$AD$26:$AD$30,0))),"",INDEX('BD1'!$AE$26:$AI$30,MATCH(F65,'BD1'!$AE$25:$AI$25,0),MATCH(G65,'BD1'!$AD$26:$AD$30,0))) ->  | I65: =IF(ISERROR(INDEX('BD1'!$AE$35:$AI$39,MATCH(F65,'BD1'!$AE$25:$AI$25,0),MATCH(G65,'BD1'!$AD$26:$AD$30,0))),"",(INDEX('BD1'!$AE$35:$AI$39,MATCH(F65,'BD1'!$AE$25:$AI$25,0),MATCH(G65,'BD1'!$AD$26:$AD$30,0)))) -> 
H66: =IF(ISERROR(INDEX('BD1'!$AE$26:$AI$30,MATCH(F66,'BD1'!$AE$25:$AI$25,0),MATCH(G66,'BD1'!$AD$26:$AD$30,0))),"",INDEX('BD1'!$AE$26:$AI$30,MATCH(F66,'BD1'!$AE$25:$AI$25,0),MATCH(G66,'BD1'!$AD$26:$AD$30,0))) ->  | I66: =IF(ISERROR(INDEX('BD1'!$AE$35:$AI$39,MATCH(F66,'BD1'!$AE$25:$AI$25,0),MATCH(G66,'BD1'!$AD$26:$AD$30,0))),"",(INDEX('BD1'!$AE$35:$AI$39,MATCH(F66,'BD1'!$AE$25:$AI$25,0),MATCH(G66,'BD1'!$AD$26:$AD$30,0)))) -> 
H67: =IF(ISERROR(INDEX('BD1'!$AE$26:$AI$30,MATCH(F67,'BD1'!$AE$25:$AI$25,0),MATCH(G67,'BD1'!$AD$26:$AD$30,0))),"",INDEX('BD1'!$AE$26:$AI$30,MATCH(F67,'BD1'!$AE$25:$AI$25,0),MATCH(G67,'BD1'!$AD$26:$AD$30,0))) ->  | I67: =IF(ISERROR(INDEX('BD1'!$AE$35:$AI$39,MATCH(F67,'BD1'!$AE$25:$AI$25,0),MATCH(G67,'BD1'!$AD$26:$AD$30,0))),"",(INDEX('BD1'!$AE$35:$AI$39,MATCH(F67,'BD1'!$AE$25:$AI$25,0),MATCH(G67,'BD1'!$AD$26:$AD$30,0)))) -> 
H68: =IF(ISERROR(INDEX('BD1'!$AE$26:$AI$30,MATCH(F68,'BD1'!$AE$25:$AI$25,0),MATCH(G68,'BD1'!$AD$26:$AD$30,0))),"",INDEX('BD1'!$AE$26:$AI$30,MATCH(F68,'BD1'!$AE$25:$AI$25,0),MATCH(G68,'BD1'!$AD$26:$AD$30,0))) ->  | I68: =IF(ISERROR(INDEX('BD1'!$AE$35:$AI$39,MATCH(F68,'BD1'!$AE$25:$AI$25,0),MATCH(G68,'BD1'!$AD$26:$AD$30,0))),"",(INDEX('BD1'!$AE$35:$AI$39,MATCH(F68,'BD1'!$AE$25:$AI$25,0),MATCH(G68,'BD1'!$AD$26:$AD$30,0)))) -> 
H69: =IF(ISERROR(INDEX('BD1'!$AE$26:$AI$30,MATCH(F69,'BD1'!$AE$25:$AI$25,0),MATCH(G69,'BD1'!$AD$26:$AD$30,0))),"",INDEX('BD1'!$AE$26:$AI$30,MATCH(F69,'BD1'!$AE$25:$AI$25,0),MATCH(G69,'BD1'!$AD$26:$AD$30,0))) ->  | I69: =IF(ISERROR(INDEX('BD1'!$AE$35:$AI$39,MATCH(F69,'BD1'!$AE$25:$AI$25,0),MATCH(G69,'BD1'!$AD$26:$AD$30,0))),"",(INDEX('BD1'!$AE$35:$AI$39,MATCH(F69,'BD1'!$AE$25:$AI$25,0),MATCH(G69,'BD1'!$AD$26:$AD$30,0)))) -> 
H70: =IF(ISERROR(INDEX('BD1'!$AE$26:$AI$30,MATCH(F70,'BD1'!$AE$25:$AI$25,0),MATCH(G70,'BD1'!$AD$26:$AD$30,0))),"",INDEX('BD1'!$AE$26:$AI$30,MATCH(F70,'BD1'!$AE$25:$AI$25,0),MATCH(G70,'BD1'!$AD$26:$AD$30,0))) ->  | I70: =IF(ISERROR(INDEX('BD1'!$AE$35:$AI$39,MATCH(F70,'BD1'!$AE$25:$AI$25,0),MATCH(G70,'BD1'!$AD$26:$AD$30,0))),"",(INDEX('BD1'!$AE$35:$AI$39,MATCH(F70,'BD1'!$AE$25:$AI$25,0),MATCH(G70,'BD1'!$AD$26:$AD$30,0)))) -> 
H71: =IF(ISERROR(INDEX('BD1'!$AE$26:$AI$30,MATCH(F71,'BD1'!$AE$25:$AI$25,0),MATCH(G71,'BD1'!$AD$26:$AD$30,0))),"",INDEX('BD1'!$AE$26:$AI$30,MATCH(F71,'BD1'!$AE$25:$AI$25,0),MATCH(G71,'BD1'!$AD$26:$AD$30,0))) ->  | I71: =IF(ISERROR(INDEX('BD1'!$AE$35:$AI$39,MATCH(F71,'BD1'!$AE$25:$AI$25,0),MATCH(G71,'BD1'!$AD$26:$AD$30,0))),"",(INDEX('BD1'!$AE$35:$AI$39,MATCH(F71,'BD1'!$AE$25:$AI$25,0),MATCH(G71,'BD1'!$AD$26:$AD$30,0)))) -> 
D75: =IF(ISERROR(INDEX('BD1'!$C$56:$E$56,1,MATCH(C75,'BD1'!$C$55:$E$55,0))),"",(INDEX('BD1'!$C$56:$E$56,1,MATCH(C75,'BD1'!$C$55:$E$55,0)))) ->  | H75: PROGRAMA
C76: SELECCIONE EJE AQUÍ ↑ | J76: SELECCIONE AQUÍ ↑
C77: RIESGOS IDENTIFICADOS | D77: TIPO DE RIESGO | E77: CONTROLES | F77: RESULTADOS DE LA EVALUACIÓN DEL RIESGO | I77: PLAN DE MANEJO | K77: OBSERVACIONES (Resultado de Evaluaciones / Auditorías Internas)
F78: IMPACTO | G78: PROBABILIDAD | H78: ZONA DE RIESGO | I78: OPCIONES DE MANEJO | J78: ACCIONES
H79: =IF(ISERROR(INDEX('BD1'!$AE$26:$AI$30,MATCH(F79,'BD1'!$AE$25:$AI$25,0),MATCH(G79,'BD1'!$AD$26:$AD$30,0))),"",INDEX('BD1'!$AE$26:$AI$30,MATCH(F79,'BD1'!$AE$25:$AI$25,0),MATCH(G79,'BD1'!$AD$26:$AD$30,0))) ->  | I79: =IF(ISERROR(INDEX('BD1'!$AE$35:$AI$39,MATCH(F79,'BD1'!$AE$25:$AI$25,0),MATCH(G79,'BD1'!$AD$26:$AD$30,0))),"",(INDEX('BD1'!$AE$35:$AI$39,MATCH(F79,'BD1'!$AE$25:$AI$25,0),MATCH(G79,'BD1'!$AD$26:$AD$30,0)))) -> 
H80: =IF(ISERROR(INDEX('BD1'!$AE$26:$AI$30,MATCH(F80,'BD1'!$AE$25:$AI$25,0),MATCH(G80,'BD1'!$AD$26:$AD$30,0))),"",INDEX('BD1'!$AE$26:$AI$30,MATCH(F80,'BD1'!$AE$25:$AI$25,0),MATCH(G80,'BD1'!$AD$26:$AD$30,0))) ->  | I80: =IF(ISERROR(INDEX('BD1'!$AE$35:$AI$39,MATCH(F80,'BD1'!$AE$25:$AI$25,0),MATCH(G80,'BD1'!$AD$26:$AD$30,0))),"",(INDEX('BD1'!$AE$35:$AI$39,MATCH(F80,'BD1'!$AE$25:$AI$25,0),MATCH(G80,'BD1'!$AD$26:$AD$30,0)))) -> 
H81: =IF(ISERROR(INDEX('BD1'!$AE$26:$AI$30,MATCH(F81,'BD1'!$AE$25:$AI$25,0),MATCH(G81,'BD1'!$AD$26:$AD$30,0))),"",INDEX('BD1'!$AE$26:$AI$30,MATCH(F81,'BD1'!$AE$25:$AI$25,0),MATCH(G81,'BD1'!$AD$26:$AD$30,0))) ->  | I81: =IF(ISERROR(INDEX('BD1'!$AE$35:$AI$39,MATCH(F81,'BD1'!$AE$25:$AI$25,0),MATCH(G81,'BD1'!$AD$26:$AD$30,0))),"",(INDEX('BD1'!$AE$35:$AI$39,MATCH(F81,'BD1'!$AE$25:$AI$25,0),MATCH(G81,'BD1'!$AD$26:$AD$30,0)))) -> 
H82: =IF(ISERROR(INDEX('BD1'!$AE$26:$AI$30,MATCH(F82,'BD1'!$AE$25:$AI$25,0),MATCH(G82,'BD1'!$AD$26:$AD$30,0))),"",INDEX('BD1'!$AE$26:$AI$30,MATCH(F82,'BD1'!$AE$25:$AI$25,0),MATCH(G82,'BD1'!$AD$26:$AD$30,0))) ->  | I82: =IF(ISERROR(INDEX('BD1'!$AE$35:$AI$39,MATCH(F82,'BD1'!$AE$25:$AI$25,0),MATCH(G82,'BD1'!$AD$26:$AD$30,0))),"",(INDEX('BD1'!$AE$35:$AI$39,MATCH(F82,'BD1'!$AE$25:$AI$25,0),MATCH(G82,'BD1'!$AD$26:$AD$30,0)))) -> 
H83: =IF(ISERROR(INDEX('BD1'!$AE$26:$AI$30,MATCH(F83,'BD1'!$AE$25:$AI$25,0),MATCH(G83,'BD1'!$AD$26:$AD$30,0))),"",INDEX('BD1'!$AE$26:$AI$30,MATCH(F83,'BD1'!$AE$25:$AI$25,0),MATCH(G83,'BD1'!$AD$26:$AD$30,0))) ->  | I83: =IF(ISERROR(INDEX('BD1'!$AE$35:$AI$39,MATCH(F83,'BD1'!$AE$25:$AI$25,0),MATCH(G83,'BD1'!$AD$26:$AD$30,0))),"",(INDEX('BD1'!$AE$35:$AI$39,MATCH(F83,'BD1'!$AE$25:$AI$25,0),MATCH(G83,'BD1'!$AD$26:$AD$30,0)))) -> 
H84: =IF(ISERROR(INDEX('BD1'!$AE$26:$AI$30,MATCH(F84,'BD1'!$AE$25:$AI$25,0),MATCH(G84,'BD1'!$AD$26:$AD$30,0))),"",INDEX('BD1'!$AE$26:$AI$30,MATCH(F84,'BD1'!$AE$25:$AI$25,0),MATCH(G84,'BD1'!$AD$26:$AD$30,0))) ->  | I84: =IF(ISERROR(INDEX('BD1'!$AE$35:$AI$39,MATCH(F84,'BD1'!$AE$25:$AI$25,0),MATCH(G84,'BD1'!$AD$26:$AD$30,0))),"",(INDEX('BD1'!$AE$35:$AI$39,MATCH(F84,'BD1'!$AE$25:$AI$25,0),MATCH(G84,'BD1'!$AD$26:$AD$30,0)))) -> 
H85: =IF(ISERROR(INDEX('BD1'!$AE$26:$AI$30,MATCH(F85,'BD1'!$AE$25:$AI$25,0),MATCH(G85,'BD1'!$AD$26:$AD$30,0))),"",INDEX('BD1'!$AE$26:$AI$30,MATCH(F85,'BD1'!$AE$25:$AI$25,0),MATCH(G85,'BD1'!$AD$26:$AD$30,0))) ->  | I85: =IF(ISERROR(INDEX('BD1'!$AE$35:$AI$39,MATCH(F85,'BD1'!$AE$25:$AI$25,0),MATCH(G85,'BD1'!$AD$26:$AD$30,0))),"",(INDEX('BD1'!$AE$35:$AI$39,MATCH(F85,'BD1'!$AE$25:$AI$25,0),MATCH(G85,'BD1'!$AD$26:$AD$30,0)))) -> 
H86: =IF(ISERROR(INDEX('BD1'!$AE$26:$AI$30,MATCH(F86,'BD1'!$AE$25:$AI$25,0),MATCH(G86,'BD1'!$AD$26:$AD$30,0))),"",INDEX('BD1'!$AE$26:$AI$30,MATCH(F86,'BD1'!$AE$25:$AI$25,0),MATCH(G86,'BD1'!$AD$26:$AD$30,0))) ->  | I86: =IF(ISERROR(INDEX('BD1'!$AE$35:$AI$39,MATCH(F86,'BD1'!$AE$25:$AI$25,0),MATCH(G86,'BD1'!$AD$26:$AD$30,0))),"",(INDEX('BD1'!$AE$35:$AI$39,MATCH(F86,'BD1'!$AE$25:$AI$25,0),MATCH(G86,'BD1'!$AD$26:$AD$30,0)))) -> 
H87: =IF(ISERROR(INDEX('BD1'!$AE$26:$AI$30,MATCH(F87,'BD1'!$AE$25:$AI$25,0),MATCH(G87,'BD1'!$AD$26:$AD$30,0))),"",INDEX('BD1'!$AE$26:$AI$30,MATCH(F87,'BD1'!$AE$25:$AI$25,0),MATCH(G87,'BD1'!$AD$26:$AD$30,0))) ->  | I87: =IF(ISERROR(INDEX('BD1'!$AE$35:$AI$39,MATCH(F87,'BD1'!$AE$25:$AI$25,0),MATCH(G87,'BD1'!$AD$26:$AD$30,0))),"",(INDEX('BD1'!$AE$35:$AI$39,MATCH(F87,'BD1'!$AE$25:$AI$25,0),MATCH(G87,'BD1'!$AD$26:$AD$30,0)))) -> 
H88: =IF(ISERROR(INDEX('BD1'!$AE$26:$AI$30,MATCH(F88,'BD1'!$AE$25:$AI$25,0),MATCH(G88,'BD1'!$AD$26:$AD$30,0))),"",INDEX('BD1'!$AE$26:$AI$30,MATCH(F88,'BD1'!$AE$25:$AI$25,0),MATCH(G88,'BD1'!$AD$26:$AD$30,0))) ->  | I88: =IF(ISERROR(INDEX('BD1'!$AE$35:$AI$39,MATCH(F88,'BD1'!$AE$25:$AI$25,0),MATCH(G88,'BD1'!$AD$26:$AD$30,0))),"",(INDEX('BD1'!$AE$35:$AI$39,MATCH(F88,'BD1'!$AE$25:$AI$25,0),MATCH(G88,'BD1'!$AD$26:$AD$30,0)))) -> 
H89: =IF(ISERROR(INDEX('BD1'!$AE$26:$AI$30,MATCH(F89,'BD1'!$AE$25:$AI$25,0),MATCH(G89,'BD1'!$AD$26:$AD$30,0))),"",INDEX('BD1'!$AE$26:$AI$30,MATCH(F89,'BD1'!$AE$25:$AI$25,0),MATCH(G89,'BD1'!$AD$26:$AD$30,0))) ->  | I89: =IF(ISERROR(INDEX('BD1'!$AE$35:$AI$39,MATCH(F89,'BD1'!$AE$25:$AI$25,0),MATCH(G89,'BD1'!$AD$26:$AD$30,0))),"",(INDEX('BD1'!$AE$35:$AI$39,MATCH(F89,'BD1'!$AE$25:$AI$25,0),MATCH(G89,'BD1'!$AD$26:$AD$30,0)))) -> 
H90: =IF(ISERROR(INDEX('BD1'!$AE$26:$AI$30,MATCH(F90,'BD1'!$AE$25:$AI$25,0),MATCH(G90,'BD1'!$AD$26:$AD$30,0))),"",INDEX('BD1'!$AE$26:$AI$30,MATCH(F90,'BD1'!$AE$25:$AI$25,0),MATCH(G90,'BD1'!$AD$26:$AD$30,0))) ->  | I90: =IF(ISERROR(INDEX('BD1'!$AE$35:$AI$39,MATCH(F90,'BD1'!$AE$25:$AI$25,0),MATCH(G90,'BD1'!$AD$26:$AD$30,0))),"",(INDEX('BD1'!$AE$35:$AI$39,MATCH(F90,'BD1'!$AE$25:$AI$25,0),MATCH(G90,'BD1'!$AD$26:$AD$30,0)))) -> 
H91: =IF(ISERROR(INDEX('BD1'!$AE$26:$AI$30,MATCH(F91,'BD1'!$AE$25:$AI$25,0),MATCH(G91,'BD1'!$AD$26:$AD$30,0))),"",INDEX('BD1'!$AE$26:$AI$30,MATCH(F91,'BD1'!$AE$25:$AI$25,0),MATCH(G91,'BD1'!$AD$26:$AD$30,0))) ->  | I91: =IF(ISERROR(INDEX('BD1'!$AE$35:$AI$39,MATCH(F91,'BD1'!$AE$25:$AI$25,0),MATCH(G91,'BD1'!$AD$26:$AD$30,0))),"",(INDEX('BD1'!$AE$35:$AI$39,MATCH(F91,'BD1'!$AE$25:$AI$25,0),MATCH(G91,'BD1'!$AD$26:$AD$30,0)))) -> 
H92: =IF(ISERROR(INDEX('BD1'!$AE$26:$AI$30,MATCH(F92,'BD1'!$AE$25:$AI$25,0),MATCH(G92,'BD1'!$AD$26:$AD$30,0))),"",INDEX('BD1'!$AE$26:$AI$30,MATCH(F92,'BD1'!$AE$25:$AI$25,0),MATCH(G92,'BD1'!$AD$26:$AD$30,0))) ->  | I92: =IF(ISERROR(INDEX('BD1'!$AE$35:$AI$39,MATCH(F92,'BD1'!$AE$25:$AI$25,0),MATCH(G92,'BD1'!$AD$26:$AD$30,0))),"",(INDEX('BD1'!$AE$35:$AI$39,MATCH(F92,'BD1'!$AE$25:$AI$25,0),MATCH(G92,'BD1'!$AD$26:$AD$30,0)))) -> 
H93: =IF(ISERROR(INDEX('BD1'!$AE$26:$AI$30,MATCH(F93,'BD1'!$AE$25:$AI$25,0),MATCH(G93,'BD1'!$AD$26:$AD$30,0))),"",INDEX('BD1'!$AE$26:$AI$30,MATCH(F93,'BD1'!$AE$25:$AI$25,0),MATCH(G93,'BD1'!$AD$26:$AD$30,0))) ->  | I93: =IF(ISERROR(INDEX('BD1'!$AE$35:$AI$39,MATCH(F93,'BD1'!$AE$25:$AI$25,0),MATCH(G93,'BD1'!$AD$26:$AD$30,0))),"",(INDEX('BD1'!$AE$35:$AI$39,MATCH(F93,'BD1'!$AE$25:$AI$25,0),MATCH(G93,'BD1'!$AD$26:$AD$30,0)))) -> 
H94: =IF(ISERROR(INDEX('BD1'!$AE$26:$AI$30,MATCH(F94,'BD1'!$AE$25:$AI$25,0),MATCH(G94,'BD1'!$AD$26:$AD$30,0))),"",INDEX('BD1'!$AE$26:$AI$30,MATCH(F94,'BD1'!$AE$25:$AI$25,0),MATCH(G94,'BD1'!$AD$26:$AD$30,0))) ->  | I94: =IF(ISERROR(INDEX('BD1'!$AE$35:$AI$39,MATCH(F94,'BD1'!$AE$25:$AI$25,0),MATCH(G94,'BD1'!$AD$26:$AD$30,0))),"",(INDEX('BD1'!$AE$35:$AI$39,MATCH(F94,'BD1'!$AE$25:$AI$25,0),MATCH(G94,'BD1'!$AD$26:$AD$30,0)))) -> 
D98: =IF(ISERROR(INDEX('BD1'!$C$56:$E$56,1,MATCH(C98,'BD1'!$C$55:$E$55,0))),"",(INDEX('BD1'!$C$56:$E$56,1,MATCH(C98,'BD1'!$C$55:$E$55,0)))) ->  | H98: PROGRAMA
C99: SELECCIONE EJE AQUÍ ↑ | J99: SELECCIONE AQUÍ ↑
C100: RIESGOS IDENTIFICADOS | D100: TIPO DE RIESGO | E100: CONTROLES | F100: RESULTADOS DE LA EVALUACIÓN DEL RIESGO | I100: PLAN DE MANEJO | K100: OBSERVACIONES (Resultado de Evaluaciones / Auditorías Internas)
F101: IMPACTO | G101: PROBABILIDAD | H101: ZONA DE RIESGO | I101: OPCIONES DE MANEJO | J101: ACCIONES
H102: =IF(ISERROR(INDEX('BD1'!$AE$26:$AI$30,MATCH(F102,'BD1'!$AE$25:$AI$25,0),MATCH(G102,'BD1'!$AD$26:$AD$30,0))),"",INDEX('BD1'!$AE$26:$AI$30,MATCH(F102,'BD1'!$AE$25:$AI$25,0),MATCH(G102,'BD1'!$AD$26:$AD$30,0))) ->  | I102: =IF(ISERROR(INDEX('BD1'!$AE$35:$AI$39,MATCH(F102,'BD1'!$AE$25:$AI$25,0),MATCH(G102,'BD1'!$AD$26:$AD$30,0))),"",(INDEX('BD1'!$AE$35:$AI$39,MATCH(F102,'BD1'!$AE$25:$AI$25,0),MATCH(G102,'BD1'!$AD$26:$AD$30,0)))) -> 
H103: =IF(ISERROR(INDEX('BD1'!$AE$26:$AI$30,MATCH(F103,'BD1'!$AE$25:$AI$25,0),MATCH(G103,'BD1'!$AD$26:$AD$30,0))),"",INDEX('BD1'!$AE$26:$AI$30,MATCH(F103,'BD1'!$AE$25:$AI$25,0),MATCH(G103,'BD1'!$AD$26:$AD$30,0))) ->  | I103: =IF(ISERROR(INDEX('BD1'!$AE$35:$AI$39,MATCH(F103,'BD1'!$AE$25:$AI$25,0),MATCH(G103,'BD1'!$AD$26:$AD$30,0))),"",(INDEX('BD1'!$AE$35:$AI$39,MATCH(F103,'BD1'!$AE$25:$AI$25,0),MATCH(G103,'BD1'!$AD$26:$AD$30,0)))) -> 
H104: =IF(ISERROR(INDEX('BD1'!$AE$26:$AI$30,MATCH(F104,'BD1'!$AE$25:$AI$25,0),MATCH(G104,'BD1'!$AD$26:$AD$30,0))),"",INDEX('BD1'!$AE$26:$AI$30,MATCH(F104,'BD1'!$AE$25:$AI$25,0),MATCH(G104,'BD1'!$AD$26:$AD$30,0))) ->  | I104: =IF(ISERROR(INDEX('BD1'!$AE$35:$AI$39,MATCH(F104,'BD1'!$AE$25:$AI$25,0),MATCH(G104,'BD1'!$AD$26:$AD$30,0))),"",(INDEX('BD1'!$AE$35:$AI$39,MATCH(F104,'BD1'!$AE$25:$AI$25,0),MATCH(G104,'BD1'!$AD$26:$AD$30,0)))) -> 
H105: =IF(ISERROR(INDEX('BD1'!$AE$26:$AI$30,MATCH(F105,'BD1'!$AE$25:$AI$25,0),MATCH(G105,'BD1'!$AD$26:$AD$30,0))),"",INDEX('BD1'!$AE$26:$AI$30,MATCH(F105,'BD1'!$AE$25:$AI$25,0),MATCH(G105,'BD1'!$AD$26:$AD$30,0))) ->  | I105: =IF(ISERROR(INDEX('BD1'!$AE$35:$AI$39,MATCH(F105,'BD1'!$AE$25:$AI$25,0),MATCH(G105,'BD1'!$AD$26:$AD$30,0))),"",(INDEX('BD1'!$AE$35:$AI$39,MATCH(F105,'BD1'!$AE$25:$AI$25,0),MATCH(G105,'BD1'!$AD$26:$AD$30,0)))) -> 
H106: =IF(ISERROR(INDEX('BD1'!$AE$26:$AI$30,MATCH(F106,'BD1'!$AE$25:$AI$25,0),MATCH(G106,'BD1'!$AD$26:$AD$30,0))),"",INDEX('BD1'!$AE$26:$AI$30,MATCH(F106,'BD1'!$AE$25:$AI$25,0),MATCH(G106,'BD1'!$AD$26:$AD$30,0))) ->  | I106: =IF(ISERROR(INDEX('BD1'!$AE$35:$AI$39,MATCH(F106,'BD1'!$AE$25:$AI$25,0),MATCH(G106,'BD1'!$AD$26:$AD$30,0))),"",(INDEX('BD1'!$AE$35:$AI$39,MATCH(F106,'BD1'!$AE$25:$AI$25,0),MATCH(G106,'BD1'!$AD$26:$AD$30,0)))) -> 
H107: =IF(ISERROR(INDEX('BD1'!$AE$26:$AI$30,MATCH(F107,'BD1'!$AE$25:$AI$25,0),MATCH(G107,'BD1'!$AD$26:$AD$30,0))),"",INDEX('BD1'!$AE$26:$AI$30,MATCH(F107,'BD1'!$AE$25:$AI$25,0),MATCH(G107,'BD1'!$AD$26:$AD$30,0))) ->  | I107: =IF(ISERROR(INDEX('BD1'!$AE$35:$AI$39,MATCH(F107,'BD1'!$AE$25:$AI$25,0),MATCH(G107,'BD1'!$AD$26:$AD$30,0))),"",(INDEX('BD1'!$AE$35:$AI$39,MATCH(F107,'BD1'!$AE$25:$AI$25,0),MATCH(G107,'BD1'!$AD$26:$AD$30,0)))) -> 
H108: =IF(ISERROR(INDEX('BD1'!$AE$26:$AI$30,MATCH(F108,'BD1'!$AE$25:$AI$25,0),MATCH(G108,'BD1'!$AD$26:$AD$30,0))),"",INDEX('BD1'!$AE$26:$AI$30,MATCH(F108,'BD1'!$AE$25:$AI$25,0),MATCH(G108,'BD1'!$AD$26:$AD$30,0))) ->  | I108: =IF(ISERROR(INDEX('BD1'!$AE$35:$AI$39,MATCH(F108,'BD1'!$AE$25:$AI$25,0),MATCH(G108,'BD1'!$AD$26:$AD$30,0))),"",(INDEX('BD1'!$AE$35:$AI$39,MATCH(F108,'BD1'!$AE$25:$AI$25,0),MATCH(G108,'BD1'!$AD$26:$AD$30,0)))) -> 
H109: =IF(ISERROR(INDEX('BD1'!$AE$26:$AI$30,MATCH(F109,'BD1'!$AE$25:$AI$25,0),MATCH(G109,'BD1'!$AD$26:$AD$30,0))),"",INDEX('BD1'!$AE$26:$AI$30,MATCH(F109,'BD1'!$AE$25:$AI$25,0),MATCH(G109,'BD1'!$AD$26:$AD$30,0))) ->  | I109: =IF(ISERROR(INDEX('BD1'!$AE$35:$AI$39,MATCH(F109,'BD1'!$AE$25:$AI$25,0),MATCH(G109,'BD1'!$AD$26:$AD$30,0))),"",(INDEX('BD1'!$AE$35:$AI$39,MATCH(F109,'BD1'!$AE$25:$AI$25,0),MATCH(G109,'BD1'!$AD$26:$AD$30,0)))) -> 
H110: =IF(ISERROR(INDEX('BD1'!$AE$26:$AI$30,MATCH(F110,'BD1'!$AE$25:$AI$25,0),MATCH(G110,'BD1'!$AD$26:$AD$30,0))),"",INDEX('BD1'!$AE$26:$AI$30,MATCH(F110,'BD1'!$AE$25:$AI$25,0),MATCH(G110,'BD1'!$AD$26:$AD$30,0))) ->  | I110: =IF(ISERROR(INDEX('BD1'!$AE$35:$AI$39,MATCH(F110,'BD1'!$AE$25:$AI$25,0),MATCH(G110,'BD1'!$AD$26:$AD$30,0))),"",(INDEX('BD1'!$AE$35:$AI$39,MATCH(F110,'BD1'!$AE$25:$AI$25,0),MATCH(G110,'BD1'!$AD$26:$AD$30,0)))) -> 
H111: =IF(ISERROR(INDEX('BD1'!$AE$26:$AI$30,MATCH(F111,'BD1'!$AE$25:$AI$25,0),MATCH(G111,'BD1'!$AD$26:$AD$30,0))),"",INDEX('BD1'!$AE$26:$AI$30,MATCH(F111,'BD1'!$AE$25:$AI$25,0),MATCH(G111,'BD1'!$AD$26:$AD$30,0))) ->  | I111: =IF(ISERROR(INDEX('BD1'!$AE$35:$AI$39,MATCH(F111,'BD1'!$AE$25:$AI$25,0),MATCH(G111,'BD1'!$AD$26:$AD$30,0))),"",(INDEX('BD1'!$AE$35:$AI$39,MATCH(F111,'BD1'!$AE$25:$AI$25,0),MATCH(G111,'BD1'!$AD$26:$AD$30,0)))) -> 
H112: =IF(ISERROR(INDEX('BD1'!$AE$26:$AI$30,MATCH(F112,'BD1'!$AE$25:$AI$25,0),MATCH(G112,'BD1'!$AD$26:$AD$30,0))),"",INDEX('BD1'!$AE$26:$AI$30,MATCH(F112,'BD1'!$AE$25:$AI$25,0),MATCH(G112,'BD1'!$AD$26:$AD$30,0))) ->  | I112: =IF(ISERROR(INDEX('BD1'!$AE$35:$AI$39,MATCH(F112,'BD1'!$AE$25:$AI$25,0),MATCH(G112,'BD1'!$AD$26:$AD$30,0))),"",(INDEX('BD1'!$AE$35:$AI$39,MATCH(F112,'BD1'!$AE$25:$AI$25,0),MATCH(G112,'BD1'!$AD$26:$AD$30,0)))) -> 
H113: =IF(ISERROR(INDEX('BD1'!$AE$26:$AI$30,MATCH(F113,'BD1'!$AE$25:$AI$25,0),MATCH(G113,'BD1'!$AD$26:$AD$30,0))),"",INDEX('BD1'!$AE$26:$AI$30,MATCH(F113,'BD1'!$AE$25:$AI$25,0),MATCH(G113,'BD1'!$AD$26:$AD$30,0))) ->  | I113: =IF(ISERROR(INDEX('BD1'!$AE$35:$AI$39,MATCH(F113,'BD1'!$AE$25:$AI$25,0),MATCH(G113,'BD1'!$AD$26:$AD$30,0))),"",(INDEX('BD1'!$AE$35:$AI$39,MATCH(F113,'BD1'!$AE$25:$AI$25,0),MATCH(G113,'BD1'!$AD$26:$AD$30,0)))) -> 
H114: =IF(ISERROR(INDEX('BD1'!$AE$26:$AI$30,MATCH(F114,'BD1'!$AE$25:$AI$25,0),MATCH(G114,'BD1'!$AD$26:$AD$30,0))),"",INDEX('BD1'!$AE$26:$AI$30,MATCH(F114,'BD1'!$AE$25:$AI$25,0),MATCH(G114,'BD1'!$AD$26:$AD$30,0))) ->  | I114: =IF(ISERROR(INDEX('BD1'!$AE$35:$AI$39,MATCH(F114,'BD1'!$AE$25:$AI$25,0),MATCH(G114,'BD1'!$AD$26:$AD$30,0))),"",(INDEX('BD1'!$AE$35:$AI$39,MATCH(F114,'BD1'!$AE$25:$AI$25,0),MATCH(G114,'BD1'!$AD$26:$AD$30,0)))) -> 
H115: =IF(ISERROR(INDEX('BD1'!$AE$26:$AI$30,MATCH(F115,'BD1'!$AE$25:$AI$25,0),MATCH(G115,'BD1'!$AD$26:$AD$30,0))),"",INDEX('BD1'!$AE$26:$AI$30,MATCH(F115,'BD1'!$AE$25:$AI$25,0),MATCH(G115,'BD1'!$AD$26:$AD$30,0))) ->  | I115: =IF(ISERROR(INDEX('BD1'!$AE$35:$AI$39,MATCH(F115,'BD1'!$AE$25:$AI$25,0),MATCH(G115,'BD1'!$AD$26:$AD$30,0))),"",(INDEX('BD1'!$AE$35:$AI$39,MATCH(F115,'BD1'!$AE$25:$AI$25,0),MATCH(G115,'BD1'!$AD$26:$AD$30,0)))) -> 
H116: =IF(ISERROR(INDEX('BD1'!$AE$26:$AI$30,MATCH(F116,'BD1'!$AE$25:$AI$25,0),MATCH(G116,'BD1'!$AD$26:$AD$30,0))),"",INDEX('BD1'!$AE$26:$AI$30,MATCH(F116,'BD1'!$AE$25:$AI$25,0),MATCH(G116,'BD1'!$AD$26:$AD$30,0))) ->  | I116: =IF(ISERROR(INDEX('BD1'!$AE$35:$AI$39,MATCH(F116,'BD1'!$AE$25:$AI$25,0),MATCH(G116,'BD1'!$AD$26:$AD$30,0))),"",(INDEX('BD1'!$AE$35:$AI$39,MATCH(F116,'BD1'!$AE$25:$AI$25,0),MATCH(G116,'BD1'!$AD$26:$AD$30,0)))) -> 
H117: =IF(ISERROR(INDEX('BD1'!$AE$26:$AI$30,MATCH(F117,'BD1'!$AE$25:$AI$25,0),MATCH(G117,'BD1'!$AD$26:$AD$30,0))),"",INDEX('BD1'!$AE$26:$AI$30,MATCH(F117,'BD1'!$AE$25:$AI$25,0),MATCH(G117,'BD1'!$AD$26:$AD$30,0))) ->  | I117: =IF(ISERROR(INDEX('BD1'!$AE$35:$AI$39,MATCH(F117,'BD1'!$AE$25:$AI$25,0),MATCH(G117,'BD1'!$AD$26:$AD$30,0))),"",(INDEX('BD1'!$AE$35:$AI$39,MATCH(F117,'BD1'!$AE$25:$AI$25,0),MATCH(G117,'BD1'!$AD$26:$AD$30,0)))) -> 
D121: =IF(ISERROR(INDEX('BD1'!$C$56:$E$56,1,MATCH(C121,'BD1'!$C$55:$E$55,0))),"",(INDEX('BD1'!$C$56:$E$56,1,MATCH(C121,'BD1'!$C$55:$E$55,0)))) ->  | H121: PROGRAMA
C122: SELECCIONE EJE AQUÍ ↑ | J122: SELECCIONE AQUÍ ↑
C123: RIESGOS IDENTIFICADOS | D123: TIPO DE RIESGO | E123: CONTROLES | F123: RESULTADOS DE LA EVALUACIÓN DEL RIESGO | I123: PLAN DE MANEJO | K123: OBSERVACIONES (Resultado de Evaluaciones / Auditorías Internas)
F124: IMPACTO | G124: PROBABILIDAD | H124: ZONA DE RIESGO | I124: OPCIONES DE MANEJO | J124: ACCIONES
H125: =IF(ISERROR(INDEX('BD1'!$AE$26:$AI$30,MATCH(F125,'BD1'!$AE$25:$AI$25,0),MATCH(G125,'BD1'!$AD$26:$AD$30,0))),"",INDEX('BD1'!$AE$26:$AI$30,MATCH(F125,'BD1'!$AE$25:$AI$25,0),MATCH(G125,'BD1'!$AD$26:$AD$30,0))) ->  | I125: =IF(ISERROR(INDEX('BD1'!$AE$35:$AI$39,MATCH(F125,'BD1'!$AE$25:$AI$25,0),MATCH(G125,'BD1'!$AD$26:$AD$30,0))),"",(INDEX('BD1'!$AE$35:$AI$39,MATCH(F125,'BD1'!$AE$25:$AI$25,0),MATCH(G125,'BD1'!$AD$26:$AD$30,0)))) -> 
H126: =IF(ISERROR(INDEX('BD1'!$AE$26:$AI$30,MATCH(F126,'BD1'!$AE$25:$AI$25,0),MATCH(G126,'BD1'!$AD$26:$AD$30,0))),"",INDEX('BD1'!$AE$26:$AI$30,MATCH(F126,'BD1'!$AE$25:$AI$25,0),MATCH(G126,'BD1'!$AD$26:$AD$30,0))) ->  | I126: =IF(ISERROR(INDEX('BD1'!$AE$35:$AI$39,MATCH(F126,'BD1'!$AE$25:$AI$25,0),MATCH(G126,'BD1'!$AD$26:$AD$30,0))),"",(INDEX('BD1'!$AE$35:$AI$39,MATCH(F126,'BD1'!$AE$25:$AI$25,0),MATCH(G126,'BD1'!$AD$26:$AD$30,0)))) -> 
H127: =IF(ISERROR(INDEX('BD1'!$AE$26:$AI$30,MATCH(F127,'BD1'!$AE$25:$AI$25,0),MATCH(G127,'BD1'!$AD$26:$AD$30,0))),"",INDEX('BD1'!$AE$26:$AI$30,MATCH(F127,'BD1'!$AE$25:$AI$25,0),MATCH(G127,'BD1'!$AD$26:$AD$30,0))) ->  | I127: =IF(ISERROR(INDEX('BD1'!$AE$35:$AI$39,MATCH(F127,'BD1'!$AE$25:$AI$25,0),MATCH(G127,'BD1'!$AD$26:$AD$30,0))),"",(INDEX('BD1'!$AE$35:$AI$39,MATCH(F127,'BD1'!$AE$25:$AI$25,0),MATCH(G127,'BD1'!$AD$26:$AD$30,0)))) -> 
H128: =IF(ISERROR(INDEX('BD1'!$AE$26:$AI$30,MATCH(F128,'BD1'!$AE$25:$AI$25,0),MATCH(G128,'BD1'!$AD$26:$AD$30,0))),"",INDEX('BD1'!$AE$26:$AI$30,MATCH(F128,'BD1'!$AE$25:$AI$25,0),MATCH(G128,'BD1'!$AD$26:$AD$30,0))) ->  | I128: =IF(ISERROR(INDEX('BD1'!$AE$35:$AI$39,MATCH(F128,'BD1'!$AE$25:$AI$25,0),MATCH(G128,'BD1'!$AD$26:$AD$30,0))),"",(INDEX('BD1'!$AE$35:$AI$39,MATCH(F128,'BD1'!$AE$25:$AI$25,0),MATCH(G128,'BD1'!$AD$26:$AD$30,0)))) -> 
H129: =IF(ISERROR(INDEX('BD1'!$AE$26:$AI$30,MATCH(F129,'BD1'!$AE$25:$AI$25,0),MATCH(G129,'BD1'!$AD$26:$AD$30,0))),"",INDEX('BD1'!$AE$26:$AI$30,MATCH(F129,'BD1'!$AE$25:$AI$25,0),MATCH(G129,'BD1'!$AD$26:$AD$30,0))) ->  | I129: =IF(ISERROR(INDEX('BD1'!$AE$35:$AI$39,MATCH(F129,'BD1'!$AE$25:$AI$25,0),MATCH(G129,'BD1'!$AD$26:$AD$30,0))),"",(INDEX('BD1'!$AE$35:$AI$39,MATCH(F129,'BD1'!$AE$25:$AI$25,0),MATCH(G129,'BD1'!$AD$26:$AD$30,0)))) -> 
H130: =IF(ISERROR(INDEX('BD1'!$AE$26:$AI$30,MATCH(F130,'BD1'!$AE$25:$AI$25,0),MATCH(G130,'BD1'!$AD$26:$AD$30,0))),"",INDEX('BD1'!$AE$26:$AI$30,MATCH(F130,'BD1'!$AE$25:$AI$25,0),MATCH(G130,'BD1'!$AD$26:$AD$30,0))) ->  | I130: =IF(ISERROR(INDEX('BD1'!$AE$35:$AI$39,MATCH(F130,'BD1'!$AE$25:$AI$25,0),MATCH(G130,'BD1'!$AD$26:$AD$30,0))),"",(INDEX('BD1'!$AE$35:$AI$39,MATCH(F130,'BD1'!$AE$25:$AI$25,0),MATCH(G130,'BD1'!$AD$26:$AD$30,0)))) -> 
H131: =IF(ISERROR(INDEX('BD1'!$AE$26:$AI$30,MATCH(F131,'BD1'!$AE$25:$AI$25,0),MATCH(G131,'BD1'!$AD$26:$AD$30,0))),"",INDEX('BD1'!$AE$26:$AI$30,MATCH(F131,'BD1'!$AE$25:$AI$25,0),MATCH(G131,'BD1'!$AD$26:$AD$30,0))) ->  | I131: =IF(ISERROR(INDEX('BD1'!$AE$35:$AI$39,MATCH(F131,'BD1'!$AE$25:$AI$25,0),MATCH(G131,'BD1'!$AD$26:$AD$30,0))),"",(INDEX('BD1'!$AE$35:$AI$39,MATCH(F131,'BD1'!$AE$25:$AI$25,0),MATCH(G131,'BD1'!$AD$26:$AD$30,0)))) -> 
H132: =IF(ISERROR(INDEX('BD1'!$AE$26:$AI$30,MATCH(F132,'BD1'!$AE$25:$AI$25,0),MATCH(G132,'BD1'!$AD$26:$AD$30,0))),"",INDEX('BD1'!$AE$26:$AI$30,MATCH(F132,'BD1'!$AE$25:$AI$25,0),MATCH(G132,'BD1'!$AD$26:$AD$30,0))) ->  | I132: =IF(ISERROR(INDEX('BD1'!$AE$35:$AI$39,MATCH(F132,'BD1'!$AE$25:$AI$25,0),MATCH(G132,'BD1'!$AD$26:$AD$30,0))),"",(INDEX('BD1'!$AE$35:$AI$39,MATCH(F132,'BD1'!$AE$25:$AI$25,0),MATCH(G132,'BD1'!$AD$26:$AD$30,0)))) -> 
H133: =IF(ISERROR(INDEX('BD1'!$AE$26:$AI$30,MATCH(F133,'BD1'!$AE$25:$AI$25,0),MATCH(G133,'BD1'!$AD$26:$AD$30,0))),"",INDEX('BD1'!$AE$26:$AI$30,MATCH(F133,'BD1'!$AE$25:$AI$25,0),MATCH(G133,'BD1'!$AD$26:$AD$30,0))) ->  | I133: =IF(ISERROR(INDEX('BD1'!$AE$35:$AI$39,MATCH(F133,'BD1'!$AE$25:$AI$25,0),MATCH(G133,'BD1'!$AD$26:$AD$30,0))),"",(INDEX('BD1'!$AE$35:$AI$39,MATCH(F133,'BD1'!$AE$25:$AI$25,0),MATCH(G133,'BD1'!$AD$26:$AD$30,0)))) -> 
H134: =IF(ISERROR(INDEX('BD1'!$AE$26:$AI$30,MATCH(F134,'BD1'!$AE$25:$AI$25,0),MATCH(G134,'BD1'!$AD$26:$AD$30,0))),"",INDEX('BD1'!$AE$26:$AI$30,MATCH(F134,'BD1'!$AE$25:$AI$25,0),MATCH(G134,'BD1'!$AD$26:$AD$30,0))) ->  | I134: =IF(ISERROR(INDEX('BD1'!$AE$35:$AI$39,MATCH(F134,'BD1'!$AE$25:$AI$25,0),MATCH(G134,'BD1'!$AD$26:$AD$30,0))),"",(INDEX('BD1'!$AE$35:$AI$39,MATCH(F134,'BD1'!$AE$25:$AI$25,0),MATCH(G134,'BD1'!$AD$26:$AD$30,0)))) -> 
H135: =IF(ISERROR(INDEX('BD1'!$AE$26:$AI$30,MATCH(F135,'BD1'!$AE$25:$AI$25,0),MATCH(G135,'BD1'!$AD$26:$AD$30,0))),"",INDEX('BD1'!$AE$26:$AI$30,MATCH(F135,'BD1'!$AE$25:$AI$25,0),MATCH(G135,'BD1'!$AD$26:$AD$30,0))) ->  | I135: =IF(ISERROR(INDEX('BD1'!$AE$35:$AI$39,MATCH(F135,'BD1'!$AE$25:$AI$25,0),MATCH(G135,'BD1'!$AD$26:$AD$30,0))),"",(INDEX('BD1'!$AE$35:$AI$39,MATCH(F135,'BD1'!$AE$25:$AI$25,0),MATCH(G135,'BD1'!$AD$26:$AD$30,0)))) -> 
H136: =IF(ISERROR(INDEX('BD1'!$AE$26:$AI$30,MATCH(F136,'BD1'!$AE$25:$AI$25,0),MATCH(G136,'BD1'!$AD$26:$AD$30,0))),"",INDEX('BD1'!$AE$26:$AI$30,MATCH(F136,'BD1'!$AE$25:$AI$25,0),MATCH(G136,'BD1'!$AD$26:$AD$30,0))) ->  | I136: =IF(ISERROR(INDEX('BD1'!$AE$35:$AI$39,MATCH(F136,'BD1'!$AE$25:$AI$25,0),MATCH(G136,'BD1'!$AD$26:$AD$30,0))),"",(INDEX('BD1'!$AE$35:$AI$39,MATCH(F136,'BD1'!$AE$25:$AI$25,0),MATCH(G136,'BD1'!$AD$26:$AD$30,0)))) -> 
H137: =IF(ISERROR(INDEX('BD1'!$AE$26:$AI$30,MATCH(F137,'BD1'!$AE$25:$AI$25,0),MATCH(G137,'BD1'!$AD$26:$AD$30,0))),"",INDEX('BD1'!$AE$26:$AI$30,MATCH(F137,'BD1'!$AE$25:$AI$25,0),MATCH(G137,'BD1'!$AD$26:$AD$30,0))) ->  | I137: =IF(ISERROR(INDEX('BD1'!$AE$35:$AI$39,MATCH(F137,'BD1'!$AE$25:$AI$25,0),MATCH(G137,'BD1'!$AD$26:$AD$30,0))),"",(INDEX('BD1'!$AE$35:$AI$39,MATCH(F137,'BD1'!$AE$25:$AI$25,0),MATCH(G137,'BD1'!$AD$26:$AD$30,0)))) -> 
H138: =IF(ISERROR(INDEX('BD1'!$AE$26:$AI$30,MATCH(F138,'BD1'!$AE$25:$AI$25,0),MATCH(G138,'BD1'!$AD$26:$AD$30,0))),"",INDEX('BD1'!$AE$26:$AI$30,MATCH(F138,'BD1'!$AE$25:$AI$25,0),MATCH(G138,'BD1'!$AD$26:$AD$30,0))) ->  | I138: =IF(ISERROR(INDEX('BD1'!$AE$35:$AI$39,MATCH(F138,'BD1'!$AE$25:$AI$25,0),MATCH(G138,'BD1'!$AD$26:$AD$30,0))),"",(INDEX('BD1'!$AE$35:$AI$39,MATCH(F138,'BD1'!$AE$25:$AI$25,0),MATCH(G138,'BD1'!$AD$26:$AD$30,0)))) -> 
H139: =IF(ISERROR(INDEX('BD1'!$AE$26:$AI$30,MATCH(F139,'BD1'!$AE$25:$AI$25,0),MATCH(G139,'BD1'!$AD$26:$AD$30,0))),"",INDEX('BD1'!$AE$26:$AI$30,MATCH(F139,'BD1'!$AE$25:$AI$25,0),MATCH(G139,'BD1'!$AD$26:$AD$30,0))) ->  | I139: =IF(ISERROR(INDEX('BD1'!$AE$35:$AI$39,MATCH(F139,'BD1'!$AE$25:$AI$25,0),MATCH(G139,'BD1'!$AD$26:$AD$30,0))),"",(INDEX('BD1'!$AE$35:$AI$39,MATCH(F139,'BD1'!$AE$25:$AI$25,0),MATCH(G139,'BD1'!$AD$26:$AD$30,0)))) -> 
H140: =IF(ISERROR(INDEX('BD1'!$AE$26:$AI$30,MATCH(F140,'BD1'!$AE$25:$AI$25,0),MATCH(G140,'BD1'!$AD$26:$AD$30,0))),"",INDEX('BD1'!$AE$26:$AI$30,MATCH(F140,'BD1'!$AE$25:$AI$25,0),MATCH(G140,'BD1'!$AD$26:$AD$30,0))) ->  | I140: =IF(ISERROR(INDEX('BD1'!$AE$35:$AI$39,MATCH(F140,'BD1'!$AE$25:$AI$25,0),MATCH(G140,'BD1'!$AD$26:$AD$30,0))),"",(INDEX('BD1'!$AE$35:$AI$39,MATCH(F140,'BD1'!$AE$25:$AI$25,0),MATCH(G140,'BD1'!$AD$26:$AD$30,0)))) -> 
D144: =IF(ISERROR(INDEX('BD1'!$C$56:$E$56,1,MATCH(C144,'BD1'!$C$55:$E$55,0))),"",(INDEX('BD1'!$C$56:$E$56,1,MATCH(C144,'BD1'!$C$55:$E$55,0)))) ->  | H144: PROGRAMA
C145: SELECCIONE EJE AQUÍ ↑ | J145: SELECCIONE AQUÍ ↑
C146: RIESGOS IDENTIFICADOS | D146: TIPO DE RIESGO | E146: CONTROLES | F146: RESULTADOS DE LA EVALUACIÓN DEL RIESGO | I146: PLAN DE MANEJO | K146: OBSERVACIONES (Resultado de Evaluaciones / Auditorías Internas)
F147: IMPACTO | G147: PROBABILIDAD | H147: ZONA DE RIESGO | I147: OPCIONES DE MANEJO | J147: ACCIONES
H148: =IF(ISERROR(INDEX('BD1'!$AE$26:$AI$30,MATCH(F148,'BD1'!$AE$25:$AI$25,0),MATCH(G148,'BD1'!$AD$26:$AD$30,0))),"",INDEX('BD1'!$AE$26:$AI$30,MATCH(F148,'BD1'!$AE$25:$AI$25,0),MATCH(G148,'BD1'!$AD$26:$AD$30,0))) ->  | I148: =IF(ISERROR(INDEX('BD1'!$AE$35:$AI$39,MATCH(F148,'BD1'!$AE$25:$AI$25,0),MATCH(G148,'BD1'!$AD$26:$AD$30,0))),"",(INDEX('BD1'!$AE$35:$AI$39,MATCH(F148,'BD1'!$AE$25:$AI$25,0),MATCH(G148,'BD1'!$AD$26:$AD$30,0)))) -> 
H149: =IF(ISERROR(INDEX('BD1'!$AE$26:$AI$30,MATCH(F149,'BD1'!$AE$25:$AI$25,0),MATCH(G149,'BD1'!$AD$26:$AD$30,0))),"",INDEX('BD1'!$AE$26:$AI$30,MATCH(F149,'BD1'!$AE$25:$AI$25,0),MATCH(G149,'BD1'!$AD$26:$AD$30,0))) ->  | I149: =IF(ISERROR(INDEX('BD1'!$AE$35:$AI$39,MATCH(F149,'BD1'!$AE$25:$AI$25,0),MATCH(G149,'BD1'!$AD$26:$AD$30,0))),"",(INDEX('BD1'!$AE$35:$AI$39,MATCH(F149,'BD1'!$AE$25:$AI$25,0),MATCH(G149,'BD1'!$AD$26:$AD$30,0)))) -> 
H150: =IF(ISERROR(INDEX('BD1'!$AE$26:$AI$30,MATCH(F150,'BD1'!$AE$25:$AI$25,0),MATCH(G150,'BD1'!$AD$26:$AD$30,0))),"",INDEX('BD1'!$AE$26:$AI$30,MATCH(F150,'BD1'!$AE$25:$AI$25,0),MATCH(G150,'BD1'!$AD$26:$AD$30,0))) ->  | I150: =IF(ISERROR(INDEX('BD1'!$AE$35:$AI$39,MATCH(F150,'BD1'!$AE$25:$AI$25,0),MATCH(G150,'BD1'!$AD$26:$AD$30,0))),"",(INDEX('BD1'!$AE$35:$AI$39,MATCH(F150,'BD1'!$AE$25:$AI$25,0),MATCH(G150,'BD1'!$AD$26:$AD$30,0)))) -> 
H151: =IF(ISERROR(INDEX('BD1'!$AE$26:$AI$30,MATCH(F151,'BD1'!$AE$25:$AI$25,0),MATCH(G151,'BD1'!$AD$26:$AD$30,0))),"",INDEX('BD1'!$AE$26:$AI$30,MATCH(F151,'BD1'!$AE$25:$AI$25,0),MATCH(G151,'BD1'!$AD$26:$AD$30,0))) ->  | I151: =IF(ISERROR(INDEX('BD1'!$AE$35:$AI$39,MATCH(F151,'BD1'!$AE$25:$AI$25,0),MATCH(G151,'BD1'!$AD$26:$AD$30,0))),"",(INDEX('BD1'!$AE$35:$AI$39,MATCH(F151,'BD1'!$AE$25:$AI$25,0),MATCH(G151,'BD1'!$AD$26:$AD$30,0)))) -> 
H152: =IF(ISERROR(INDEX('BD1'!$AE$26:$AI$30,MATCH(F152,'BD1'!$AE$25:$AI$25,0),MATCH(G152,'BD1'!$AD$26:$AD$30,0))),"",INDEX('BD1'!$AE$26:$AI$30,MATCH(F152,'BD1'!$AE$25:$AI$25,0),MATCH(G152,'BD1'!$AD$26:$AD$30,0))) ->  | I152: =IF(ISERROR(INDEX('BD1'!$AE$35:$AI$39,MATCH(F152,'BD1'!$AE$25:$AI$25,0),MATCH(G152,'BD1'!$AD$26:$AD$30,0))),"",(INDEX('BD1'!$AE$35:$AI$39,MATCH(F152,'BD1'!$AE$25:$AI$25,0),MATCH(G152,'BD1'!$AD$26:$AD$30,0)))) -> 
H153: =IF(ISERROR(INDEX('BD1'!$AE$26:$AI$30,MATCH(F153,'BD1'!$AE$25:$AI$25,0),MATCH(G153,'BD1'!$AD$26:$AD$30,0))),"",INDEX('BD1'!$AE$26:$AI$30,MATCH(F153,'BD1'!$AE$25:$AI$25,0),MATCH(G153,'BD1'!$AD$26:$AD$30,0))) ->  | I153: =IF(ISERROR(INDEX('BD1'!$AE$35:$AI$39,MATCH(F153,'BD1'!$AE$25:$AI$25,0),MATCH(G153,'BD1'!$AD$26:$AD$30,0))),"",(INDEX('BD1'!$AE$35:$AI$39,MATCH(F153,'BD1'!$AE$25:$AI$25,0),MATCH(G153,'BD1'!$AD$26:$AD$30,0)))) -> 
H154: =IF(ISERROR(INDEX('BD1'!$AE$26:$AI$30,MATCH(F154,'BD1'!$AE$25:$AI$25,0),MATCH(G154,'BD1'!$AD$26:$AD$30,0))),"",INDEX('BD1'!$AE$26:$AI$30,MATCH(F154,'BD1'!$AE$25:$AI$25,0),MATCH(G154,'BD1'!$AD$26:$AD$30,0))) ->  | I154: =IF(ISERROR(INDEX('BD1'!$AE$35:$AI$39,MATCH(F154,'BD1'!$AE$25:$AI$25,0),MATCH(G154,'BD1'!$AD$26:$AD$30,0))),"",(INDEX('BD1'!$AE$35:$AI$39,MATCH(F154,'BD1'!$AE$25:$AI$25,0),MATCH(G154,'BD1'!$AD$26:$AD$30,0)))) -> 
H155: =IF(ISERROR(INDEX('BD1'!$AE$26:$AI$30,MATCH(F155,'BD1'!$AE$25:$AI$25,0),MATCH(G155,'BD1'!$AD$26:$AD$30,0))),"",INDEX('BD1'!$AE$26:$AI$30,MATCH(F155,'BD1'!$AE$25:$AI$25,0),MATCH(G155,'BD1'!$AD$26:$AD$30,0))) ->  | I155: =IF(ISERROR(INDEX('BD1'!$AE$35:$AI$39,MATCH(F155,'BD1'!$AE$25:$AI$25,0),MATCH(G155,'BD1'!$AD$26:$AD$30,0))),"",(INDEX('BD1'!$AE$35:$AI$39,MATCH(F155,'BD1'!$AE$25:$AI$25,0),MATCH(G155,'BD1'!$AD$26:$AD$30,0)))) -> 
H156: =IF(ISERROR(INDEX('BD1'!$AE$26:$AI$30,MATCH(F156,'BD1'!$AE$25:$AI$25,0),MATCH(G156,'BD1'!$AD$26:$AD$30,0))),"",INDEX('BD1'!$AE$26:$AI$30,MATCH(F156,'BD1'!$AE$25:$AI$25,0),MATCH(G156,'BD1'!$AD$26:$AD$30,0))) ->  | I156: =IF(ISERROR(INDEX('BD1'!$AE$35:$AI$39,MATCH(F156,'BD1'!$AE$25:$AI$25,0),MATCH(G156,'BD1'!$AD$26:$AD$30,0))),"",(INDEX('BD1'!$AE$35:$AI$39,MATCH(F156,'BD1'!$AE$25:$AI$25,0),MATCH(G156,'BD1'!$AD$26:$AD$30,0)))) -> 
H157: =IF(ISERROR(INDEX('BD1'!$AE$26:$AI$30,MATCH(F157,'BD1'!$AE$25:$AI$25,0),MATCH(G157,'BD1'!$AD$26:$AD$30,0))),"",INDEX('BD1'!$AE$26:$AI$30,MATCH(F157,'BD1'!$AE$25:$AI$25,0),MATCH(G157,'BD1'!$AD$26:$AD$30,0))) ->  | I157: =IF(ISERROR(INDEX('BD1'!$AE$35:$AI$39,MATCH(F157,'BD1'!$AE$25:$AI$25,0),MATCH(G157,'BD1'!$AD$26:$AD$30,0))),"",(INDEX('BD1'!$AE$35:$AI$39,MATCH(F157,'BD1'!$AE$25:$AI$25,0),MATCH(G157,'BD1'!$AD$26:$AD$30,0)))) -> 
H158: =IF(ISERROR(INDEX('BD1'!$AE$26:$AI$30,MATCH(F158,'BD1'!$AE$25:$AI$25,0),MATCH(G158,'BD1'!$AD$26:$AD$30,0))),"",INDEX('BD1'!$AE$26:$AI$30,MATCH(F158,'BD1'!$AE$25:$AI$25,0),MATCH(G158,'BD1'!$AD$26:$AD$30,0))) ->  | I158: =IF(ISERROR(INDEX('BD1'!$AE$35:$AI$39,MATCH(F158,'BD1'!$AE$25:$AI$25,0),MATCH(G158,'BD1'!$AD$26:$AD$30,0))),"",(INDEX('BD1'!$AE$35:$AI$39,MATCH(F158,'BD1'!$AE$25:$AI$25,0),MATCH(G158,'BD1'!$AD$26:$AD$30,0)))) -> 
H159: =IF(ISERROR(INDEX('BD1'!$AE$26:$AI$30,MATCH(F159,'BD1'!$AE$25:$AI$25,0),MATCH(G159,'BD1'!$AD$26:$AD$30,0))),"",INDEX('BD1'!$AE$26:$AI$30,MATCH(F159,'BD1'!$AE$25:$AI$25,0),MATCH(G159,'BD1'!$AD$26:$AD$30,0))) ->  | I159: =IF(ISERROR(INDEX('BD1'!$AE$35:$AI$39,MATCH(F159,'BD1'!$AE$25:$AI$25,0),MATCH(G159,'BD1'!$AD$26:$AD$30,0))),"",(INDEX('BD1'!$AE$35:$AI$39,MATCH(F159,'BD1'!$AE$25:$AI$25,0),MATCH(G159,'BD1'!$AD$26:$AD$30,0)))) -> 
H160: =IF(ISERROR(INDEX('BD1'!$AE$26:$AI$30,MATCH(F160,'BD1'!$AE$25:$AI$25,0),MATCH(G160,'BD1'!$AD$26:$AD$30,0))),"",INDEX('BD1'!$AE$26:$AI$30,MATCH(F160,'BD1'!$AE$25:$AI$25,0),MATCH(G160,'BD1'!$AD$26:$AD$30,0))) ->  | I160: =IF(ISERROR(INDEX('BD1'!$AE$35:$AI$39,MATCH(F160,'BD1'!$AE$25:$AI$25,0),MATCH(G160,'BD1'!$AD$26:$AD$30,0))),"",(INDEX('BD1'!$AE$35:$AI$39,MATCH(F160,'BD1'!$AE$25:$AI$25,0),MATCH(G160,'BD1'!$AD$26:$AD$30,0)))) -> 
H161: =IF(ISERROR(INDEX('BD1'!$AE$26:$AI$30,MATCH(F161,'BD1'!$AE$25:$AI$25,0),MATCH(G161,'BD1'!$AD$26:$AD$30,0))),"",INDEX('BD1'!$AE$26:$AI$30,MATCH(F161,'BD1'!$AE$25:$AI$25,0),MATCH(G161,'BD1'!$AD$26:$AD$30,0))) ->  | I161: =IF(ISERROR(INDEX('BD1'!$AE$35:$AI$39,MATCH(F161,'BD1'!$AE$25:$AI$25,0),MATCH(G161,'BD1'!$AD$26:$AD$30,0))),"",(INDEX('BD1'!$AE$35:$AI$39,MATCH(F161,'BD1'!$AE$25:$AI$25,0),MATCH(G161,'BD1'!$AD$26:$AD$30,0)))) -> 
H162: =IF(ISERROR(INDEX('BD1'!$AE$26:$AI$30,MATCH(F162,'BD1'!$AE$25:$AI$25,0),MATCH(G162,'BD1'!$AD$26:$AD$30,0))),"",INDEX('BD1'!$AE$26:$AI$30,MATCH(F162,'BD1'!$AE$25:$AI$25,0),MATCH(G162,'BD1'!$AD$26:$AD$30,0))) ->  | I162: =IF(ISERROR(INDEX('BD1'!$AE$35:$AI$39,MATCH(F162,'BD1'!$AE$25:$AI$25,0),MATCH(G162,'BD1'!$AD$26:$AD$30,0))),"",(INDEX('BD1'!$AE$35:$AI$39,MATCH(F162,'BD1'!$AE$25:$AI$25,0),MATCH(G162,'BD1'!$AD$26:$AD$30,0)))) -> 
H163: =IF(ISERROR(INDEX('BD1'!$AE$26:$AI$30,MATCH(F163,'BD1'!$AE$25:$AI$25,0),MATCH(G163,'BD1'!$AD$26:$AD$30,0))),"",INDEX('BD1'!$AE$26:$AI$30,MATCH(F163,'BD1'!$AE$25:$AI$25,0),MATCH(G163,'BD1'!$AD$26:$AD$30,0))) ->  | I163: =IF(ISERROR(INDEX('BD1'!$AE$35:$AI$39,MATCH(F163,'BD1'!$AE$25:$AI$25,0),MATCH(G163,'BD1'!$AD$26:$AD$30,0))),"",(INDEX('BD1'!$AE$35:$AI$39,MATCH(F163,'BD1'!$AE$25:$AI$25,0),MATCH(G163,'BD1'!$AD$26:$AD$30,0)))) -> 
D167: =IF(ISERROR(INDEX('BD1'!$C$56:$E$56,1,MATCH(C167,'BD1'!$C$55:$E$55,0))),"",(INDEX('BD1'!$C$56:$E$56,1,MATCH(C167,'BD1'!$C$55:$E$55,0)))) ->  | H167: PROGRAMA
C168: SELECCIONE EJE AQUÍ ↑ | J168: SELECCIONE AQUÍ ↑
C169: RIESGOS IDENTIFICADOS | D169: TIPO DE RIESGO | E169: CONTROLES | F169: RESULTADOS DE LA EVALUACIÓN DEL RIESGO | I169: PLAN DE MANEJO | K169: OBSERVACIONES (Resultado de Evaluaciones / Auditorías Internas)
F170: IMPACTO | G170: PROBABILIDAD | H170: ZONA DE RIESGO | I170: OPCIONES DE MANEJO | J170: ACCIONES
H171: =IF(ISERROR(INDEX('BD1'!$AE$26:$AI$30,MATCH(F171,'BD1'!$AE$25:$AI$25,0),MATCH(G171,'BD1'!$AD$26:$AD$30,0))),"",INDEX('BD1'!$AE$26:$AI$30,MATCH(F171,'BD1'!$AE$25:$AI$25,0),MATCH(G171,'BD1'!$AD$26:$AD$30,0))) ->  | I171: =IF(ISERROR(INDEX('BD1'!$AE$35:$AI$39,MATCH(F171,'BD1'!$AE$25:$AI$25,0),MATCH(G171,'BD1'!$AD$26:$AD$30,0))),"",(INDEX('BD1'!$AE$35:$AI$39,MATCH(F171,'BD1'!$AE$25:$AI$25,0),MATCH(G171,'BD1'!$AD$26:$AD$30,0)))) -> 
H172: =IF(ISERROR(INDEX('BD1'!$AE$26:$AI$30,MATCH(F172,'BD1'!$AE$25:$AI$25,0),MATCH(G172,'BD1'!$AD$26:$AD$30,0))),"",INDEX('BD1'!$AE$26:$AI$30,MATCH(F172,'BD1'!$AE$25:$AI$25,0),MATCH(G172,'BD1'!$AD$26:$AD$30,0))) ->  | I172: =IF(ISERROR(INDEX('BD1'!$AE$35:$AI$39,MATCH(F172,'BD1'!$AE$25:$AI$25,0),MATCH(G172,'BD1'!$AD$26:$AD$30,0))),"",(INDEX('BD1'!$AE$35:$AI$39,MATCH(F172,'BD1'!$AE$25:$AI$25,0),MATCH(G172,'BD1'!$AD$26:$AD$30,0)))) -> 
H173: =IF(ISERROR(INDEX('BD1'!$AE$26:$AI$30,MATCH(F173,'BD1'!$AE$25:$AI$25,0),MATCH(G173,'BD1'!$AD$26:$AD$30,0))),"",INDEX('BD1'!$AE$26:$AI$30,MATCH(F173,'BD1'!$AE$25:$AI$25,0),MATCH(G173,'BD1'!$AD$26:$AD$30,0))) ->  | I173: =IF(ISERROR(INDEX('BD1'!$AE$35:$AI$39,MATCH(F173,'BD1'!$AE$25:$AI$25,0),MATCH(G173,'BD1'!$AD$26:$AD$30,0))),"",(INDEX('BD1'!$AE$35:$AI$39,MATCH(F173,'BD1'!$AE$25:$AI$25,0),MATCH(G173,'BD1'!$AD$26:$AD$30,0)))) -> 
H174: =IF(ISERROR(INDEX('BD1'!$AE$26:$AI$30,MATCH(F174,'BD1'!$AE$25:$AI$25,0),MATCH(G174,'BD1'!$AD$26:$AD$30,0))),"",INDEX('BD1'!$AE$26:$AI$30,MATCH(F174,'BD1'!$AE$25:$AI$25,0),MATCH(G174,'BD1'!$AD$26:$AD$30,0))) ->  | I174: =IF(ISERROR(INDEX('BD1'!$AE$35:$AI$39,MATCH(F174,'BD1'!$AE$25:$AI$25,0),MATCH(G174,'BD1'!$AD$26:$AD$30,0))),"",(INDEX('BD1'!$AE$35:$AI$39,MATCH(F174,'BD1'!$AE$25:$AI$25,0),MATCH(G174,'BD1'!$AD$26:$AD$30,0)))) -> 
H175: =IF(ISERROR(INDEX('BD1'!$AE$26:$AI$30,MATCH(F175,'BD1'!$AE$25:$AI$25,0),MATCH(G175,'BD1'!$AD$26:$AD$30,0))),"",INDEX('BD1'!$AE$26:$AI$30,MATCH(F175,'BD1'!$AE$25:$AI$25,0),MATCH(G175,'BD1'!$AD$26:$AD$30,0))) ->  | I175: =IF(ISERROR(INDEX('BD1'!$AE$35:$AI$39,MATCH(F175,'BD1'!$AE$25:$AI$25,0),MATCH(G175,'BD1'!$AD$26:$AD$30,0))),"",(INDEX('BD1'!$AE$35:$AI$39,MATCH(F175,'BD1'!$AE$25:$AI$25,0),MATCH(G175,'BD1'!$AD$26:$AD$30,0)))) -> 
H176: =IF(ISERROR(INDEX('BD1'!$AE$26:$AI$30,MATCH(F176,'BD1'!$AE$25:$AI$25,0),MATCH(G176,'BD1'!$AD$26:$AD$30,0))),"",INDEX('BD1'!$AE$26:$AI$30,MATCH(F176,'BD1'!$AE$25:$AI$25,0),MATCH(G176,'BD1'!$AD$26:$AD$30,0))) ->  | I176: =IF(ISERROR(INDEX('BD1'!$AE$35:$AI$39,MATCH(F176,'BD1'!$AE$25:$AI$25,0),MATCH(G176,'BD1'!$AD$26:$AD$30,0))),"",(INDEX('BD1'!$AE$35:$AI$39,MATCH(F176,'BD1'!$AE$25:$AI$25,0),MATCH(G176,'BD1'!$AD$26:$AD$30,0)))) -> 
H177: =IF(ISERROR(INDEX('BD1'!$AE$26:$AI$30,MATCH(F177,'BD1'!$AE$25:$AI$25,0),MATCH(G177,'BD1'!$AD$26:$AD$30,0))),"",INDEX('BD1'!$AE$26:$AI$30,MATCH(F177,'BD1'!$AE$25:$AI$25,0),MATCH(G177,'BD1'!$AD$26:$AD$30,0))) ->  | I177: =IF(ISERROR(INDEX('BD1'!$AE$35:$AI$39,MATCH(F177,'BD1'!$AE$25:$AI$25,0),MATCH(G177,'BD1'!$AD$26:$AD$30,0))),"",(INDEX('BD1'!$AE$35:$AI$39,MATCH(F177,'BD1'!$AE$25:$AI$25,0),MATCH(G177,'BD1'!$AD$26:$AD$30,0)))) -> 
H178: =IF(ISERROR(INDEX('BD1'!$AE$26:$AI$30,MATCH(F178,'BD1'!$AE$25:$AI$25,0),MATCH(G178,'BD1'!$AD$26:$AD$30,0))),"",INDEX('BD1'!$AE$26:$AI$30,MATCH(F178,'BD1'!$AE$25:$AI$25,0),MATCH(G178,'BD1'!$AD$26:$AD$30,0))) ->  | I178: =IF(ISERROR(INDEX('BD1'!$AE$35:$AI$39,MATCH(F178,'BD1'!$AE$25:$AI$25,0),MATCH(G178,'BD1'!$AD$26:$AD$30,0))),"",(INDEX('BD1'!$AE$35:$AI$39,MATCH(F178,'BD1'!$AE$25:$AI$25,0),MATCH(G178,'BD1'!$AD$26:$AD$30,0)))) -> 
H179: =IF(ISERROR(INDEX('BD1'!$AE$26:$AI$30,MATCH(F179,'BD1'!$AE$25:$AI$25,0),MATCH(G179,'BD1'!$AD$26:$AD$30,0))),"",INDEX('BD1'!$AE$26:$AI$30,MATCH(F179,'BD1'!$AE$25:$AI$25,0),MATCH(G179,'BD1'!$AD$26:$AD$30,0))) ->  | I179: =IF(ISERROR(INDEX('BD1'!$AE$35:$AI$39,MATCH(F179,'BD1'!$AE$25:$AI$25,0),MATCH(G179,'BD1'!$AD$26:$AD$30,0))),"",(INDEX('BD1'!$AE$35:$AI$39,MATCH(F179,'BD1'!$AE$25:$AI$25,0),MATCH(G179,'BD1'!$AD$26:$AD$30,0)))) -> 
H180: =IF(ISERROR(INDEX('BD1'!$AE$26:$AI$30,MATCH(F180,'BD1'!$AE$25:$AI$25,0),MATCH(G180,'BD1'!$AD$26:$AD$30,0))),"",INDEX('BD1'!$AE$26:$AI$30,MATCH(F180,'BD1'!$AE$25:$AI$25,0),MATCH(G180,'BD1'!$AD$26:$AD$30,0))) ->  | I180: =IF(ISERROR(INDEX('BD1'!$AE$35:$AI$39,MATCH(F180,'BD1'!$AE$25:$AI$25,0),MATCH(G180,'BD1'!$AD$26:$AD$30,0))),"",(INDEX('BD1'!$AE$35:$AI$39,MATCH(F180,'BD1'!$AE$25:$AI$25,0),MATCH(G180,'BD1'!$AD$26:$AD$30,0)))) -> 
H181: =IF(ISERROR(INDEX('BD1'!$AE$26:$AI$30,MATCH(F181,'BD1'!$AE$25:$AI$25,0),MATCH(G181,'BD1'!$AD$26:$AD$30,0))),"",INDEX('BD1'!$AE$26:$AI$30,MATCH(F181,'BD1'!$AE$25:$AI$25,0),MATCH(G181,'BD1'!$AD$26:$AD$30,0))) ->  | I181: =IF(ISERROR(INDEX('BD1'!$AE$35:$AI$39,MATCH(F181,'BD1'!$AE$25:$AI$25,0),MATCH(G181,'BD1'!$AD$26:$AD$30,0))),"",(INDEX('BD1'!$AE$35:$AI$39,MATCH(F181,'BD1'!$AE$25:$AI$25,0),MATCH(G181,'BD1'!$AD$26:$AD$30,0)))) -> 
H182: =IF(ISERROR(INDEX('BD1'!$AE$26:$AI$30,MATCH(F182,'BD1'!$AE$25:$AI$25,0),MATCH(G182,'BD1'!$AD$26:$AD$30,0))),"",INDEX('BD1'!$AE$26:$AI$30,MATCH(F182,'BD1'!$AE$25:$AI$25,0),MATCH(G182,'BD1'!$AD$26:$AD$30,0))) ->  | I182: =IF(ISERROR(INDEX('BD1'!$AE$35:$AI$39,MATCH(F182,'BD1'!$AE$25:$AI$25,0),MATCH(G182,'BD1'!$AD$26:$AD$30,0))),"",(INDEX('BD1'!$AE$35:$AI$39,MATCH(F182,'BD1'!$AE$25:$AI$25,0),MATCH(G182,'BD1'!$AD$26:$AD$30,0)))) -> 
H183: =IF(ISERROR(INDEX('BD1'!$AE$26:$AI$30,MATCH(F183,'BD1'!$AE$25:$AI$25,0),MATCH(G183,'BD1'!$AD$26:$AD$30,0))),"",INDEX('BD1'!$AE$26:$AI$30,MATCH(F183,'BD1'!$AE$25:$AI$25,0),MATCH(G183,'BD1'!$AD$26:$AD$30,0))) ->  | I183: =IF(ISERROR(INDEX('BD1'!$AE$35:$AI$39,MATCH(F183,'BD1'!$AE$25:$AI$25,0),MATCH(G183,'BD1'!$AD$26:$AD$30,0))),"",(INDEX('BD1'!$AE$35:$AI$39,MATCH(F183,'BD1'!$AE$25:$AI$25,0),MATCH(G183,'BD1'!$AD$26:$AD$30,0)))) -> 
H184: =IF(ISERROR(INDEX('BD1'!$AE$26:$AI$30,MATCH(F184,'BD1'!$AE$25:$AI$25,0),MATCH(G184,'BD1'!$AD$26:$AD$30,0))),"",INDEX('BD1'!$AE$26:$AI$30,MATCH(F184,'BD1'!$AE$25:$AI$25,0),MATCH(G184,'BD1'!$AD$26:$AD$30,0))) ->  | I184: =IF(ISERROR(INDEX('BD1'!$AE$35:$AI$39,MATCH(F184,'BD1'!$AE$25:$AI$25,0),MATCH(G184,'BD1'!$AD$26:$AD$30,0))),"",(INDEX('BD1'!$AE$35:$AI$39,MATCH(F184,'BD1'!$AE$25:$AI$25,0),MATCH(G184,'BD1'!$AD$26:$AD$30,0)))) -> 
H185: =IF(ISERROR(INDEX('BD1'!$AE$26:$AI$30,MATCH(F185,'BD1'!$AE$25:$AI$25,0),MATCH(G185,'BD1'!$AD$26:$AD$30,0))),"",INDEX('BD1'!$AE$26:$AI$30,MATCH(F185,'BD1'!$AE$25:$AI$25,0),MATCH(G185,'BD1'!$AD$26:$AD$30,0))) ->  | I185: =IF(ISERROR(INDEX('BD1'!$AE$35:$AI$39,MATCH(F185,'BD1'!$AE$25:$AI$25,0),MATCH(G185,'BD1'!$AD$26:$AD$30,0))),"",(INDEX('BD1'!$AE$35:$AI$39,MATCH(F185,'BD1'!$AE$25:$AI$25,0),MATCH(G185,'BD1'!$AD$26:$AD$30,0)))) -> 
H186: =IF(ISERROR(INDEX('BD1'!$AE$26:$AI$30,MATCH(F186,'BD1'!$AE$25:$AI$25,0),MATCH(G186,'BD1'!$AD$26:$AD$30,0))),"",INDEX('BD1'!$AE$26:$AI$30,MATCH(F186,'BD1'!$AE$25:$AI$25,0),MATCH(G186,'BD1'!$AD$26:$AD$30,0))) ->  | I186: =IF(ISERROR(INDEX('BD1'!$AE$35:$AI$39,MATCH(F186,'BD1'!$AE$25:$AI$25,0),MATCH(G186,'BD1'!$AD$26:$AD$30,0))),"",(INDEX('BD1'!$AE$35:$AI$39,MATCH(F186,'BD1'!$AE$25:$AI$25,0),MATCH(G186,'BD1'!$AD$26:$AD$30,0)))) -> 
A188: SECRETARÍA GENERAL DE LA ALCALDÍA MAYOR DE BOGOTÁ D.C. - OFICINA DE CONTROL INTERNO 2016

Sheet F4
A1: RELACIÓN DE INFORMES PRESENTADOS Y PUBLICADOS
B3: ENTIDAD | C3: =MENU!S9 -> Transmilenio S.A. | H3: VIGENCIA | I3: 2015 | K3: PERIODO EVALUADO | M3: 31 DE DICIMEBRE
I4: SELECCIONE AQUÍ ↑ | N4: SELECCIONE AQUÍ ↑
B5: NOMBRE DEL INFORME | E5: ORIGEN DEL INFORME | G5: OBJETIVO DE LA AUDITORÍA | J5: TIPO DE EVALUACIÓN | L5: CONCLUSIONES
B6: Análisis de las Solicitudes de Cesión de Derechos Económicos Estudiadas por el Comité de Verificación – Resolución N° 006 y 216 de 2015 | E6: LEGAL | G6: Determinar el grado de cumplimiento de las solicitudes de cesión de derechos económicos analizadas al interior del Comité de Verificación, con respecto a los requisitos documentales establecidos en las Resoluciones N° 006 y 216 de 2015 expedidas por TRANSMILENIO S.A. | J6: CONTROL INTERNO | L6: Se realizó seguimiento a las observaciones del informe anterior y se recomendó realizar un análisis de los compromisos que se encuentran pendientes por resolver. Emprender un plan de trabajo con fechas y responsables establecidos, y gestionar una solución adecuada y oportuna de las tareas inconclusas.
B7: Arqueo de Caja Menor | E7: PROGRAMA ANUAL DE AUDITORÍAS | G7: Verificar el cumplimiento de la Resolución TRANSMILENIO S.A. N° 034 del 26 de Enero de 2015 “Por medio de la cual se constituye el Fondo Fijo de Caja Menor de TRANSMILENIO S.A. para la vigencia fiscal 2015”, el Procedimiento P-DA-005 MANEJO DE CAJA MENOR de fecha 10 de diciembre de 2013 y la Resolución N° 001 del 12 de enero de 2000 “Por medio de la cual se reglamenta el manejo de las Cajas Menores de Transmilenio S.A.” | J7: CONTROL INTERNO | L7: La Oficina de Control Interno evidenció el cumplimiento parcial de lo establecido en el Procedimiento P-DA-005 “Manejo de Caja Menor” de fecha 10 de Diciembre de 2013. De los resultados emitidos en informes anteriores, se logró evidenciar avances en dos (2) observaciones, las cuales fueron debidamente cerradas producto del seguimiento realizado. Las observaciones restantes no presentaron acciones de mejoramiento que eviten la recurrencia de las novedades informadas.
B8: Auditoría Interna Proceso Desarrollo Estratégico y Sistema de Administración de Riesgos. | E8: PROGRAMA ANUAL DE AUDITORÍAS | G8: 1) Evaluar el diseño y la eficacia operacional de los controles internos del proceso y los subprocesos asociados. 2) Identificar oportunidades de mejoramiento que permitan agregar valor a los procesos de gestión de riesgos, control y gobierno de la Entidad. 3) Evaluar el grado de conformidad del Sistema Integrado de Gestión de la Entidad con respecto a los requisitos aplicables al Proceso Auditado. | J8: CONTROL INTERNO | L8: En la Auditoría Interna al proceso Desarrollo Estratégico y Sistema de Administración de Riesgos en su informe final se registran cinco (5) hallazgos al subproceso de Administración de Riesgos y siete (7) hallazgos al subproceso de Gestión Corporativa, para un total de doce (12) hallazgos abiertos identificados y la suscripción de los correspondientes Planes de Mejoramiento establecidos por los auditados.
B9: Acompañamiento Entrega de Cargo - Subgerencia Jurídica | E9: SOLICITUD ALTA DIRECCIÓN | G9: Asistir en calidad de observador (asesoría y acompañamiento) al acto de entrega del cargo de la Profesional Especializada Grado 05 de Concesiones al Profesional Especializado Grado 06 de Concesiones (Subgerencia Jurídica) con el fin de garantizar el debido proceso. | J9: CONTROL INTERNO | L9: La Oficina de Control Interno mediante este informe recomendó: "1. La Subgerencia Jurídica podrá establecer mecanismos de control que permitan que cada responsable documente todas las actuaciones al interior de los procesos a su cargo, el estado actual y las estrategias jurídicas a seguir, con el propósito de gestionar el conocimiento en caso de presentarse novedades en el personal" y "2. La Dirección Administrativa podrá impartir lineamientos relacionados con la entrega de cargos en caso de designaciones horizontales de funciones que permitan realizar la trazabilidad de los asuntos encomendados."
B10: Auditoría Interna Proceso Gestión del Talento Humano | E10: PROGRAMA ANUAL DE AUDITORÍAS | G10: 1) Evaluar el diseño y la eficacia operacional de los controles internos del proceso y los subprocesos asociados. 2) Identificar oportunidades de mejoramiento que permitan agregar valor a los procesos de gestión de riesgos, control y gobierno de la Entidad. 3) Evaluar el grado de conformidad del Sistema Integrado de Gestión de la Entidad con respecto a los requisitos aplicables al Proceso Auditado. | J10: CONTROL INTERNO | L10: Como resultado de esta Auditoría Interna al proceso Gestión del Talento Humano, se registran cuatro (4) hallazgos al subproceso de Bienestar y Desarrollo, tres (3) hallazgos al subproceso de Nomina y Prestaciones Sociales, dos (2) hallazgos al subproceso de selección y vinculación y un hallazgo general, para un total de diez (10) hallazgos abiertos, así como la suscripción de los correspondientes Planes de Mejoramiento establecidos por los auditados.
B11: Arqueo de Caja Menor | E11: PROGRAMA ANUAL DE AUDITORÍAS | G11: Verificar el cumplimiento de la Resolución TRANSMILENIO S.A. N° 034 del 26 de Enero de 2015 “Por medio de la cual se constituye el Fondo Fijo de Caja Menor de TRANSMILENIO S.A. para la vigencia fiscal 2015”, el procedimiento P-DA-005 MANEJO DE CAJA MENOR de fecha 10 de diciembre de 2013 y la Resolución N° 001 del 12 de enero de 2000 “Por medio de la cual se reglamenta el manejo de las Cajas Menores de Transmilenio S.A.” | J11: CONTROL INTERNO | L11: La Oficina de Control Interno evidenció el cumplimiento parcial de lo establecido en el Procedimiento P-DA-005 “Manejo de Caja Menor” de fecha 10 de Diciembre de 2013. De los resultados emitidos en informes anteriores, se logró evidenciar avances en cuatro (4) observaciones, de las cuales una (1) fue debidamente cerrada. Las tres (3) observaciones restantes continuarán siendo objeto de verificación por parte de la Oficina de Control Interno.
B12: Informe Pormenorizado del Estado del Control Interno – Ley 1474 de 2011. | E12: LEGAL | G12: 1) Identificar los avances y dificultades presentados en la implementación y mantenimiento de cada uno de los componentes que conforman el Modelo Estándar de Control Interno – MECI 2014. 2) Conceptuar acerca del estado general del Sistema de Control Interno de TRANSMILENIO S.A. 3) Emitir recomendaciones con el propósito de mejorar continuamente el Sistema de Control Interno de TRANSMILENIO S.A. | J12: CONTROL INTERNO | L12: En este informe se presentan los avances y dificultades por cada uno de los componentes del Sistema de Control Interno: - Módulo de Control de Planeación y Gestión. - Módulo de Control de Evaluación y Seguimiento. - Eje Transversal de Información y Comunicación. De igual manera se presenta el concepto general acerca del estado del Sistema de Control Interno de TRANSMILENIO S.A. y las recomendaciones emitidas por esta Oficina, tendientes a corregir las debilidades detectadas.
B13: Austeridad y Eficiencia en el Gasto Público – Decreto Nacional 1737 de 1998 - Decreto Distrital 030 de 1999. | E13: LEGAL | G13: 1) Verificar el cumplimiento de la normatividad legal aplicable en materia de austeridad y eficiencia del gasto público. 2) Analizar el comportamiento y las variaciones (incrementos o disminuciones de los gastos) en los rubros establecidos en la normatividad aplicable. | J13: CONTROL INTERNO | L13: De conformidad con lo descrito en este informe, se concluyó que las variaciones presentadas en los rubros analizados fueron justificadas de forma razonable. No obstante, este informe describe observaciones y recomendaciones sobre las cuales la Gerencia General debe implementar actividades de control que garanticen el cumplimiento de la normatividad aplicable en materia contable y de austeridad en el gasto público.
B14: Actividad de Fomento de la Cultura del Control y el Autocontrol - 2015 | E14: PROGRAMA ANUAL DE AUDITORÍAS | G14: Sensibilizar al personal de la Entidad sobre: 1) Las responsabilidades en el cumplimiento de sus obligaciones y la necesidad de implementar mecanismos de control y autocontrol en las actividades diarias con el fin de contribuir al logro de los objetivos institucionales. 2) Conceptos claves sobre el Modelo Estándar de Control Interno - MECI así como del Sistema TransMilenio. | J14: CONTROL INTERNO | L14: Esta actividad fue dirigida a todos los servidores públicos vinculados con TRANSMILENIO S.A. que voluntariamente manifestaron su interés por acudir a la convocatoria realizada por la Oficina de Control Interno a esta actividad. Cuatro de ellos fueron premiados por su conocimiento en el MECI y sobre el Autocontrol a través de preguntas que se realizaron en el concurso "Quien quiere ser Transmillonario"
B15: Verificación de la Liquidación de Saldos Presupuestales 2013 - 2015. | E15: SOLICITUD ALTA DIRECCIÓN | G15: Verificar que una vez los contratos suscritos por la Entidad hayan culminado su ejecución, los mismos sean oportunamente liquidados y los saldos presupuestales derivados de la liquidación hayan sido liberados. | J15: EVALUACIÓN DE GESTIÓN Y RESULTADOS | L15: Aunque la Subgerencia Económica publica periódicamente en la Intranet Institucional los informes de cuentas por pagar, como resultado de la verificación practicada se pudo evidenciar la existencia de saldos presupuestales correspondientes a contratos liquidados, así como la permanencia de contratos vencidos pendientes por liquidar, incumpliendo así lo establecido en el artículo 11 de la Ley 1150 de 2007 y el Manual de Supervisión e Interventoría de la Entidad, lo cual podría llegar a generar el desaprovechamiento de recursos económicos para otros fines prioritarios en la Organización.
B16: Auditoría Interna Procesos: Planeación del SITP / Supervisión y Control de la Operación del SITP. | E16: PROGRAMA ANUAL DE AUDITORÍAS | G16: 1) Evaluar el diseño y la eficacia operacional de los controles internos del proceso y los subprocesos asociados. 2) Identificar oportunidades de mejoramiento que permitan agregar valor a los procesos de gestión de riesgos, control y gobierno de la Entidad. 3) Evaluar el grado de conformidad del Sistema Integrado de Gestión de la Entidad con respecto a los requisitos aplicables al Proceso Auditado. | J16: CONTROL INTERNO | L16: Como resultado de la Auditoría Interna al proceso Planeación del SITP / Supervisión y Control de la Operación del SITP., se registran diecisiete (17) hallazgos y de los cuales se suscribieron nueve (9) Planes de Mejoramiento para los hallazgos aceptados.
B17: Auditoría Interna Proceso Gestión de Servicios Logísticos | E17: PROGRAMA ANUAL DE AUDITORÍAS | G17: 1) Evaluar el diseño y la eficacia operacional de los controles internos del proceso y los subprocesos asociados. 2) Identificar oportunidades de mejoramiento que permitan agregar valor a los procesos de gestión de riesgos, control y gobierno de la Entidad. 3) Evaluar el grado de conformidad del Sistema Integrado de Gestión de la Entidad con respecto a los requisitos aplicables al Proceso Auditado. | J17: CONTROL INTERNO | L17: Como resultado de la Auditoría Interna al Proceso Gestión de Servicios Logísticos, en el informe se registran cinco (5) hallazgos al subproceso de Gestión de Inventarios, Un (1) hallazgo al subproceso de Aseguramiento de Bienes e Intereses Patrimoniales, siete (7) hallazgos al subproceso de Gestión Documental y un (1) hallazgo general, para un total de catorce (14) hallazgos abiertos, asi como el Plan de Mejoramiento establecidos por los auditados.
B18: Seguimiento al Cumplimiento de las Funciones del Comité de Conciliación y Defensa Judicial | E18: LEGAL | G18: Verificar el cumplimiento de las obligaciones establecidas en el Decreto 1069 de 2015 “Por medio del cual se expide el Decreto Único Reglamentario del Sector Justicia y del Derecho” (Antes Decreto 1716 de 2009) por parte del Comité de Conciliación de TRANSMILENIO S.A. | J18: CONTROL INTERNO | L18: Según lo detallado en este informe, se concluye que existen observaciones sobre las cuales el Comité de Conciliación de TRANSMILENIO S.A. debe implementar actividades de control que garanticen el cumplimiento de la normatividad aplicable.
B19: Seguimiento a las Estrategias del Plan Anticorrupción y de Atención al Ciudadano | E19: LEGAL | G19: Verificar el cumplimiento de las estrategias para la construcción del Plan Anticorrupción y de Atención al Ciudadano de TRANSMILENIO S.A. establecidas para la vigencia 2015. | J19: CONTROL INTERNO | L19: De acuerdo con la información suministrada por los responsables de los distintos procesos y subprocesos de la Entidad, a la fecha de publicación del este informe, no se ha obtenido evidencia que permita deducir la materialización de los riesgos de corrupción previamente identificados. Con respecto al componente “Atención al Ciudadano”, la Entidad ha venido implementado diferentes actividades de control tendientes a optimizar la atención de las necesidades de los ciudadanos, no obstante, durante la vigencia 2015 la Oficina de Control Interno ha detectado diferentes oportunidades de mejoramiento al respecto, las cuales han sido reveladas de forma semestral en el Informe de Atención al Ciudadano y Gestión de Peticiones, Quejas, Reclamos y Sugerencias (Ley 1474 de 2011 – Decreto 2641 de 2012). Así mismo, en relación con los componentes “Rendición de Cuentas” y “Antitrámites”, se puede concluir de forma razonable que la Entidad ha venido ejecutando satisfactoriamente las actividades previstas para la vigencia 2015. Finalmente, se reafirma la necesidad que todas las áreas cuenten con la identificación y evaluación de los riesgos asociados a corrupción, lo cual debe quedar plasmado en el próximo Plan Anticorrupción y de Atención al Ciudadano vigencia 2016.
B20: Informe Proceso de Empalme – Control Interno Contable, Circular Externa N° 005 de 2015 emitida por la Contaduría General de la Nación | E20: OTRO | G20: Verificar el cumplimiento de las obligaciones establecidas en la Circula Externa No. 005 de 2015 emitida por la Contaduría General de la Nación, relacionadas con el proceso de empalme y el Control Interno Contable , conforme al cronograma de actividades dispuesto por la Administración saliente. | J20: CONTROL INTERNO | L20: En este informe la Oficina de Control Interno verificó las disposiciones incluidas en la Circular Externa N° 05 de 2015 expedida por la Contaduría General de la Nación en lo que hace referencia al empalme entre mandatarios distritales.
A38: SECRETARÍA GENERAL DE LA ALCALDÍA MAYOR DE BOGOTÁ D.C. - OFICINA DE CONTROL INTERNO 2016

Sheet BD1 (hidden)
B1: Sector Administrativo | P1: Nivel
B2: Gestión_Pública | C2: Gobierno_Seguridad_y_Convivencia | D2: Hacienda | E2: Planeación | F2: Desarrollo_Económico_Industria_y_Turismo | G2: Educación | H2: Salud | I2: Integración_Social | J2: Cultura_Recreación_y_Deporte | K2: Ambiente | L2: Movilidad | M2: Hábitat | N2: Mujer | P2: Gestión_Pública | Q2: Gobierno_Seguridad_y_Convivencia | R2: Hacienda | S2: Planeación | T2: Desarrollo_Económico_Industria_y_Turismo | U2: Educación | V2: Salud | W2: Integración_Social | X2: Cultura_Recreación_y_Deporte | Y2: Ambiente | Z2: Movilidad | AA2: Hábitat | AB2: Mujer | AD2: PERIODOS INFORMES | AI2: ORIGEN DEL INFORME | AJ2: TIPO DE EVALUACIÓN
AD3: RELACION DE CAUSAS | AE3: RIESGOS | AF3: SIG | AG3: RELACION INFORMES
B4: Secretaría General | C4: Secretaría Distrital de Gobierno | D4: Secretaría Distrital de Hacienda | E4: Secretaría Distrital de Planeación | F4: Secretaría Distrital de Desarrollo Económico | G4: Secretaría Distrital de Educación | H4: Secretaría Distrital de Salud | I4: Secretaría Distrital de Integración Social | J4: Secretaría Distrital de Cultura, Recreación y Deporte | K4: Secretaría Distrital de Ambiente | L4: Secretaría Distrital de Movilidad | M4: Secretaría Distrital de Hábitat | N4: Secretaría Distrital de la Mujer | P4: Central | Q4: Central | R4: Central | S4: Central | T4: Central | U4: Central | V4: Central | W4: Central | X4: Central | Y4: Central | Z4: Central | AA4: Central | AB4: Central | AD4: 30 DE MARZO | AE4: 30 DE ABRIL | AF4: 30 DE JUNIO | AG4: 30 DE JUNIO | AI4: LEGAL | AJ4: CALIDAD
B5: Departamento Administrativo del Servicio Civil | C5: Depto. Adtivo de la Defensoría del Espacio Público | D5: U.A.E. Unidad Adtiva Especial de Catastro | F5: Instituto para la Economía Social | G5: Inst. para la Invest. y el Desarrollo Pedagógico | H5: Fondo Financiero Distrital de Salud | I5: Instituto para la Protección de la Niñez y la Juventud | J5: Inst. Dist. para la Recreación y el Deporte | K5: Jardín Botánico José Celestino Mutis | L5: Instituto de Desarrollo Urbano | M5: Unidad Adtiva Especial de Servicios Públicos | P5: Central | Q5: Central | R5: Descentralizada / Adscrita | T5: Descentralizada / Adscrita | U5: Descentralizada / Adscrita | V5: Descentralizada / Adscrita | W5: Descentralizada / Adscrita | X5: Descentralizada / Adscrita | Y5: Descentralizada / Adscrita | Z5: Descentralizada / Adscrita | AA5: Descentralizada / Adscrita | AD5: 31 DE JUNIO | AE5: 30 DE AGOSTO | AF5: 30 DE DICIEMBRE | AG5: 31 DE DICIMEBRE | AI5: PROGRAMA ANUAL DE AUDITORÍAS | AJ5: CONTROL INTERNO
C6: UAE Cuerpo Oficial de Bomberos | D6: Fondo de Prestaciones Económ, Cesantías y Pensiones | F6: Instituto Distrital de Turismo | G6: Universidad Distrital Francisco José de Caldas | H6: Capital Salud | J6: Fundación Gilberto Alzate Avendaño | L6: Unidad Adtiva, Especial de Rehabilitación y Mantenimiento Vial | M6: Caja de Vivienda Popular | Q6: Central | R6: Descentralizada / Adscrita | T6: Descentralizada / Adscrita | U6: Descentralizada / Vinculada | V6: Descentralizada / Vinculada | X6: Central | Z6: Descentralizada / Adscrita | AA6: Descentralizada / Adscrita | AD6: 31 DE DICIEMBRE | AI6: SOLICITUD ALTA DIRECCIÓN | AJ6: CONTROL INTERNO CONTABLE
C7: Instit. Dist. de la Participación y Acción Comunal | D7: Lotería de Bogotá | F7: Corpor. para el Desarrollo y la Productividad - Bogotá Región | H7: Hospital de Fontibón | J7: Inst. Dist. de Patrimonio Cultural | L7: Transmilenio S.A. | M7: Empresa de Renovación Urbana | Q7: Descentralizada / Adscrita | R7: Descentralizada / Vinculada | T7: Descentralizada / Vinculada | V7: Descentralizada / Adscrita | X7: Descentralizada / Adscrita | Z7: Descentralizada / Vinculada | AA7: Descentralizada / Vinculada | AI7: OTRO | AJ7: EVALUACIÓN DE GESTIÓN Y RESULTADOS
C8: Fondo de Prevención y Atención de Emergencia | H8: Hospital Centro Oriente | J8: Orquesta Filarmónica de Bogotá | L8: Terminal de Transportes S.A. | M8: Empresa de Acueducto y Alcantarillado de Bogotá | Q8: Descentralizada / Adscrita | V8: Descentralizada / Adscrita | X8: Descentralizada / Adscrita | Z8: Descentralizada / Vinculada | AA8: Descentralizada / Vinculada | AJ8: AUDITORIA INTERNA CONTABLE
C9: Fondo de vigilancia y seguridad | H9: Hospital Rafael Uribe | J9: Instituto Distrital de las Artes | M9: Metrovivienda | Q9: Descentralizada / Adscrita | V9: Descentralizada / Adscrita | X9: Descentralizada / Adscrita | AA9: Descentralizada / Vinculada | AJ9: AUDITORIA AMBIENTAL
H10: Hospital Occidente Kennedy | J10: Canal Capital | M10: Empresa de Telecomunicaciones de Bogotá | V10: Descentralizada / Adscrita | X10: Descentralizada / Vinculada | AA10: Descentralizada / Vinculada
H11: Hospital Chapinero | M11: Empresa de Energía de Bogotá | V11: Descentralizada / Adscrita | AA11: Descentralizada / Vinculada | AD11: TIPO DE RIESGO | AE11: EVALUACIÓN DEL RIESGO
H12: Hospital San Blas | V12: Descentralizada / Adscrita | AE12: IMPACTO | AF12: PROBABILIDAD
H13: Hospital San Cristobal | V13: Descentralizada / Adscrita | AD13: Riesgo Estratégico | AE13: Insignificante | AF13: Raro
H14: Hospital Suba II Nivel | V14: Descentralizada / Adscrita | AD14: Riesgo de Imagen | AE14: Menor | AF14: Improbable
H15: Hospital Usme | V15: Descentralizada / Adscrita | AD15: Riesgo Operativo | AE15: Moderado | AF15: Posible
H16: Hospital Tunal | V16: Descentralizada / Adscrita | AD16: Riesgo Financiero | AE16: Mayor | AF16: Probable
H17: Hospital Usaquen | V17: Descentralizada / Adscrita | AD17: Riesgo de Cumplimiento | AE17: Catastrófico | AF17: Casi Seguro
H18: Hospital Vista Hermosa | V18: Descentralizada / Adscrita | AD18: Riesgo de Tecnología
H19: Hospital Sur | V19: Descentralizada / Adscrita | AD19: Riesgo de Seguridad y Salud Ocupacional
H20: Hospital Pablo VI Bosa | V20: Descentralizada / Adscrita | AD20: Riesgo Ambiental
H21: Hospital Tunjuelito | V21: Descentralizada / Adscrita | AD21: Riesgo de Corrupción
H22: Hospital Simón Bolivar | V22: Descentralizada / Adscrita | AD22: OTRO
H23: Hospital de Nazareth | V23: Descentralizada / Adscrita
H24: Hospital Engativa | V24: Descentralizada / Adscrita | AD24: ZONA DE RIESGO
H25: Hospital Santa Clara | V25: Descentralizada / Adscrita | AE25: Insignificante | AF25: Menor | AG25: Moderado | AH25: Mayor | AI25: Catastrófico
H26: Hospital Meissen | V26: Descentralizada / Adscrita | AD26: Raro | AE26: BAJA | AF26: BAJA | AG26: MODERADA | AH26: ALTA | AI26: ALTA
H27: Hospital La Victoria | V27: Descentralizada / Adscrita | AD27: Improbable | AE27: BAJA | AF27: BAJA | AG27: MODERADA | AH27: ALTA | AI27: EXTREMA
H28: Hospital Bosa II Nivel | V28: Descentralizada / Adscrita | AD28: Posible | AE28: BAJA | AF28: MODERADA | AG28: ALTA | AH28: EXTREMA | AI28: EXTREMA
AD29: Probable | AE29: MODERADA | AF29: ALTA | AG29: ALTA | AH29: EXTREMA | AI29: EXTREMA
AD30: Casi Seguro | AE30: ALTA | AF30: ALTA | AG30: EXTREMA | AH30: EXTREMA | AI30: EXTREMA
AD33: OPCIONES DE MANEJO
AE34: Insignificante | AF34: Menor | AG34: Moderado | AH34: Mayor | AI34: Catastrófico
AD35: Raro | AE35: Asumir el riesgo | AF35: Asumir el riesgo | AG35: Asumir o Reducir el riesgo | AH35: Reducir, Evitar, Compartir o Transferir el riesgo | AI35: Reducir, Evitar, Compartir o Transferir el riesgo
AD36: Improbable | AE36: Asumir el riesgo | AF36: Asumir el riesgo | AG36: Asumir o Reducir el riesgo | AH36: Reducir, Evitar, Compartir o Transferir el riesgo | AI36: Reducir, Evitar, Compartir o Transferir el riesgo
AD37: Posible | AE37: Asumir el riesgo | AF37: Asumir o Reducir el riesgo | AG37: Reducir, Evitar, Compartir o Transferir el riesgo | AH37: Reducir, Evitar, Compartir o Transferir el riesgo | AI37: Reducir, Evitar, Compartir o Transferir el riesgo
AD38: Probable | AE38: Asumir o Reducir el riesgo | AF38: Reducir, Evitar, Compartir o Transferir el riesgo | AG38: Reducir, Evitar, Compartir o Transferir el riesgo | AH38: Reducir, Evitar, Compartir o Transferir el riesgo | AI38: Reducir, Evitar, Compartir o Transferir el riesgo
AD39: Casi Seguro | AE39: Reducir, Evitar, Compartir o Transferir el riesgo | AF39: Reducir, Evitar, Compartir o Transferir el riesgo | AG39: Reducir, Evitar, Compartir o Transferir el riesgo | AH39: Reducir, Evitar, Compartir o Transferir el riesgo | AI39: Reducir, Evitar, Compartir o Transferir el riesgo
AD47: 1 | AE47: =+AD47/400 -> 0.0025
AD48: 2 | AE48: =+AD48/400 -> 0.005
AD49: 3 | AE49: =+AD49/400 -> 0.0075
AD50: 4 | AE50: =+AD50/400 -> 0.01
AD51: 5 | AE51: =+AD51/400 -> 0.0125 | AF51: 100
C54: EJES PLAN DE DESARROLLO | H54: RELACIÓN DE CAUSAS | L54: RELACIÓN DE CAUSAS
C55: EJE_UNO | D55: EJE_DOS | E55: EJE_TRES | H55: Gestión_Contractual | I55: Gestión_Presupuestal | J55: Gestión_Fisica | K55: Otra | L55: Gestión_Contractual | M55: Gestión_Presupuestal | N55: Gestión_Fisica
C56: Una ciudad que supera la segregación y la discriminación | D56: Un territorio que enfrenta el cambio climático | E56: Una Bogotá que defiende y fortalece lo público | L56: PLANEAR | M56: PLANEAR | N56: PLANEAR
C57: Garantía del desarrollo integral de la primera infancia | D57: Recuperación rehabilitación y restauración de la estructura ecológica principal y de los espacios del agua | E57: Bogotá Humana: Participa y Decide | H57: Deficiente y/o incompleta formulación del Plan Anual de Adquisiciones y/o Presupuesto Anual. | I57: Falta de instrumentos y/o metodologías para estimar precios, valores y/o presupuesto. | J57: Falta definir y/o incumplimiento de actividades de programación para la realización del producto y/o prestación del servicio. | L57: PLANEAR | M57: PLANEAR | N57: PLANEAR
C58: Territorios saludables y red de salud para la vida desde la diversidad | D58: Estrategia territorial regional frente al cambio climático | E58: Fortalecimiento de las capacidades de gestión y coordinación del nivel central y las localidades desde los territorios | H58: Incumplimiento y/o modificaciones al plan contractual/ plan de compras aprobado. | I58: Incumplimiento a la programación definida en el “PAC”. | J58: Falta de previsión y/o omisión de actividades y/o indisponibilidad de recursos (físicos, tecnológicos, humanos) previos y necesarios para el desarrollo del producto y/o prestación del servicio | L58: PLANEAR | M58: PLANEAR | N58: PLANEAR
C59: Construcción de saberes. Educación incluyente, diversa y de calidad para disfrutar y aprender | D59: Movilidad Humana | E59: Transparencia, probidad, lucha contra la corrupción y control social efectivo e incluyente | H59: Falta de definición y/o incumplimiento de tiempos/términos al interior de la Entidad para desarrollar la contratación. | I59: Falta de definición de tiempos/ términos al interior de la Entidad para adelantar trámites de solicitud del CDP, RP y/o giro/pago. | J59: Obligaciones y objeto contractual, plazo y precio desajustados a la realidad de su ejecución / necesidades de la Entidad. | L59: PLANEAR | M59: PLANEAR | N59: HACER
C60: Bogotá Humana con igualdad de oportunidades y equidad de género para las mujeres | D60: Gestión integral de riesgos | E60: Territorios de vida y paz con prevención del delito | H60: Diferencias de criterios para definir la modalidad y requisitos para la contratación al interior de la organización. | I60: Imprecisas y/o indefinidas directrices y lineamientos | J60: Trámites sujetos a la aprobación de entidades externas. | L60: PLANEAR | M60: PLANEAR | N60: HACER
C61: Lucha contra distintos tipos de discriminación y violencias por condición, situación, identidad, diferencia, diversidad o etapa del ciclo vital | D61: Basura Cero | E61: Fortalecimiento de la seguridad ciudadana | H61: Desconocimiento de políticas, procesos y procedimientos definidos para adelantar procesos de contratación. | I61: Desconocimiento de los procesos y procedimientos (Gestiones relacionadas con la expedición de CDP, RP y solicitudes de giros/pagos). | J61: Inoportuna y/o desatención de los requerimientos del contratista respecto a contingencias en la ejecución contractual. | L61: HACER | M61: HACER | N61: HACER
C62: Bogotá humana por la dignidad de las víctimas | D62: Bogotá humana ambientalmente saludable | E62: Bogotá, Ciudad de Memoria, Paz y Reconciliación | H62: Deficiente y/o imprecisa elaboración de estudios y diseños previos (técnicos, económicos y jurídicos). | I62: Demoras en la expedición de la Certificación por parte del interventor. | J62: Terminación anticipada del contrato. | L62: HACER | M62: HACER | N62: HACER
C63: Bogotá, un territorio que defiende, protege y promueve los derechos humanos | D63: Bogotá, territorio en la Región | E63: Bogota decide y protege el derecho fundamental a la salud público | H63: Falta de claridad y/o imprecisión en los criterios de evaluación de propuestas | I63: Demoras en el perfeccionamiento de los contratos. | J63: Desarticulación entre las entidades y/o sectores responsables de la ejecución de la meta. | L63: HACER | M63: HACER | N63: HACER
C64: Ejercicio de las libertades culturales y deportivas | E64: Fortalecimiento de la función Administrativa y Desarrollo Institucional | H64: Trámites sujetos a la aprobación de entidades externas. | I64: Demoras en el trámite de Acta de Inicio. | J64: Deficiente/falta de supervisión/interventoría en la ejecución de cronogramas, productos y servicios previstos en las obligaciones y objetos contractuales. | L64: HACER | M64: HACER | N64: VERIFICAR
C65: Soberanía y seguridad alimentaria y nutricional | E65: TIC para Gobierno Digital, Ciudad Inteligente y Sociedad del conocimiento y del emprendimiento | H65: Demoras en la convocatoria y/o celebración de las reuniones de los Comités de Adjudicación - Contratación (o quien haga sus veces). | I65: Inoportunidad en el envío y/o incumplimiento de requisitos presentados para tramitar el pago/giro. | J65: Falta o esporádicos seguimientos al avance físico previsto de las metas. | L65: VERIFICAR | M65: HACER | N65: VERIFICAR
C66: Ruralidad humana | E66: Bogotá Humana Internacional | H66: Errores y/o imprecisiones en los resultados de las Evaluaciones técnicas, financieras y jurídicas. | I66: Incorrecta y/o inoportuna liquidación del Contrato. | J66: Falta y/o inoportuna ejecución de acciones contractuales dados las contingencias, reajustes y precisiones que promueven precisar la realización del producto y/o prestación del servicio. | L66: VERIFICAR | M66: HACER | N66: ACTUAR
C67: Ciencia, Tecnología e Innovación para avanzar en el desarrollo de la ciudad | H67: Demoras en la realización de ajustes y/o presentación de modificaciones a los estudios previos y/o documentos relacionados con la etapa precontractual. | I67: Falta comunicación y/o retroalimentación por parte de los gerentes de proyectos, el área financiera de la Entidad y/o representante legal – gerente. | J67: Falta y/o Inoportuna toma de decisiones frente a los resultados de los seguimientos de las metas físicas. | L67: ACTUAR | M67: VERIFICAR | N67: ACTUAR
C68: Apoyo a la economía popular, emprendimiento y productividad | H68: OTRA | I68: Falta o esporádicos seguimientos presupuestales – contractuales en la Entidad. | J68: OTRA | L68: - | M68: VERIFICAR | N68: -
C69: Trabajo decente y digno | I69: Demoras en el trámite de modificaciones presupuestales previstas (adiciones y/o reducciones) | M69: ACTUAR
C70: Fortalecimiento y mejoramiento de la calidad y cobertura de los servicios públicos | I70: OTRA | M70: -
C71: Vivienda y hábitat humanos
C72: Revitalización del centro ampliado
C74: RANGOS DE INTERPRETACIÓN
C75: 0 | D75: 0.65 | E75: ALERTA
C76: =+D75+0.1% -> 0.651 | D76: 0.9 | E76: ACEPTABLE
C77: =+D76+0.1% -> 0.901 | D77: 1 | E77: SATISFACTORIO

Sheet BD-resultados (hidden)
A2: DATOS JEFE DE CONTROL INTERNO
A3: SECTOR ADMITIVO | B3: NIVEL | C3: ENTIDAD | D3: NOMBRE | E3: VACANTE | F3: =+'ACTUALIZACION DATOS'!P21 -> En Encargo | G3: CORREO ELECTRONICO | H3: TELEFONO | I3: EXTENSIÓN | J3: CELUALR
A4: =+'ACTUALIZACION DATOS'!K10 -> Movilidad | B4: =+'ACTUALIZACION DATOS'!K14 -> Descentralizada / Vinculada | C4: =+'ACTUALIZACION DATOS'!K12 -> Transmilenio S.A. | D4: =+'ACTUALIZACION DATOS'!K16 -> Héctor Fabio Rodríguez Devia | E4: =+'ACTUALIZACION DATOS'!Q19 -> NO | F4: =+'ACTUALIZACION DATOS'!Q21 -> NO | G4: =+'ACTUALIZACION DATOS'!K23 -> hector.rodriguez@transmilenio.gov.co | H4: =+'ACTUALIZACION DATOS'!K25 -> 2203000 | I4: =+'ACTUALIZACION DATOS'!Q25 -> 1201 | J4: =+'ACTUALIZACION DATOS'!K27 -> 0
A8: CUMPLIMIENTO DE LAS METAS DEL PLAN DE DESARROLLO | R8: RELACIÓN DE CAUSAS | Y8: GESTIÓN TOTAL PROMEDIO
A9: ENTIDAD | B9: =+A3 -> SECTOR ADMITIVO | C9: VIGENCIA | D9: PERIODO EVALUADO | E9: EJE | F9: PROGRAMA | G9: Número y nombre del Proyecto de Inversión | H9: Presupuesto definitivo para la Meta Plan de Desarrollo (Vigencia) | I9: META | J9: GESTIÓN CONTRACTUAL + PROG / EJEC | K9: GESTIÓN PRESUPUESTAL | L9: GESTIÓN FÍSICA | R9: EJE | S9: PROGRAMA | T9: =+B9 -> SECTOR ADMITIVO | U9: CAUSA RELACIONADA CON: | V9: CAUSA | W9: AFECTA EN EL CICLO PHVA | AA9: GESTION ESPERADA
A10: =$C$4 -> Transmilenio S.A. | B10: =$A$4 -> Movilidad | C10: ='F1'!$N$3 -> 2015 | D10: =+'F1'!$T$3 -> 31 DE DICIEMBRE | E10: =+'F1'!$C$7 -> EJE_UNO | F10: ='F1'!C11 -> Fortalecimiento y mejoramiento de la calidad y cobertura de los servicios públicos | G10: ='F1'!D11 -> 7223. Operación y control del sistema de transporte | H10: ='F1'!E11 -> 0 | I10: ='F1'!F11 -> Beneficiar Mensualmente 199507 Personas En Condición De Discapacidad Con Una Tarifa Preferencial De Acceso Al Sistema Integrado De Transporte Público. | J10: =+'F1'!J11 ->  | K10: =+'F1'!O11 -> 1 | L10: =+'F1'!T11 -> 0.2310545495 | R10: =+E10 -> EJE_UNO | S10: =+F10 -> Fortalecimiento y mejoramiento de la calidad y cobertura de los servicios públicos | T10: =$A$4 -> Movilidad | U10: =+'F1'!F76 -> Gestión_Contractual | V10: =+'F1'!J76 -> OTRA | W10: =+'F1'!T76 -> - | Y10: GESTIÓN CONTRACTUAL + PROG / EJEC | Z10: =AVERAGE(J10:J102) -> 0.8721428571 | AA10: 1
A11: Transmilenio S.A. | B11: =$A$4 -> Movilidad | C11: ='F1'!$N$3 -> 2015 | D11: =+'F1'!$T$3 -> 31 DE DICIEMBRE | E11: =+'F1'!$C$7 -> EJE_UNO | F11: ='F1'!C13 -> 0 | G11: ='F1'!D13 -> 0 | H11: ='F1'!E13 -> 0 | I11: ='F1'!F13 -> 0 | J11: =+'F1'!J13 ->  | K11: =+'F1'!O13 ->  | L11: =+'F1'!T13 ->  | R11: =+R10 -> EJE_UNO | S11: =+S10 -> Fortalecimiento y mejoramiento de la calidad y cobertura de los servicios públicos | T11: =$A$4 -> Movilidad | U11: =+'F1'!F82 -> Gestión_Presupuestal | V11: =+'F1'!J82 -> OTRA | W11: =+'F1'!T82 -> - | Y11: GESTIÓN PRESUPUESTAL | Z11: =AVERAGE(K10:K102) -> 0.814690395 | AA11: 1
A12: Transmilenio S.A. | B12: =$A$4 -> Movilidad | C12: ='F1'!$N$3 -> 2015 | D12: =+'F1'!$T$3 -> 31 DE DICIEMBRE | E12: =+'F1'!$C$7 -> EJE_UNO | F12: ='F1'!C15 -> 0 | G12: ='F1'!D15 -> 0 | H12: ='F1'!E15 -> 0 | I12: ='F1'!F15 -> 0 | J12: =+'F1'!J15 ->  | K12: =+'F1'!O15 ->  | L12: =+'F1'!T15 ->  | R12: =+R11 -> EJE_UNO | S12: =+S11 -> Fortalecimiento y mejoramiento de la calidad y cobertura de los servicios públicos | T12: Movilidad | U12: =+'F1'!F88 -> Gestión_Fisica | V12: =+'F1'!J88 -> OTRA | W12: =+'F1'!T88 -> - | Y12: GESTIÓN FÍSICA | Z12: =AVERAGE(L10:L102) -> 0.907351514 | AA12: 1
A13: Transmilenio S.A. | B13: Movilidad | C13: ='F1'!$N$3 -> 2015 | D13: =+'F1'!$T$3 -> 31 DE DICIEMBRE | E13: =+'F1'!$C$7 -> EJE_UNO | F13: ='F1'!C17 -> 0 | G13: ='F1'!D17 -> 0 | H13: ='F1'!E17 -> 0 | I13: ='F1'!F17 -> 0 | J13: =+'F1'!J17 ->  | K13: =+'F1'!O17 ->  | L13: =+'F1'!T17 ->  | R13: EJE_UNO | S13: Fortalecimiento y mejoramiento de la calidad y cobertura de los servicios públicos | T13: Movilidad | U13: =+'F1'!F94 -> 0 | V13: =+'F1'!J94 -> 0 | W13: =+'F1'!T94 -> 
A14: Transmilenio S.A. | B14: Movilidad | C14: ='F1'!$N$3 -> 2015 | D14: =+'F1'!$T$3 -> 31 DE DICIEMBRE | E14: =+'F1'!$C$7 -> EJE_UNO | F14: ='F1'!C19 -> 0 | G14: ='F1'!D19 -> 0 | H14: ='F1'!E19 -> 0 | I14: ='F1'!F19 -> 0 | J14: =+'F1'!J19 ->  | K14: =+'F1'!O19 ->  | L14: =+'F1'!T19 ->  | R14: EJE_UNO | S14: Fortalecimiento y mejoramiento de la calidad y cobertura de los servicios públicos | T14: Movilidad | U14: =+'F1'!F100 -> 0 | V14: =+'F1'!J100 -> 0 | W14: =+'F1'!T100 -> 
A15: Transmilenio S.A. | B15: Movilidad | C15: ='F1'!$N$3 -> 2015 | D15: =+'F1'!$T$3 -> 31 DE DICIEMBRE | E15: =+'F1'!$C$7 -> EJE_UNO | F15: ='F1'!C21 -> 0 | G15: ='F1'!D21 -> 0 | H15: ='F1'!E21 -> 0 | I15: ='F1'!F21 -> 0 | J15: =+'F1'!J21 ->  | K15: =+'F1'!O21 ->  | L15: =+'F1'!T21 ->  | R15: EJE_UNO | S15: Fortalecimiento y mejoramiento de la calidad y cobertura de los servicios públicos | T15: Movilidad | U15: =+'F1'!F106 -> 0 | V15: =+'F1'!J106 -> 0 | W15: =+'F1'!T106 ->  | Y15: Cuenta de AFECTA EN EL CICLO PHVA
A16: Transmilenio S.A. | B16: Movilidad | C16: ='F1'!$N$3 -> 2015 | D16: =+'F1'!$T$3 -> 31 DE DICIEMBRE | E16: =+'F1'!$C$7 -> EJE_UNO | F16: ='F1'!C23 -> 0 | G16: ='F1'!D23 -> 0 | H16: ='F1'!E23 -> 0 | I16: ='F1'!F23 -> 0 | J16: =+'F1'!J23 ->  | K16: =+'F1'!O23 ->  | L16: =+'F1'!T23 ->  | R16: EJE_UNO | S16: Fortalecimiento y mejoramiento de la calidad y cobertura de los servicios públicos | T16: Movilidad | U16: =+'F1'!F112 -> Gestión_Contractual | V16: =+'F1'!J112 -> OTRA | W16: =+'F1'!T112 -> - | Y16: AFECTA EN EL CICLO PHVA | Z16: Total
A17: Transmilenio S.A. | B17: Movilidad | C17: ='F1'!$N$3 -> 2015 | D17: =+'F1'!$T$3 -> 31 DE DICIEMBRE | E17: =+'F1'!$C$7 -> EJE_UNO | F17: ='F1'!C25 -> 0 | G17: ='F1'!D25 -> 0 | H17: ='F1'!E25 -> 0 | I17: ='F1'!F25 -> 0 | J17: =+'F1'!J25 ->  | K17: =+'F1'!O25 ->  | L17: =+'F1'!T25 ->  | R17: EJE_UNO | S17: Fortalecimiento y mejoramiento de la calidad y cobertura de los servicios públicos | T17: Movilidad | U17: =+'F1'!F118 -> 0 | V17: =+'F1'!J118 -> 0 | W17: =+'F1'!T118 ->  | Y17: PLANEAR | Z17: 3
A18: Transmilenio S.A. | B18: Movilidad | C18: ='F1'!$N$3 -> 2015 | D18: =+'F1'!$T$3 -> 31 DE DICIEMBRE | E18: =+'F1'!$C$7 -> EJE_UNO | F18: ='F1'!C27 -> 0 | G18: ='F1'!D27 -> 0 | H18: ='F1'!E27 -> 0 | I18: ='F1'!F27 -> 0 | J18: =+'F1'!J27 ->  | K18: =+'F1'!O27 ->  | L18: =+'F1'!T27 ->  | R18: EJE_UNO | S18: Fortalecimiento y mejoramiento de la calidad y cobertura de los servicios públicos | T18: Movilidad | U18: =+'F1'!F124 -> 0 | V18: =+'F1'!J124 -> 0 | W18: =+'F1'!T124 ->  | Y18: HACER | Z18: 3
A19: Transmilenio S.A. | B19: Movilidad | C19: ='F1'!$N$3 -> 2015 | D19: =+'F1'!$T$3 -> 31 DE DICIEMBRE | E19: =+'F1'!$C$7 -> EJE_UNO | F19: ='F1'!C29 -> 0 | G19: ='F1'!D29 -> 0 | H19: ='F1'!E29 -> 0 | I19: ='F1'!F29 -> 0 | J19: =+'F1'!J29 ->  | K19: =+'F1'!O29 ->  | L19: =+'F1'!T29 ->  | R19: EJE_UNO | S19: Fortalecimiento y mejoramiento de la calidad y cobertura de los servicios públicos | T19: Movilidad | U19: =+'F1'!F130 -> 0 | V19: =+'F1'!J130 -> 0 | W19: =+'F1'!T130 ->  | Y19: Total general | Z19: 6
A20: Transmilenio S.A. | B20: Movilidad | C20: ='F1'!$N$3 -> 2015 | D20: =+'F1'!$T$3 -> 31 DE DICIEMBRE | E20: =+'F1'!$C$7 -> EJE_UNO | F20: ='F1'!C31 -> 0 | G20: ='F1'!D31 -> 0 | H20: ='F1'!E31 -> 0 | I20: ='F1'!F31 -> 0 | J20: =+'F1'!J31 ->  | K20: =+'F1'!O31 ->  | L20: =+'F1'!T31 ->  | R20: EJE_UNO | S20: Fortalecimiento y mejoramiento de la calidad y cobertura de los servicios públicos | T20: Movilidad | U20: =+'F1'!F136 -> 0 | V20: =+'F1'!J136 -> 0 | W20: =+'F1'!T136 -> 
A21: Transmilenio S.A. | B21: Movilidad | C21: ='F1'!$N$3 -> 2015 | D21: =+'F1'!$T$3 -> 31 DE DICIEMBRE | E21: =+'F1'!$C$7 -> EJE_UNO | F21: ='F1'!C33 -> 0 | G21: ='F1'!D33 -> 0 | H21: ='F1'!E33 -> 0 | I21: ='F1'!F33 -> 0 | J21: =+'F1'!J33 ->  | K21: =+'F1'!O33 ->  | L21: =+'F1'!T33 ->  | R21: EJE_UNO | S21: Fortalecimiento y mejoramiento de la calidad y cobertura de los servicios públicos | T21: Movilidad | U21: =+'F1'!F142 -> 0 | V21: =+'F1'!J142 -> 0 | W21: =+'F1'!T142 -> 
A22: Transmilenio S.A. | B22: Movilidad | C22: ='F1'!$N$3 -> 2015 | D22: =+'F1'!$T$3 -> 31 DE DICIEMBRE | E22: =+'F1'!$C$7 -> EJE_UNO | F22: ='F1'!C35 -> 0 | G22: ='F1'!D35 -> 0 | H22: ='F1'!E35 -> 0 | I22: ='F1'!F35 -> 0 | J22: =+'F1'!J35 ->  | K22: =+'F1'!O35 ->  | L22: =+'F1'!T35 ->  | R22: EJE_UNO | S22: Fortalecimiento y mejoramiento de la calidad y cobertura de los servicios públicos | T22: Movilidad | U22: =+'F1'!F148 -> 0 | V22: =+'F1'!J148 -> 0 | W22: =+'F1'!T148 -> 
A23: Transmilenio S.A. | B23: Movilidad | C23: ='F1'!$N$3 -> 2015 | D23: =+'F1'!$T$3 -> 31 DE DICIEMBRE | E23: =+'F1'!$C$7 -> EJE_UNO | F23: ='F1'!C37 -> 0 | G23: ='F1'!D37 -> 0 | H23: ='F1'!E37 -> 0 | I23: ='F1'!F37 -> 0 | J23: =+'F1'!J37 ->  | K23: =+'F1'!O37 ->  | L23: =+'F1'!T37 ->  | R23: EJE_UNO | S23: Fortalecimiento y mejoramiento de la calidad y cobertura de los servicios públicos | T23: Movilidad | U23: =+'F1'!F154 -> 0 | V23: =+'F1'!J154 -> 0 | W23: =+'F1'!T154 -> 
A24: Transmilenio S.A. | B24: Movilidad | C24: ='F1'!$N$3 -> 2015 | D24: =+'F1'!$T$3 -> 31 DE DICIEMBRE | E24: =+'F1'!$C$7 -> EJE_UNO | F24: ='F1'!C39 -> 0 | G24: ='F1'!D39 -> 0 | H24: ='F1'!E39 -> 0 | I24: ='F1'!F39 -> 0 | J24: =+'F1'!J39 ->  | K24: =+'F1'!O39 ->  | L24: =+'F1'!T39 ->  | R24: EJE_UNO | S24: Fortalecimiento y mejoramiento de la calidad y cobertura de los servicios públicos | T24: Movilidad | U24: =+'F1'!F160 -> 0 | V24: =+'F1'!J160 -> 0 | W24: =+'F1'!T160 -> 
A25: Transmilenio S.A. | B25: Movilidad | C25: ='F1'!$N$3 -> 2015 | D25: =+'F1'!$T$3 -> 31 DE DICIEMBRE | E25: =+'F1'!$C$7 -> EJE_UNO | F25: ='F1'!C41 -> 0 | G25: ='F1'!D41 -> 0 | H25: ='F1'!E41 -> 0 | I25: ='F1'!F41 -> 0 | J25: =+'F1'!J41 ->  | K25: =+'F1'!O41 ->  | L25: =+'F1'!T41 ->  | R25: EJE_UNO | S25: Fortalecimiento y mejoramiento de la calidad y cobertura de los servicios públicos | T25: Movilidad | U25: =+'F1'!F166 -> 0 | V25: =+'F1'!J166 -> 0 | W25: =+'F1'!T166 -> 
A26: Transmilenio S.A. | B26: Movilidad | C26: ='F1'!$N$3 -> 2015 | D26: =+'F1'!$T$3 -> 31 DE DICIEMBRE | E26: =+'F1'!$C$7 -> EJE_UNO | F26: ='F1'!C43 -> 0 | G26: ='F1'!D43 -> 0 | H26: ='F1'!E43 -> 0 | I26: ='F1'!F43 -> 0 | J26: =+'F1'!J43 ->  | K26: =+'F1'!O43 ->  | L26: =+'F1'!T43 ->  | R26: EJE_UNO | S26: Fortalecimiento y mejoramiento de la calidad y cobertura de los servicios públicos | T26: Movilidad | U26: =+'F1'!F172 -> 0 | V26: =+'F1'!J172 -> 0 | W26: =+'F1'!T172 -> 
A27: Transmilenio S.A. | B27: Movilidad | C27: ='F1'!$N$3 -> 2015 | D27: =+'F1'!$T$3 -> 31 DE DICIEMBRE | E27: =+'F1'!$C$7 -> EJE_UNO | F27: ='F1'!C45 -> 0 | G27: ='F1'!D45 -> 0 | H27: ='F1'!E45 -> 0 | I27: ='F1'!F45 -> 0 | J27: =+'F1'!J45 ->  | K27: =+'F1'!O45 ->  | L27: =+'F1'!T45 ->  | R27: =+R26 -> EJE_UNO | S27: =+S26 -> Fortalecimiento y mejoramiento de la calidad y cobertura de los servicios públicos | T27: Movilidad | U27: =+'F1'!F178 -> 0 | V27: =+'F1'!J178 -> 0 | W27: =+'F1'!T178 -> 
A28: Transmilenio S.A. | B28: Movilidad | C28: ='F1'!$N$3 -> 2015 | D28: =+'F1'!$T$3 -> 31 DE DICIEMBRE | E28: =+'F1'!$C$7 -> EJE_UNO | F28: ='F1'!C47 -> 0 | G28: ='F1'!D47 -> 0 | H28: ='F1'!E47 -> 0 | I28: ='F1'!F47 -> 0 | J28: =+'F1'!J47 ->  | K28: =+'F1'!O47 ->  | L28: =+'F1'!T47 ->  | R28: =+E41 -> EJE_DOS | S28: =+F41 -> Movilidad Humana | T28: Movilidad | U28: =+'F1'!F256 -> Gestión_Contractual | V28: =+'F1'!J256 -> OTRA | W28: =+'F1'!T256 -> -
A29: Transmilenio S.A. | B29: Movilidad | C29: ='F1'!$N$3 -> 2015 | D29: =+'F1'!$T$3 -> 31 DE DICIEMBRE | E29: =+'F1'!$C$7 -> EJE_UNO | F29: ='F1'!C49 -> 0 | G29: ='F1'!D49 -> 0 | H29: ='F1'!E49 -> 0 | I29: ='F1'!F49 -> 0 | J29: =+'F1'!J49 ->  | K29: =+'F1'!O49 ->  | L29: =+'F1'!T49 ->  | R29: =+R28 -> EJE_DOS | S29: =+S28 -> Movilidad Humana | T29: Movilidad | U29: =+'F1'!F262 -> Gestión_Contractual | V29: =+'F1'!J262 -> Incumplimiento y/o modificaciones al plan contractual/ plan de compras aprobado. | W29: =+'F1'!T262 -> PLANEAR
A30: Transmilenio S.A. | B30: Movilidad | C30: ='F1'!$N$3 -> 2015 | D30: =+'F1'!$T$3 -> 31 DE DICIEMBRE | E30: =+'F1'!$C$7 -> EJE_UNO | F30: ='F1'!C51 -> 0 | G30: ='F1'!D51 -> 0 | H30: ='F1'!E51 -> 0 | I30: ='F1'!F51 -> 0 | J30: =+'F1'!J51 ->  | K30: =+'F1'!O51 ->  | L30: =+'F1'!T51 ->  | R30: EJE_DOS | S30: Movilidad Humana | T30: Movilidad | U30: =+'F1'!F268 -> Gestión_Contractual | V30: =+'F1'!J268 -> Falta de definición y/o incumplimiento de tiempos/términos al interior de la Entidad para desarrollar la contratación. | W30: =+'F1'!T268 -> PLANEAR
A31: Transmilenio S.A. | B31: Movilidad | C31: ='F1'!$N$3 -> 2015 | D31: =+'F1'!$T$3 -> 31 DE DICIEMBRE | E31: =+'F1'!$C$7 -> EJE_UNO | F31: ='F1'!C53 -> 0 | G31: ='F1'!D53 -> 0 | H31: ='F1'!E53 -> 0 | I31: ='F1'!F53 -> 0 | J31: =+'F1'!J53 ->  | K31: =+'F1'!O53 ->  | L31: =+'F1'!T53 ->  | R31: EJE_DOS | S31: Movilidad Humana | T31: Movilidad | U31: =+'F1'!F274 -> Gestión_Contractual | V31: =+'F1'!J274 -> OTRA | W31: =+'F1'!T274 -> -
A32: Transmilenio S.A. | B32: Movilidad | C32: ='F1'!$N$3 -> 2015 | D32: =+'F1'!$T$3 -> 31 DE DICIEMBRE | E32: =+'F1'!$C$7 -> EJE_UNO | F32: ='F1'!C55 -> 0 | G32: ='F1'!D55 -> 0 | H32: ='F1'!E55 -> 0 | I32: ='F1'!F55 -> 0 | J32: =+'F1'!J55 ->  | K32: =+'F1'!O55 ->  | L32: =+'F1'!T55 ->  | R32: EJE_DOS | S32: Movilidad Humana | T32: Movilidad | U32: =+'F1'!F280 -> Gestión_Presupuestal | V32: =+'F1'!J280 -> OTRA | W32: =+'F1'!T280 -> -
A33: Transmilenio S.A. | B33: Movilidad | C33: ='F1'!$N$3 -> 2015 | D33: =+'F1'!$T$3 -> 31 DE DICIEMBRE | E33: =+'F1'!$C$7 -> EJE_UNO | F33: ='F1'!C57 -> 0 | G33: ='F1'!D57 -> 0 | H33: ='F1'!E57 -> 0 | I33: ='F1'!F57 -> 0 | J33: =+'F1'!J57 ->  | K33: =+'F1'!O57 ->  | L33: =+'F1'!T57 ->  | R33: EJE_DOS | S33: Movilidad Humana | T33: Movilidad | U33: =+'F1'!F286 -> Gestión_Presupuestal | V33: =+'F1'!J286 -> Demoras en el trámite de modificaciones presupuestales previstas (adiciones y/o reducciones) | W33: =+'F1'!T286 -> ACTUAR
A34: Transmilenio S.A. | B34: Movilidad | C34: ='F1'!$N$3 -> 2015 | D34: =+'F1'!$T$3 -> 31 DE DICIEMBRE | E34: =+'F1'!$C$7 -> EJE_UNO | F34: ='F1'!C59 -> 0 | G34: ='F1'!D59 -> 0 | H34: ='F1'!E59 -> 0 | I34: ='F1'!F59 -> 0 | J34: =+'F1'!J59 ->  | K34: =+'F1'!O59 ->  | L34: =+'F1'!T59 ->  | R34: EJE_DOS | S34: Movilidad Humana | T34: Movilidad | U34: =+'F1'!F292 -> Gestión_Fisica | V34: =+'F1'!J292 -> OTRA | W34: =+'F1'!T292 -> -
A35: Transmilenio S.A. | B35: Movilidad | C35: ='F1'!$N$3 -> 2015 | D35: =+'F1'!$T$3 -> 31 DE DICIEMBRE | E35: =+'F1'!$C$7 -> EJE_UNO | F35: ='F1'!C61 -> 0 | G35: ='F1'!D61 -> 0 | H35: ='F1'!E61 -> 0 | I35: ='F1'!F61 -> 0 | J35: =+'F1'!J61 ->  | K35: =+'F1'!O61 ->  | L35: =+'F1'!T61 ->  | R35: EJE_DOS | S35: Movilidad Humana | T35: Movilidad | U35: =+'F1'!F298 -> 0 | V35: =+'F1'!J298 -> 0 | W35: =+'F1'!T298 -> 
A36: Transmilenio S.A. | B36: Movilidad | C36: ='F1'!$N$3 -> 2015 | D36: =+'F1'!$T$3 -> 31 DE DICIEMBRE | E36: =+'F1'!$C$7 -> EJE_UNO | F36: ='F1'!C63 -> 0 | G36: ='F1'!D63 -> 0 | H36: ='F1'!E63 -> 0 | I36: ='F1'!F63 -> 0 | J36: =+'F1'!J63 ->  | K36: =+'F1'!O63 ->  | L36: =+'F1'!T63 ->  | R36: EJE_DOS | S36: Movilidad Humana | T36: Movilidad | U36: =+'F1'!F304 -> 0 | V36: =+'F1'!J304 -> 0 | W36: =+'F1'!T304 -> 
A37: Transmilenio S.A. | B37: Movilidad | C37: ='F1'!$N$3 -> 2015 | D37: =+'F1'!$T$3 -> 31 DE DICIEMBRE | E37: =+'F1'!$C$7 -> EJE_UNO | F37: ='F1'!C65 -> 0 | G37: ='F1'!D65 -> 0 | H37: ='F1'!E65 -> 0 | I37: ='F1'!F65 -> 0 | J37: =+'F1'!J65 ->  | K37: =+'F1'!O65 ->  | L37: =+'F1'!T65 ->  | R37: EJE_DOS | S37: Movilidad Humana | T37: Movilidad | U37: =+'F1'!F310 -> 0 | V37: =+'F1'!J310 -> 0 | W37: =+'F1'!T310 -> 
A38: Transmilenio S.A. | B38: Movilidad | C38: ='F1'!$N$3 -> 2015 | D38: =+'F1'!$T$3 -> 31 DE DICIEMBRE | E38: =+'F1'!$C$7 -> EJE_UNO | F38: ='F1'!C67 -> 0 | G38: ='F1'!D67 -> 0 | H38: ='F1'!E67 -> 0 | I38: ='F1'!F67 -> 0 | J38: =+'F1'!J67 ->  | K38: =+'F1'!O67 ->  | L38: =+'F1'!T67 ->  | R38: EJE_DOS | S38: Movilidad Humana | T38: Movilidad | U38: =+'F1'!F316 -> 0 | V38: =+'F1'!J316 -> 0 | W38: =+'F1'!T316 -> 
A39: Transmilenio S.A. | B39: Movilidad | C39: ='F1'!$N$3 -> 2015 | D39: =+'F1'!$T$3 -> 31 DE DICIEMBRE | E39: =+'F1'!$C$7 -> EJE_UNO | F39: ='F1'!C69 -> 0 | G39: ='F1'!D69 -> 0 | H39: ='F1'!E69 -> 0 | I39: ='F1'!F69 -> 0 | J39: =+'F1'!J69 ->  | K39: =+'F1'!O69 ->  | L39: =+'F1'!T69 ->  | R39: EJE_DOS | S39: Movilidad Humana | T39: Movilidad | U39: =+'F1'!F322 -> 0 | V39: =+'F1'!J322 -> 0 | W39: =+'F1'!T322 -> 
A40: Transmilenio S.A. | B40: Movilidad | C40: ='F1'!$N$3 -> 2015 | D40: =+'F1'!$T$3 -> 31 DE DICIEMBRE | E40: =+'F1'!$C$7 -> EJE_UNO | F40: ='F1'!C71 -> 0 | G40: ='F1'!D71 -> 0 | H40: ='F1'!E71 -> 0 | I40: ='F1'!F71 -> 0 | J40: =+'F1'!J71 ->  | K40: =+'F1'!O71 ->  | L40: =+'F1'!T71 ->  | R40: EJE_DOS | S40: Movilidad Humana | T40: Movilidad | U40: =+'F1'!F328 -> 0 | V40: =+'F1'!J328 -> 0 | W40: =+'F1'!T328 -> 
A41: Transmilenio S.A. | B41: Movilidad | C41: ='F1'!$N$3 -> 2015 | D41: =+'F1'!$T$3 -> 31 DE DICIEMBRE | E41: =+'F1'!$C$186 -> EJE_DOS | F41: =+'F1'!C190 -> Movilidad Humana | G41: ='F1'!D190 -> 7223. Operación y control del sistema de transporte | H41: ='F1'!E190 -> 0 | I41: ='F1'!F190 -> 1. Controlar 2.915 Vehículos Para La Operación Troncal Y De Alimentación | J41: =+'F1'!J190 -> 1 | K41: =+'F1'!O190 -> 0.965838741 | L41: =+'F1'!T190 -> 1 | R41: EJE_DOS | S41: Movilidad Humana | T41: Movilidad | U41: =+'F1'!F334 -> 0 | V41: =+'F1'!J334 -> 0 | W41: =+'F1'!T334 -> 
A42: =$C$4 -> Transmilenio S.A. | B42: Movilidad | C42: ='F1'!$N$3 -> 2015 | D42: =+'F1'!$T$3 -> 31 DE DICIEMBRE | E42: =+'F1'!$C$186 -> EJE_DOS | F42: =+'F1'!C192 -> Movilidad Humana | G42: ='F1'!D192 -> 7223. Operación y control del sistema de transporte | H42: ='F1'!E192 -> 0 | I42: ='F1'!F192 -> 2. Monitorear La Operación Y El Control De 9830 Vehículos Del Sistema Integrado De Transporte Público | J42: =+'F1'!J192 -> 1 | K42: =+'F1'!O192 -> 0.8153846154 | L42: =+'F1'!T192 -> 0.6674465921 | R42: EJE_DOS | S42: Movilidad Humana | T42: Movilidad | U42: =+'F1'!F340 -> 0 | V42: =+'F1'!J340 -> 0 | W42: =+'F1'!T340 -> 
A43: Transmilenio S.A. | B43: Movilidad | C43: ='F1'!$N$3 -> 2015 | D43: =+'F1'!$T$3 -> 31 DE DICIEMBRE | E43: =+'F1'!$C$186 -> EJE_DOS | F43: =+'F1'!C194 -> Movilidad Humana | G43: ='F1'!D194 -> 7223. Operación y control del sistema de transporte | H43: ='F1'!E194 -> 0 | I43: ='F1'!F194 -> 3. Movilizar 90 Por Ciento De Los Viajes Del Sistema De Transporte Público De Bogotá | J43: =+'F1'!J194 -> 0.7857142857 | K43: =+'F1'!O194 -> 0.1991329685 | L43: =+'F1'!T194 -> 1 | R43: EJE_DOS | S43: Movilidad Humana | T43: Movilidad | U43: =+'F1'!F346 -> 0 | V43: =+'F1'!J346 -> 0 | W43: =+'F1'!T346 -> 
A44: Transmilenio S.A. | B44: Movilidad | C44: ='F1'!$N$3 -> 2015 | D44: =+'F1'!$T$3 -> 31 DE DICIEMBRE | E44: =+'F1'!$C$186 -> EJE_DOS | F44: =+'F1'!C196 -> Movilidad Humana | G44: ='F1'!D196 -> 7223. Operación y control del sistema de transporte | H44: ='F1'!E196 -> 0 | I44: ='F1'!F196 -> 4. Monitorear 1 Sistema De Información Y Comunicaciones Que Garantice La Operación Del Sistema Integrado De Transporte Público | J44: =+'F1'!J196 -> 0.7777777778 | K44: =+'F1'!O196 -> 0.9703277924 | L44: =+'F1'!T196 -> 1 | R44: EJE_DOS | S44: Movilidad Humana | T44: Movilidad | U44: =+'F1'!F352 -> 0 | V44: =+'F1'!J352 -> 0 | W44: =+'F1'!T352 -> 
A45: Transmilenio S.A. | B45: Movilidad | C45: ='F1'!$N$3 -> 2015 | D45: =+'F1'!$T$3 -> 31 DE DICIEMBRE | E45: =+'F1'!$C$186 -> EJE_DOS | F45: =+'F1'!C198 -> Movilidad Humana | G45: ='F1'!D198 -> 7223. Operación y control del sistema de transporte | H45: ='F1'!E198 -> 0 | I45: ='F1'!F198 -> 5. Operar 150 Estaciones Del Sistema De Transporte Masivo Transmilenio | J45: =+'F1'!J198 -> 1 | K45: =+'F1'!O198 -> 0.9994961709 | L45: =+'F1'!T198 -> 1 | R45: EJE_DOS | S45: Movilidad Humana | T45: Movilidad | U45: =+'F1'!F358 -> 0 | V45: =+'F1'!J358 -> 0 | W45: =+'F1'!T358 -> 
A46: Transmilenio S.A. | B46: Movilidad | C46: ='F1'!$N$3 -> 2015 | D46: =+'F1'!$T$3 -> 31 DE DICIEMBRE | E46: =+'F1'!$C$186 -> EJE_DOS | F46: =+'F1'!C200 -> Movilidad Humana | G46: ='F1'!D200 -> 7223. Operación y control del sistema de transporte | H46: ='F1'!E200 -> 0 | I46: ='F1'!F200 -> 6. Monitorear La Operación Y El Control De 13 Zonas Del Sitp En Su Componente Zonal | J46: =+'F1'!J200 -> 0.875 | K46: =+'F1'!O200 -> 0.9684041611 | L46: =+'F1'!T200 -> 1 | R46: =+E72 -> EJE_TRES | S46: =F72 -> Bogotá Humana: Participa y Decide | T46: Movilidad | U46: =+'F1'!F434 -> Gestión_Contractual | V46: =+'F1'!J434 -> OTRA | W46: =+'F1'!T434 -> -
A47: Transmilenio S.A. | B47: Movilidad | C47: ='F1'!$N$3 -> 2015 | D47: =+'F1'!$T$3 -> 31 DE DICIEMBRE | E47: =+'F1'!$C$186 -> EJE_DOS | F47: =+'F1'!C202 -> Movilidad Humana | G47: ='F1'!D202 -> 7223. Operación y control del sistema de transporte | H47: ='F1'!E202 -> 0 | I47: ='F1'!F202 -> 7. Realizar 600 Auditorias De Seguridad Operacional Y Física Al Sistema Transmilenio | J47: =+'F1'!J202 -> 0.75 | K47: =+'F1'!O202 -> 0.8148310663 | L47: =+'F1'!T202 -> 1 | R47: =+R46 -> EJE_TRES | S47: =F73 -> Bogotá Humana: Participa y Decide | T47: Movilidad | U47: =+'F1'!F440 -> Gestión_Presupuestal | V47: =+'F1'!J440 -> Demoras en el perfeccionamiento de los contratos. | W47: =+'F1'!T440 -> HACER
A48: Transmilenio S.A. | B48: Movilidad | C48: ='F1'!$N$3 -> 2015 | D48: =+'F1'!$T$3 -> 31 DE DICIEMBRE | E48: =+'F1'!$C$186 -> EJE_DOS | F48: =+'F1'!C204 -> Movilidad Humana | G48: ='F1'!D204 -> 7223. Operación y control del sistema de transporte | H48: ='F1'!E204 -> 0 | I48: ='F1'!F204 -> 8. Realizar 4057 Auditorias para la ejecución de programas de seguridad operacional y atención de emergencia a los concesionarios zonales | J48: =+'F1'!J204 -> 0.3333333333 | K48: =+'F1'!O204 -> 0.2099236641 | L48: =+'F1'!T204 -> 1 | R48: EJE_TRES | S48: Bogotá Humana: Participa y Decide | T48: Movilidad | U48: =+'F1'!F446 -> Gestión_Fisica | V48: =+'F1'!J446 -> 0 | W48: =+'F1'!T446 -> 
A49: Transmilenio S.A. | B49: Movilidad | C49: ='F1'!$N$3 -> 2015 | D49: =+'F1'!$T$3 -> 31 DE DICIEMBRE | E49: =+'F1'!$C$186 -> EJE_DOS | F49: =+'F1'!C206 -> Movilidad Humana | G49: ='F1'!D206 -> 7223. Operación y control del sistema de transporte | H49: ='F1'!E206 -> 0 | I49: ='F1'!F206 -> 9. Reducir 235529 Toneladas De Gases De Efecto Invernadero (Co2eq) Por Año Por La Operación Del Sistema De Transporte Masivo | J49: =+'F1'!J206 -> 0.8888888889 | K49: =+'F1'!O206 -> 0.8998073218 | L49: =+'F1'!T206 -> 0.5759927652 | R49: EJE_TRES | S49: Bogotá Humana: Participa y Decide | T49: Movilidad | U49: =+'F1'!F452 -> 0 | V49: =+'F1'!J452 -> 0 | W49: =+'F1'!T452 -> 
A50: Transmilenio S.A. | B50: Movilidad | C50: ='F1'!$N$3 -> 2015 | D50: =+'F1'!$T$3 -> 31 DE DICIEMBRE | E50: =+'F1'!$C$186 -> EJE_DOS | F50: =+'F1'!C208 -> Movilidad Humana | G50: ='F1'!D208 -> 7223. Operación y control del sistema de transporte | H50: ='F1'!E208 -> 0 | I50: ='F1'!F208 -> 10. Ejecutar anualmente el 100% de las actividades programadas para la administración Financiera del Fondo de Estabilización Tarifaria del sistema Integrado de Transporte Público-SITP- de Bogotá D.C. bajo el control y responsabilidad del Ente Gestor del Sistema | J50: =+'F1'!J208 ->  | K50: =+'F1'!O208 -> 0.9215985855 | L50: =+'F1'!T208 -> 1 | R50: EJE_TRES | S50: Bogotá Humana: Participa y Decide | T50: Movilidad | U50: =+'F1'!F458 -> 0 | V50: =+'F1'!J458 -> 0 | W50: =+'F1'!T458 -> 
A51: Transmilenio S.A. | B51: Movilidad | C51: ='F1'!$N$3 -> 2015 | D51: =+'F1'!$T$3 -> 31 DE DICIEMBRE | E51: =+'F1'!$C$186 -> EJE_DOS | F51: =+'F1'!C210 -> Movilidad Humana | G51: ='F1'!D210 -> 7251. Gestión de Infraestructura del Transporte Público | H51: ='F1'!E210 -> 0 | I51: ='F1'!F210 -> 11. Ejecutar Anualmente El 100 Por Ciento De Los Recursos Para La Construcción De Las Troncales Carrera 10 Y Calle 26 | J51: =+'F1'!J210 ->  | K51: =+'F1'!O210 -> 0.9524299044 | L51: =+'F1'!T210 -> 0.9524 | R51: EJE_TRES | S51: Bogotá Humana: Participa y Decide | T51: Movilidad | U51: =+'F1'!F464 -> 0 | V51: =+'F1'!J464 -> 0 | W51: =+'F1'!T464 -> 
A52: Transmilenio S.A. | B52: Movilidad | C52: ='F1'!$N$3 -> 2015 | D52: =+'F1'!$T$3 -> 31 DE DICIEMBRE | E52: =+'F1'!$C$186 -> EJE_DOS | F52: =+'F1'!C212 -> Movilidad Humana | G52: ='F1'!D212 -> 7251. Gestión de Infraestructura del Transporte Público | H52: ='F1'!E212 -> 0 | I52: ='F1'!F212 -> 12. Ejecutar Anualmente El 100 Por Ciento De Los Recursos Destinados Al Apoyo Institucional Necesario Para La Implementación Del Sitp | J52: =+'F1'!J212 ->  | K52: =+'F1'!O212 ->  | L52: =+'F1'!T212 ->  | R52: EJE_TRES | S52: Bogotá Humana: Participa y Decide | T52: Movilidad | U52: =+'F1'!F470 -> 0 | V52: =+'F1'!J470 -> 0 | W52: =+'F1'!T470 -> 
A53: Transmilenio S.A. | B53: Movilidad | C53: ='F1'!$N$3 -> 2015 | D53: =+'F1'!$T$3 -> 31 DE DICIEMBRE | E53: =+'F1'!$C$186 -> EJE_DOS | F53: =+'F1'!C214 -> Movilidad Humana | G53: ='F1'!D214 -> 7251. Gestión de Infraestructura del Transporte Público | H53: ='F1'!E214 -> 0 | I53: ='F1'!F214 -> 13. Ejecutar Anualmente El 100 Por Ciento De Los Recursos Para La Adecuación De La Infraestructura Necesaria Y Obras Complementarias, Para La Puesta En Operación Del Sitp | J53: =+'F1'!J214 ->  | K53: =+'F1'!O214 -> 0.8971207008 | L53: =+'F1'!T214 -> 0.8971 | R53: EJE_TRES | S53: Bogotá Humana: Participa y Decide | T53: Movilidad | U53: =+'F1'!F476 -> 0 | V53: =+'F1'!J476 -> 0 | W53: =+'F1'!T476 -> 
A54: Transmilenio S.A. | B54: Movilidad | C54: ='F1'!$N$3 -> 2015 | D54: =+'F1'!$T$3 -> 31 DE DICIEMBRE | E54: =+'F1'!$C$186 -> EJE_DOS | F54: =+'F1'!C216 -> Movilidad Humana | G54: ='F1'!D216 -> 7251. Gestión de Infraestructura del Transporte Público | H54: ='F1'!E216 -> 0 | I54: ='F1'!F216 -> 14. Ejecutar Anualmente El 100 Por Ciento De Las Actividades De Seguimiento A Los Estudios, Diseños, Construcción Y Mantenimiento De La Infraestructura Asosiada Al Sitp | J54: =+'F1'!J216 ->  | K54: =+'F1'!O216 -> 0.8692035068 | L54: =+'F1'!T216 -> 1 | R54: EJE_TRES | S54: Fortalecimiento de la función Administrativa y Desarrollo Institucional | T54: Movilidad | U54: =+'F1'!F482 -> 0 | V54: =+'F1'!J482 -> 0 | W54: =+'F1'!T482 -> 
A55: Transmilenio S.A. | B55: Movilidad | C55: ='F1'!$N$3 -> 2015 | D55: =+'F1'!$T$3 -> 31 DE DICIEMBRE | E55: =+'F1'!$C$186 -> EJE_DOS | F55: =+'F1'!C218 -> Movilidad Humana | G55: ='F1'!D218 -> 7251. Gestión de Infraestructura del Transporte Público | H55: ='F1'!E218 ->  | I55: ='F1'!F218 -> 15. Ejecutar Anualmente El 100 Por Ciento De Las Actividades De Gestión Y Seguimiento A Los Estudios, Diseños, Construcción Y Mantenimiento De 7 Obras Para La Integración Del Sistema Transmilenio Al Sitp. | J55: =+'F1'!J218 ->  | K55: =+'F1'!O218 ->  | L55: =+'F1'!T218 ->  | R55: EJE_TRES | S55: Fortalecimiento de la función Administrativa y Desarrollo Institucional | T55: Movilidad | U55: =+'F1'!F488 -> 0 | V55: =+'F1'!J488 -> 0 | W55: =+'F1'!T488 -> 
A56: Transmilenio S.A. | B56: Movilidad | C56: ='F1'!$N$3 -> 2015 | D56: =+'F1'!$T$3 -> 31 DE DICIEMBRE | E56: =+'F1'!$C$186 -> EJE_DOS | F56: =+'F1'!C220 -> Movilidad Humana | G56: ='F1'!D220 -> 7251. Gestión de Infraestructura del Transporte Público | H56: ='F1'!E220 ->  | I56: ='F1'!F220 -> 16. Ejecutar Anualmente El 100 % de los recurso para estudios, diseños y construcción De La Troncal Avenida Boyacá | J56: =+'F1'!J220 ->  | K56: =+'F1'!O220 -> 0 | L56: =+'F1'!T220 -> 0 | R56: EJE_TRES | S56: Fortalecimiento de la función Administrativa y Desarrollo Institucional | T56: Movilidad | U56: =+'F1'!F494 -> 0 | V56: =+'F1'!J494 -> 0 | W56: =+'F1'!T494 -> 
A57: Transmilenio S.A. | B57: Movilidad | C57: ='F1'!$N$3 -> 2015 | D57: =+'F1'!$T$3 -> 31 DE DICIEMBRE | E57: =+'F1'!$C$186 -> EJE_DOS | F57: =+'F1'!C222 -> Movilidad Humana | G57: ='F1'!D222 -> 7251. Gestión de Infraestructura del Transporte Público | H57: ='F1'!E222 ->  | I57: ='F1'!F222 -> 17. Ejecutar 100% de los recursos destinado anualmente a las actividades de gestión y desarrollo de la primera línea del metro. | J57: =+'F1'!J222 ->  | K57: =+'F1'!O222 -> 0.9892 | L57: =+'F1'!T222 -> 0.9892 | R57: EJE_TRES | S57: Fortalecimiento de la función Administrativa y Desarrollo Institucional | T57: Movilidad | U57: =+'F1'!F500 -> 0 | V57: =+'F1'!J500 -> 0 | W57: =+'F1'!T500 -> 
A58: Transmilenio S.A. | B58: Movilidad | C58: ='F1'!$N$3 -> 2015 | D58: =+'F1'!$T$3 -> 31 DE DICIEMBRE | E58: =+'F1'!$C$186 -> EJE_DOS | F58: =+'F1'!C224 -> 0 | G58: ='F1'!D224 -> 0 | H58: ='F1'!E224 ->  | I58: ='F1'!F224 -> 0 | J58: =+'F1'!J224 ->  | K58: =+'F1'!O224 ->  | L58: =+'F1'!T224 ->  | R58: EJE_TRES | S58: Fortalecimiento de la función Administrativa y Desarrollo Institucional | T58: Movilidad | U58: =+'F1'!F506 -> 0 | V58: =+'F1'!J506 -> 0 | W58: =+'F1'!T506 -> 
A59: Transmilenio S.A. | B59: Movilidad | C59: ='F1'!$N$3 -> 2015 | D59: =+'F1'!$T$3 -> 31 DE DICIEMBRE | E59: =+'F1'!$C$186 -> EJE_DOS | F59: =+'F1'!C226 -> 0 | G59: ='F1'!D226 -> 0 | H59: ='F1'!E226 ->  | I59: ='F1'!F226 -> 0 | J59: =+'F1'!J226 ->  | K59: =+'F1'!O226 ->  | L59: =+'F1'!T226 ->  | R59: EJE_TRES | S59: 0 | T59: Movilidad | U59: =+'F1'!F512 -> 0 | V59: =+'F1'!J512 -> 0 | W59: =+'F1'!T512 -> 
A60: Transmilenio S.A. | B60: Movilidad | C60: ='F1'!$N$3 -> 2015 | D60: =+'F1'!$T$3 -> 31 DE DICIEMBRE | E60: =+'F1'!$C$186 -> EJE_DOS | F60: =+'F1'!C228 -> 0 | G60: ='F1'!D228 -> 0 | H60: ='F1'!E228 ->  | I60: ='F1'!F228 -> 0 | J60: =+'F1'!J228 ->  | K60: =+'F1'!O228 ->  | L60: =+'F1'!T228 ->  | R60: EJE_TRES | S60: 0 | T60: Movilidad | U60: =+'F1'!F518 -> 0 | V60: =+'F1'!J518 -> 0 | W60: =+'F1'!T518 -> 
A61: Transmilenio S.A. | B61: Movilidad | C61: ='F1'!$N$3 -> 2015 | D61: =+'F1'!$T$3 -> 31 DE DICIEMBRE | E61: =+'F1'!$C$186 -> EJE_DOS | F61: =+'F1'!C230 -> 0 | G61: ='F1'!D230 -> 0 | H61: ='F1'!E230 -> 0 | I61: ='F1'!F230 -> 0 | J61: =+'F1'!J230 ->  | K61: =+'F1'!O230 ->  | L61: =+'F1'!T230 ->  | R61: EJE_TRES | S61: 0 | T61: Movilidad | U61: =+'F1'!F524 -> 0 | V61: =+'F1'!J524 -> 0 | W61: =+'F1'!T524 -> 
A62: Transmilenio S.A. | B62: Movilidad | C62: ='F1'!$N$3 -> 2015 | D62: =+'F1'!$T$3 -> 31 DE DICIEMBRE | E62: =+'F1'!$C$186 -> EJE_DOS | F62: =+'F1'!C232 -> 0 | G62: ='F1'!D232 -> 0 | H62: ='F1'!E232 -> 0 | I62: ='F1'!F232 -> 0 | J62: =+'F1'!J232 ->  | K62: =+'F1'!O232 ->  | L62: =+'F1'!T232 ->  | R62: EJE_TRES | S62: 0 | T62: Movilidad | U62: =+'F1'!F530 -> 0 | V62: =+'F1'!J530 -> 0 | W62: =+'F1'!T530 -> 
A63: Transmilenio S.A. | B63: Movilidad | C63: ='F1'!$N$3 -> 2015 | D63: =+'F1'!$T$3 -> 31 DE DICIEMBRE | E63: =+'F1'!$C$186 -> EJE_DOS | F63: =+'F1'!C234 -> 0 | G63: ='F1'!D234 -> 0 | H63: ='F1'!E234 ->  | I63: ='F1'!F234 -> 0 | J63: =+'F1'!J234 ->  | K63: =+'F1'!O234 ->  | L63: =+'F1'!T234 ->  | R63: EJE_TRES | S63: 0 | T63: Movilidad | U63: =+'F1'!F536 -> 0 | V63: =+'F1'!J536 -> 0 | W63: =+'F1'!T536 -> 
A64: Transmilenio S.A. | B64: Movilidad | C64: ='F1'!$N$3 -> 2015 | D64: =+'F1'!$T$3 -> 31 DE DICIEMBRE | E64: =+'F1'!$C$186 -> EJE_DOS | F64: =+'F1'!C236 -> 0 | G64: ='F1'!D236 -> 0 | H64: ='F1'!E236 ->  | I64: ='F1'!F236 -> 0 | J64: =+'F1'!J236 ->  | K64: =+'F1'!O236 ->  | L64: =+'F1'!T236 -> 
A65: Transmilenio S.A. | B65: Movilidad | C65: ='F1'!$N$3 -> 2015 | D65: =+'F1'!$T$3 -> 31 DE DICIEMBRE | E65: =+'F1'!$C$186 -> EJE_DOS | F65: =+'F1'!C238 -> 0 | G65: ='F1'!D238 -> 0 | H65: ='F1'!E238 -> 0 | I65: ='F1'!F238 -> 0 | J65: =+'F1'!J238 ->  | K65: =+'F1'!O238 ->  | L65: =+'F1'!T238 -> 
A66: Transmilenio S.A. | B66: Movilidad | C66: ='F1'!$N$3 -> 2015 | D66: =+'F1'!$T$3 -> 31 DE DICIEMBRE | E66: =+'F1'!$C$186 -> EJE_DOS | F66: =+'F1'!C240 -> 0 | G66: ='F1'!D240 -> 0 | H66: ='F1'!E240 -> 0 | I66: ='F1'!F240 -> 0 | J66: =+'F1'!J240 ->  | K66: =+'F1'!O240 ->  | L66: =+'F1'!T240 -> 
A67: Transmilenio S.A. | B67: Movilidad | C67: ='F1'!$N$3 -> 2015 | D67: =+'F1'!$T$3 -> 31 DE DICIEMBRE | E67: =+'F1'!$C$186 -> EJE_DOS | F67: =+'F1'!C242 -> 0 | G67: ='F1'!D242 -> 0 | H67: ='F1'!E242 ->  | I67: ='F1'!F242 -> 0 | J67: =+'F1'!J242 ->  | K67: =+'F1'!O242 ->  | L67: =+'F1'!T242 -> 
A68: Transmilenio S.A. | B68: Movilidad | C68: ='F1'!$N$3 -> 2015 | D68: =+'F1'!$T$3 -> 31 DE DICIEMBRE | E68: =+'F1'!$C$186 -> EJE_DOS | F68: =+'F1'!C244 -> 0 | G68: ='F1'!D244 -> 0 | H68: ='F1'!E244 -> 0 | I68: ='F1'!F244 -> 0 | J68: =+'F1'!J244 ->  | K68: =+'F1'!O244 ->  | L68: =+'F1'!T244 -> 
A69: Transmilenio S.A. | B69: Movilidad | C69: ='F1'!$N$3 -> 2015 | D69: =+'F1'!$T$3 -> 31 DE DICIEMBRE | E69: =+'F1'!$C$186 -> EJE_DOS | F69: =+'F1'!C246 -> 0 | G69: ='F1'!D246 -> 0 | H69: ='F1'!E246 ->  | I69: ='F1'!F246 -> 0 | J69: =+'F1'!J246 ->  | K69: =+'F1'!O246 ->  | L69: =+'F1'!T246 -> 
A70: Transmilenio S.A. | B70: Movilidad | C70: ='F1'!$N$3 -> 2015 | D70: =+'F1'!$T$3 -> 31 DE DICIEMBRE | E70: =+'F1'!$C$186 -> EJE_DOS | F70: =+'F1'!C248 -> 0 | G70: ='F1'!D248 -> 0 | H70: ='F1'!E248 ->  | I70: ='F1'!F248 -> 0 | J70: =+'F1'!J248 ->  | K70: =+'F1'!O248 ->  | L70: =+'F1'!T248 -> 
A71: Transmilenio S.A. | B71: Movilidad | C71: ='F1'!$N$3 -> 2015 | D71: =+'F1'!$T$3 -> 31 DE DICIEMBRE | E71: =+'F1'!$C$186 -> EJE_DOS | F71: =+'F1'!C250 -> 0 | G71: ='F1'!D250 -> 0 | H71: ='F1'!E250 -> 0 | I71: ='F1'!F250 -> 0 | J71: =+'F1'!J250 ->  | K71: =+'F1'!O250 ->  | L71: =+'F1'!T250 -> 
A72: Transmilenio S.A. | B72: Movilidad | C72: ='F1'!$N$3 -> 2015 | D72: =+'F1'!$T$3 -> 31 DE DICIEMBRE | E72: =+'F1'!$C$366 -> EJE_TRES | F72: =+'F1'!C370 -> Bogotá Humana: Participa y Decide | G72: =+'F1'!D370 -> 71. Comunicación y Capacitación del Sistema Integrado de Transporte Público | H72: =+'F1'!E370 -> 0 | I72: =+'F1'!F370 -> 6. Desarrollar 48 intervenciones al año, en diferentes territorios influenciados por la operación del SITP, que permitan la socialización, capacitación y divulgación de los componentes (infraestructura, servicios, comunicaciones y tecnología del SITP) | J72: =+'F1'!J370 -> 1 | K72: =+'F1'!O370 -> 1 | L72: =+'F1'!T370 -> 1
A73: Transmilenio S.A. | B73: Movilidad | C73: ='F1'!$N$3 -> 2015 | D73: =+'F1'!$T$3 -> 31 DE DICIEMBRE | E73: =+'F1'!$C$366 -> EJE_TRES | F73: =+'F1'!C372 -> Bogotá Humana: Participa y Decide | G73: =+'F1'!D372 -> 71. Comunicación y Capacitación del Sistema Integrado de Transporte Público | H73: =+'F1'!E372 -> 0 | I73: =+'F1'!F372 -> 7. Atender 100 % Requerimientos Mensuales De Los Ciudadanos, Allegados A Transmilenio S.A., A Través De Todos Los Canales De Comunicación, Dentro De Los Términos Legales | J73: =+'F1'!J372 -> 0.875 | K73: =+'F1'!O372 -> 0.8042553191 | L73: =+'F1'!T372 -> 1
A74: =$C$4 -> Transmilenio S.A. | B74: Movilidad | C74: ='F1'!$N$3 -> 2015 | D74: =+'F1'!$T$3 -> 31 DE DICIEMBRE | E74: =+'F1'!$C$366 -> EJE_TRES | F74: =+'F1'!C374 -> Bogotá Humana: Participa y Decide | G74: =+'F1'!D374 -> 71. Comunicación y Capacitación del Sistema Integrado de Transporte Público | H74: =+'F1'!E374 -> 0 | I74: =+'F1'!F374 -> 8. Diseñar Y Producir 3200 Piezas De Comunicacion Al Año, Que Soporten Las Actividades De Capacitación E Información Al Usuario, Sobre El Sistema Integrado De Transporte Público Sitp | J74: =+'F1'!J374 -> 0.8 | K74: =+'F1'!O374 -> 0.4764397906 | L74: =+'F1'!T374 -> 1
A75: Transmilenio S.A. | B75: Movilidad | C75: ='F1'!$N$3 -> 2015 | D75: =+'F1'!$T$3 -> 31 DE DICIEMBRE | E75: =+'F1'!$C$366 -> EJE_TRES | F75: =+'F1'!C376 -> Bogotá Humana: Participa y Decide | G75: =+'F1'!D376 -> 71. Comunicación y Capacitación del Sistema Integrado de Transporte Público | H75: =+'F1'!E376 -> 0 | I75: =+'F1'!F376 -> 9. Implementar 4 medios de análisis y/o divulgación masiva de información para la comunidad y usuarios del SITP (Emisora, encuesta, plan de medios, canal de televisión) | J75: =+'F1'!J376 -> 0.8571428571 | K75: =+'F1'!O376 -> 1 | L75: =+'F1'!T376 -> 1
A76: Transmilenio S.A. | B76: =$A$4 -> Movilidad | C76: ='F1'!$N$3 -> 2015 | D76: =+'F1'!$T$3 -> 31 DE DICIEMBRE | E76: =+'F1'!$C$366 -> EJE_TRES | F76: =+'F1'!C378 -> Bogotá Humana: Participa y Decide | G76: =+'F1'!D378 -> 71. Comunicación y Capacitación del Sistema Integrado de Transporte Público | H76: =+'F1'!E378 -> 0 | I76: =+'F1'!F378 -> 10. Disminuir en un día al año el tiempo promedio de respuesta de peticiones quejas y reclamos con respecto al tiempo promedio de respuesta de la vigencia inmediatamente anterior. | J76: =+'F1'!J378 -> 0.75 | K76: =+'F1'!O378 -> 1 | L76: =+'F1'!T378 -> 1
A77: Transmilenio S.A. | B77: Movilidad | C77: ='F1'!$N$3 -> 2015 | D77: =+'F1'!$T$3 -> 31 DE DICIEMBRE | E77: =+'F1'!$C$366 -> EJE_TRES | F77: =+'F1'!C380 -> Bogotá Humana: Participa y Decide | G77: =+'F1'!D380 -> 71. Comunicación y Capacitación del Sistema Integrado de Transporte Público | H77: =+'F1'!E380 -> 0 | I77: =+'F1'!F380 -> 11. Realizar 8 campañas de cultura ciudadana que promuevan la corresponsabilidad del usuario en el uso del SITP y sus diferentes componentes | J77: =+'F1'!J380 -> 0.75 | K77: =+'F1'!O380 -> 0.8100558659 | L77: =+'F1'!T380 -> 1
A78: Transmilenio S.A. | B78: Movilidad | C78: ='F1'!$N$3 -> 2015 | D78: =+'F1'!$T$3 -> 31 DE DICIEMBRE | E78: =+'F1'!$C$366 -> EJE_TRES | F78: =+'F1'!C382 -> Bogotá Humana: Participa y Decide | G78: =+'F1'!D382 -> 71. Comunicación y Capacitación del Sistema Integrado de Transporte Público | H78: =+'F1'!E382 -> 0 | I78: =+'F1'!F382 -> 12. Realizar 6 campañas de comunicación interna al año dirigidas a usuarios internos sobre los diferentes aspectos del SITP, que generen sentido de pertenencia y reposicionamiento con el Sistema. | J78: =+'F1'!J382 -> 1 | K78: =+'F1'!O382 -> 0.9302325581 | L78: =+'F1'!T382 -> 1
A79: Transmilenio S.A. | B79: Movilidad | C79: ='F1'!$N$3 -> 2015 | D79: =+'F1'!$T$3 -> 31 DE DICIEMBRE | E79: =+'F1'!$C$366 -> EJE_TRES | F79: =+'F1'!C384 -> Bogotá Humana: Participa y Decide | G79: =+'F1'!D384 -> 71. Comunicación y Capacitación del Sistema Integrado de Transporte Público | H79: =+'F1'!E384 -> 0 | I79: =+'F1'!F384 -> 13 Realizar 3500 Encuentro Encuentros (Reuniones, Visitas Técnicas, Recorridos, Audiencias Públicas, Cabildos Públicos, Mesas De Trabajo, Entre Otros), Al Año, Con El Propósito De Fortalecer La Relación Con Las Comunidades Desde Lo Zonal. | J79: =+'F1'!J384 -> 1 | K79: =+'F1'!O384 -> 0.9458483755 | L79: =+'F1'!T384 -> 1
A80: Transmilenio S.A. | B80: Movilidad | C80: ='F1'!$N$3 -> 2015 | D80: =+'F1'!$T$3 -> 31 DE DICIEMBRE | E80: =+'F1'!$C$366 -> EJE_TRES | F80: =+'F1'!C386 -> Fortalecimiento de la función Administrativa y Desarrollo Institucional | G80: =+'F1'!D386 -> 7225. Fortalecimiento Institucional | H80: =+'F1'!E386 -> 0 | I80: =+'F1'!F386 -> 19. Adecuar Y Mantener 1 Sede En Correctas Condiciones, Y Proveer Los Recursos Logísticos Necesarios Para Desarrollar Las Actividades Propias De La Empresa, | J80: =+'F1'!J386 ->  | K80: =+'F1'!O386 ->  | L80: =+'F1'!T386 -> 1
A81: Transmilenio S.A. | B81: Movilidad | C81: ='F1'!$N$3 -> 2015 | D81: =+'F1'!$T$3 -> 31 DE DICIEMBRE | E81: =+'F1'!$C$366 -> EJE_TRES | F81: =+'F1'!C388 -> Fortalecimiento de la función Administrativa y Desarrollo Institucional | G81: =+'F1'!D388 -> 7225. Fortalecimiento Institucional | H81: =+'F1'!E388 -> 0 | I81: =+'F1'!F388 -> 20. Capacitar Y Fortalecer A 423 Funcionarios De Transmilenio S.A. En Temáticas Requeridas Para El Desarrollo De Sus Competencias | J81: =+'F1'!J388 -> 1 | K81: =+'F1'!O388 -> 0.7878787879 | L81: =+'F1'!T388 -> 1
A82: Transmilenio S.A. | B82: Movilidad | C82: ='F1'!$N$3 -> 2015 | D82: =+'F1'!$T$3 -> 31 DE DICIEMBRE | E82: =+'F1'!$C$366 -> EJE_TRES | F82: =+'F1'!C390 -> Fortalecimiento de la función Administrativa y Desarrollo Institucional | G82: =+'F1'!D390 -> 7225. Fortalecimiento Institucional | H82: =+'F1'!E390 -> 0 | I82: =+'F1'!F390 -> 21. Mantener Actualizada 1 Infraestructura Tecnológica Soporte Para Los Procesos Operativos Y Administrativos De Transmilenio S.A. | J82: =+'F1'!J390 ->  | K82: =+'F1'!O390 ->  | L82: =+'F1'!T390 -> 1
A83: Transmilenio S.A. | B83: Movilidad | C83: ='F1'!$N$3 -> 2015 | D83: =+'F1'!$T$3 -> 31 DE DICIEMBRE | E83: =+'F1'!$C$366 -> EJE_TRES | F83: =+'F1'!C392 -> Fortalecimiento de la función Administrativa y Desarrollo Institucional | G83: =+'F1'!D392 -> 7225. Fortalecimiento Institucional | H83: =+'F1'!E392 -> 0 | I83: =+'F1'!F392 -> 22. Implementar 1 Sistema Integrado De Gestión Que Comprenda Los Diferentes Subsistemas Componentes Expuestos En La Norma Ntdsig01 | J83: =+'F1'!J392 -> 1 | K83: =+'F1'!O392 -> 0.7692307692 | L83: =+'F1'!T392 -> 1
A84: Transmilenio S.A. | B84: Movilidad | C84: ='F1'!$N$3 -> 2015 | D84: =+'F1'!$T$3 -> 31 DE DICIEMBRE | E84: =+'F1'!$C$366 -> EJE_TRES | F84: =+'F1'!C394 -> Fortalecimiento de la función Administrativa y Desarrollo Institucional | G84: =+'F1'!D394 -> 7225. Fortalecimiento Institucional | H84: =+'F1'!E394 -> 0 | I84: =+'F1'!F394 -> 23. Ampliar Y Modernizar 1 Sistema De Gestión Documental Para El Manejo Eficiente Y La Conservación Adecuada Del Acervo Documental De La Entidad | J84: =+'F1'!J394 -> 1 | K84: =+'F1'!O394 -> 1 | L84: =+'F1'!T394 -> 1
A85: Transmilenio S.A. | B85: Movilidad | C85: ='F1'!$N$3 -> 2015 | D85: =+'F1'!$T$3 -> 31 DE DICIEMBRE | E85: =+'F1'!$C$366 -> EJE_TRES | F85: =+'F1'!C396 -> 0 | G85: =+'F1'!D396 -> 0 | H85: =+'F1'!E396 -> 0 | I85: =+'F1'!F396 -> 0 | J85: =+'F1'!J396 ->  | K85: =+'F1'!O396 ->  | L85: =+'F1'!T396 -> 
A86: Transmilenio S.A. | B86: Movilidad | C86: ='F1'!$N$3 -> 2015 | D86: =+'F1'!$T$3 -> 31 DE DICIEMBRE | E86: =+'F1'!$C$366 -> EJE_TRES | F86: =+'F1'!C398 -> 0 | G86: =+'F1'!D398 -> 0 | H86: =+'F1'!E398 -> 0 | I86: =+'F1'!F398 -> 0 | J86: =+'F1'!J398 ->  | K86: =+'F1'!O398 ->  | L86: =+'F1'!T398 -> 
A87: Transmilenio S.A. | B87: Movilidad | C87: ='F1'!$N$3 -> 2015 | D87: =+'F1'!$T$3 -> 31 DE DICIEMBRE | E87: =+'F1'!$C$366 -> EJE_TRES | F87: =+'F1'!C400 -> 0 | G87: =+'F1'!D400 -> 0 | H87: =+'F1'!E400 -> 0 | I87: =+'F1'!F400 -> 0 | J87: =+'F1'!J400 ->  | K87: =+'F1'!O400 ->  | L87: =+'F1'!T400 -> 
A88: Transmilenio S.A. | B88: Movilidad | C88: ='F1'!$N$3 -> 2015 | D88: =+'F1'!$T$3 -> 31 DE DICIEMBRE | E88: =+'F1'!$C$366 -> EJE_TRES | F88: =+'F1'!C402 -> 0 | G88: =+'F1'!D402 -> 0 | H88: =+'F1'!E402 -> 0 | I88: =+'F1'!F402 -> 0 | J88: =+'F1'!J402 ->  | K88: =+'F1'!O402 ->  | L88: =+'F1'!T402 -> 
A89: Transmilenio S.A. | B89: Movilidad | C89: ='F1'!$N$3 -> 2015 | D89: =+'F1'!$T$3 -> 31 DE DICIEMBRE | E89: =+'F1'!$C$366 -> EJE_TRES | F89: =+'F1'!C404 -> 0 | G89: =+'F1'!D404 -> 0 | H89: =+'F1'!E404 -> 0 | I89: =+'F1'!F404 -> 0 | J89: =+'F1'!J404 ->  | K89: =+'F1'!O404 ->  | L89: =+'F1'!T404 -> 
A90: Transmilenio S.A. | B90: Movilidad | C90: ='F1'!$N$3 -> 2015 | D90: =+'F1'!$T$3 -> 31 DE DICIEMBRE | E90: =+'F1'!$C$366 -> EJE_TRES | F90: =+'F1'!C406 -> 0 | G90: =+'F1'!D406 -> 0 | H90: =+'F1'!E406 -> 0 | I90: =+'F1'!F406 -> 0 | J90: =+'F1'!J406 ->  | K90: =+'F1'!O406 ->  | L90: =+'F1'!T406 -> 
A91: Transmilenio S.A. | B91: Movilidad | C91: ='F1'!$N$3 -> 2015 | D91: =+'F1'!$T$3 -> 31 DE DICIEMBRE | E91: =+'F1'!$C$366 -> EJE_TRES | F91: =+'F1'!C408 -> 0 | G91: =+'F1'!D408 -> 0 | H91: =+'F1'!E408 -> 0 | I91: =+'F1'!F408 -> 0 | J91: =+'F1'!J408 ->  | K91: =+'F1'!O408 ->  | L91: =+'F1'!T408 -> 
A92: Transmilenio S.A. | B92: Movilidad | C92: ='F1'!$N$3 -> 2015 | D92: =+'F1'!$T$3 -> 31 DE DICIEMBRE | E92: =+'F1'!$C$366 -> EJE_TRES | F92: =+'F1'!C410 -> 0 | G92: =+'F1'!D410 -> 0 | H92: =+'F1'!E410 -> 0 | I92: =+'F1'!F410 -> 0 | J92: =+'F1'!J410 ->  | K92: =+'F1'!O410 ->  | L92: =+'F1'!T410 -> 
A93: Transmilenio S.A. | B93: Movilidad | C93: ='F1'!$N$3 -> 2015 | D93: =+'F1'!$T$3 -> 31 DE DICIEMBRE | E93: =+'F1'!$C$366 -> EJE_TRES | F93: =+'F1'!C412 -> 0 | G93: =+'F1'!D412 -> 0 | H93: =+'F1'!E412 -> 0 | I93: =+'F1'!F412 -> 0 | J93: =+'F1'!J412 ->  | K93: =+'F1'!O412 ->  | L93: =+'F1'!T412 -> 
A94: Transmilenio S.A. | B94: Movilidad | C94: ='F1'!$N$3 -> 2015 | D94: =+'F1'!$T$3 -> 31 DE DICIEMBRE | E94: =+'F1'!$C$366 -> EJE_TRES | F94: =+'F1'!C414 -> 0 | G94: =+'F1'!D414 -> 0 | H94: =+'F1'!E414 -> 0 | I94: =+'F1'!F414 -> 0 | J94: =+'F1'!J414 ->  | K94: =+'F1'!O414 ->  | L94: =+'F1'!T414 -> 
A95: Transmilenio S.A. | B95: Movilidad | C95: ='F1'!$N$3 -> 2015 | D95: =+'F1'!$T$3 -> 31 DE DICIEMBRE | E95: =+'F1'!$C$366 -> EJE_TRES | F95: =+'F1'!C416 -> 0 | G95: =+'F1'!D416 -> 0 | H95: =+'F1'!E416 -> 0 | I95: =+'F1'!F416 -> 0 | J95: =+'F1'!J416 ->  | K95: =+'F1'!O416 ->  | L95: =+'F1'!T416 -> 
A96: Transmilenio S.A. | B96: Movilidad | C96: ='F1'!$N$3 -> 2015 | D96: =+'F1'!$T$3 -> 31 DE DICIEMBRE | E96: =+'F1'!$C$366 -> EJE_TRES | F96: =+'F1'!C418 -> 0 | G96: =+'F1'!D418 -> 0 | H96: =+'F1'!E418 -> 0 | I96: =+'F1'!F418 -> 0 | J96: =+'F1'!J418 ->  | K96: =+'F1'!O418 ->  | L96: =+'F1'!T418 -> 
A97: Transmilenio S.A. | B97: Movilidad | C97: ='F1'!$N$3 -> 2015 | D97: =+'F1'!$T$3 -> 31 DE DICIEMBRE | E97: =+'F1'!$C$366 -> EJE_TRES | F97: =+'F1'!C420 -> 0 | G97: =+'F1'!D420 -> 0 | H97: =+'F1'!E420 -> 0 | I97: =+'F1'!F420 -> 0 | J97: =+'F1'!J420 ->  | K97: =+'F1'!O420 ->  | L97: =+'F1'!T420 -> 
A98: Transmilenio S.A. | B98: Movilidad | C98: ='F1'!$N$3 -> 2015 | D98: =+'F1'!$T$3 -> 31 DE DICIEMBRE | E98: =+'F1'!$C$366 -> EJE_TRES | F98: =+'F1'!C422 -> 0 | G98: =+'F1'!D422 -> 0 | H98: =+'F1'!E422 -> 0 | I98: =+'F1'!F422 -> 0 | J98: =+'F1'!J422 ->  | K98: =+'F1'!O422 ->  | L98: =+'F1'!T422 -> 
A99: Transmilenio S.A. | B99: Movilidad | C99: ='F1'!$N$3 -> 2015 | D99: =+'F1'!$T$3 -> 31 DE DICIEMBRE | E99: =+'F1'!$C$366 -> EJE_TRES | F99: =+'F1'!C424 -> 0 | G99: =+'F1'!D424 -> 0 | H99: =+'F1'!E424 -> 0 | I99: =+'F1'!F424 -> 0 | J99: =+'F1'!J424 ->  | K99: =+'F1'!O424 ->  | L99: =+'F1'!T424 -> 
A100: Transmilenio S.A. | B100: Movilidad | C100: ='F1'!$N$3 -> 2015 | D100: =+'F1'!$T$3 -> 31 DE DICIEMBRE | E100: =+'F1'!$C$366 -> EJE_TRES | F100: =+'F1'!C426 -> 0 | G100: =+'F1'!D426 -> 0 | H100: =+'F1'!E426 -> 0 | I100: =+'F1'!F426 -> 0 | J100: =+'F1'!J426 ->  | K100: =+'F1'!O426 ->  | L100: =+'F1'!T426 -> 
A101: Transmilenio S.A. | B101: Movilidad | C101: ='F1'!$N$3 -> 2015 | D101: =+'F1'!$T$3 -> 31 DE DICIEMBRE | E101: =+'F1'!$C$366 -> EJE_TRES | F101: =+'F1'!C428 -> 0 | G101: =+'F1'!D428 -> 0 | H101: =+'F1'!E428 -> 0 | I101: =+'F1'!F428 -> 0 | J101: =+'F1'!J428 ->  | K101: =+'F1'!O428 ->  | L101: =+'F1'!T428 -> 
A102: Transmilenio S.A. | B102: Movilidad | C102: ='F1'!$N$3 -> 2015 | D102: =+'F1'!$T$3 -> 31 DE DICIEMBRE | E102: =+'F1'!$C$366 -> EJE_TRES | F102: =+'F1'!C430 -> 0 | G102: =+'F1'!D430 -> 0 | H102: =+'F1'!E430 -> 0 | I102: =+'F1'!F430 -> 0 | J102: =+'F1'!J430 ->  | K102: =+'F1'!O430 ->  | L102: =+'F1'!T430 -> 
A264: INFORMES
A265: ENTIDAD | B265: =+B9 -> SECTOR ADMITIVO | C265: VIGENCIA | D265: PERIODO EVALUADO | E265: NOMBRE DEL INFORME | F265: ORIGEN DEL INFORME | I265: OBJETIVO DE LA AUDITORÍA | J265: TIPO DE EVALUACIÓN | K265: CONCLUSIONES
A266: =$C$4 -> Transmilenio S.A. | B266: =$A$4 -> Movilidad | C266: =+'F4'!$I$3 -> 2015 | D266: =+'F4'!$M$3 -> 31 DE DICIMEBRE | E266: =+'F4'!B6 -> Análisis de las Solicitudes de Cesión de Derechos Económicos Estudiadas por el Comité de Verificación – Resolución N° 006 y 216 de 2015 | F266: =+'F4'!E6 -> LEGAL | I266: =+'F4'!G6 -> Determinar el grado de cumplimiento de las solicitudes de cesión de derechos económicos analizadas al interior del Comité de Verificación, con respecto a los requisitos documentales establecidos en las Resoluciones N° 006 y 216 de 2015 expedidas por TRANSMILENIO S.A. | J266: =+'F4'!J6 -> CONTROL INTERNO | K266: =+'F4'!L6 -> Se realizó seguimiento a las observaciones del informe anterior y se recomendó realizar un análisis de los compromisos que se encuentran pendientes por resolver. Emprender un plan de trabajo con fechas y responsables establecidos, y gestionar una solución adecuada y oportuna de las tareas inconclusas.
A267: =$C$4 -> Transmilenio S.A. | B267: =$A$4 -> Movilidad | C267: =+'F4'!$I$3 -> 2015 | D267: =+'F4'!$M$3 -> 31 DE DICIMEBRE | E267: =+'F4'!B7 -> Arqueo de Caja Menor | F267: =+'F4'!E7 -> PROGRAMA ANUAL DE AUDITORÍAS | I267: =+'F4'!G7 -> Verificar el cumplimiento de la Resolución TRANSMILENIO S.A. N° 034 del 26 de Enero de 2015 “Por medio de la cual se constituye el Fondo Fijo de Caja Menor de TRANSMILENIO S.A. para la vigencia fiscal 2015”, el Procedimiento P-DA-005 MANEJO DE CAJA MENOR de fecha 10 de diciembre de 2013 y la Resolución N° 001 del 12 de enero de 2000 “Por medio de la cual se reglamenta el manejo de las Cajas Menores de Transmilenio S.A.” | J267: =+'F4'!J7 -> CONTROL INTERNO | K267: =+'F4'!L7 -> La Oficina de Control Interno evidenció el cumplimiento parcial de lo establecido en el Procedimiento P-DA-005 “Manejo de Caja Menor” de fecha 10 de Diciembre de 2013. De los resultados emitidos en informes anteriores, se logró evidenciar avances en dos (2) observaciones, las cuales fueron debidamente cerradas producto del seguimiento realizado. Las observaciones restantes no presentaron acciones de mejoramiento que eviten la recurrencia de las novedades informadas.
A268: Transmilenio S.A. | B268: Movilidad | C268: =+'F4'!$I$3 -> 2015 | D268: =+'F4'!$M$3 -> 31 DE DICIMEBRE | E268: =+'F4'!B8 -> Auditoría Interna Proceso Desarrollo Estratégico y Sistema de Administración de Riesgos. | F268: =+'F4'!E8 -> PROGRAMA ANUAL DE AUDITORÍAS | I268: =+'F4'!G8 -> 1) Evaluar el diseño y la eficacia operacional de los controles internos del proceso y los subprocesos asociados. 2) Identificar oportunidades de mejoramiento que permitan agregar valor a los procesos de gestión de riesgos, control y gobierno de la Entidad. 3) Evaluar el grado de conformidad del Sistema Integrado de Gestión de la Entidad con respecto a los requisitos aplicables al Proceso Auditado. | J268: =+'F4'!J8 -> CONTROL INTERNO | K268: =+'F4'!L8 -> En la Auditoría Interna al proceso Desarrollo Estratégico y Sistema de Administración de Riesgos en su informe final se registran cinco (5) hallazgos al subproceso de Administración de Riesgos y siete (7) hallazgos al subproceso de Gestión Corporativa, para un total de doce (12) hallazgos abiertos identificados y la suscripción de los correspondientes Planes de Mejoramiento establecidos por los auditados.
A269: Transmilenio S.A. | B269: Movilidad | C269: =+'F4'!$I$3 -> 2015 | D269: =+'F4'!$M$3 -> 31 DE DICIMEBRE | E269: =+'F4'!B9 -> Acompañamiento Entrega de Cargo - Subgerencia Jurídica | F269: =+'F4'!E9 -> SOLICITUD ALTA DIRECCIÓN | I269: =+'F4'!G9 -> Asistir en calidad de observador (asesoría y acompañamiento) al acto de entrega del cargo de la Profesional Especializada Grado 05 de Concesiones al Profesional Especializado Grado 06 de Concesiones (Subgerencia Jurídica) con el fin de garantizar el debido proceso. | J269: =+'F4'!J9 -> CONTROL INTERNO | K269: =+'F4'!L9 -> La Oficina de Control Interno mediante este informe recomendó: "1. La Subgerencia Jurídica podrá establecer mecanismos de control que permitan que cada responsable documente todas las actuaciones al interior de los procesos a su cargo, el estado actual y las estrategias jurídicas a seguir, con el propósito de gestionar el conocimiento en caso de presentarse novedades en el personal" y "2. La Dirección Administrativa podrá impartir lineamientos relacionados con la entrega de cargos en caso de designaciones horizontales de funciones que permitan realizar la trazabilidad de los asuntos encomendados."
A270: Transmilenio S.A. | B270: Movilidad | C270: =+'F4'!$I$3 -> 2015 | D270: =+'F4'!$M$3 -> 31 DE DICIMEBRE | E270: =+'F4'!B10 -> Auditoría Interna Proceso Gestión del Talento Humano | F270: =+'F4'!E10 -> PROGRAMA ANUAL DE AUDITORÍAS | I270: =+'F4'!G10 -> 1) Evaluar el diseño y la eficacia operacional de los controles internos del proceso y los subprocesos asociados. 2) Identificar oportunidades de mejoramiento que permitan agregar valor a los procesos de gestión de riesgos, control y gobierno de la Entidad. 3) Evaluar el grado de conformidad del Sistema Integrado de Gestión de la Entidad con respecto a los requisitos aplicables al Proceso Auditado. | J270: =+'F4'!J10 -> CONTROL INTERNO | K270: =+'F4'!L10 -> Como resultado de esta Auditoría Interna al proceso Gestión del Talento Humano, se registran cuatro (4) hallazgos al subproceso de Bienestar y Desarrollo, tres (3) hallazgos al subproceso de Nomina y Prestaciones Sociales, dos (2) hallazgos al subproceso de selección y vinculación y un hallazgo general, para un total de diez (10) hallazgos abiertos, así como la suscripción de los correspondientes Planes de Mejoramiento establecidos por los auditados.
A271: Transmilenio S.A. | B271: Movilidad | C271: =+'F4'!$I$3 -> 2015 | D271: =+'F4'!$M$3 -> 31 DE DICIMEBRE | E271: =+'F4'!B11 -> Arqueo de Caja Menor | F271: =+'F4'!E11 -> PROGRAMA ANUAL DE AUDITORÍAS | I271: =+'F4'!G11 -> Verificar el cumplimiento de la Resolución TRANSMILENIO S.A. N° 034 del 26 de Enero de 2015 “Por medio de la cual se constituye el Fondo Fijo de Caja Menor de TRANSMILENIO S.A. para la vigencia fiscal 2015”, el procedimiento P-DA-005 MANEJO DE CAJA MENOR de fecha 10 de diciembre de 2013 y la Resolución N° 001 del 12 de enero de 2000 “Por medio de la cual se reglamenta el manejo de las Cajas Menores de Transmilenio S.A.” | J271: =+'F4'!J11 -> CONTROL INTERNO | K271: =+'F4'!L11 -> La Oficina de Control Interno evidenció el cumplimiento parcial de lo establecido en el Procedimiento P-DA-005 “Manejo de Caja Menor” de fecha 10 de Diciembre de 2013. De los resultados emitidos en informes anteriores, se logró evidenciar avances en cuatro (4) observaciones, de las cuales una (1) fue debidamente cerrada. Las tres (3) observaciones restantes continuarán siendo objeto de verificación por parte de la Oficina de Control Interno.
A272: Transmilenio S.A. | B272: Movilidad | C272: =+'F4'!$I$3 -> 2015 | D272: =+'F4'!$M$3 -> 31 DE DICIMEBRE | E272: =+'F4'!B12 -> Informe Pormenorizado del Estado del Control Interno – Ley 1474 de 2011. | F272: =+'F4'!E12 -> LEGAL | I272: =+'F4'!G12 -> 1) Identificar los avances y dificultades presentados en la implementación y mantenimiento de cada uno de los componentes que conforman el Modelo Estándar de Control Interno – MECI 2014. 2) Conceptuar acerca del estado general del Sistema de Control Interno de TRANSMILENIO S.A. 3) Emitir recomendaciones con el propósito de mejorar continuamente el Sistema de Control Interno de TRANSMILENIO S.A. | J272: =+'F4'!J12 -> CONTROL INTERNO | K272: =+'F4'!L12 -> En este informe se presentan los avances y dificultades por cada uno de los componentes del Sistema de Control Interno: - Módulo de Control de Planeación y Gestión. - Módulo de Control de Evaluación y Seguimiento. - Eje Transversal de Información y Comunicación. De igual manera se presenta el concepto general acerca del estado del Sistema de Control Interno de TRANSMILENIO S.A. y las recomendaciones emitidas por esta Oficina, tendientes a corregir las debilidades detectadas.
A273: Transmilenio S.A. | B273: Movilidad | C273: =+'F4'!$I$3 -> 2015 | D273: =+'F4'!$M$3 -> 31 DE DICIMEBRE | E273: =+'F4'!B13 -> Austeridad y Eficiencia en el Gasto Público – Decreto Nacional 1737 de 1998 - Decreto Distrital 030 de 1999. | F273: =+'F4'!E13 -> LEGAL | I273: =+'F4'!G13 -> 1) Verificar el cumplimiento de la normatividad legal aplicable en materia de austeridad y eficiencia del gasto público. 2) Analizar el comportamiento y las variaciones (incrementos o disminuciones de los gastos) en los rubros establecidos en la normatividad aplicable. | J273: =+'F4'!J13 -> CONTROL INTERNO | K273: =+'F4'!L13 -> De conformidad con lo descrito en este informe, se concluyó que las variaciones presentadas en los rubros analizados fueron justificadas de forma razonable. No obstante, este informe describe observaciones y recomendaciones sobre las cuales la Gerencia General debe implementar actividades de control que garanticen el cumplimiento de la normatividad aplicable en materia contable y de austeridad en el gasto público.
A274: Transmilenio S.A. | B274: Movilidad | C274: =+'F4'!$I$3 -> 2015 | D274: =+'F4'!$M$3 -> 31 DE DICIMEBRE | E274: =+'F4'!B14 -> Actividad de Fomento de la Cultura del Control y el Autocontrol - 2015 | F274: =+'F4'!E14 -> PROGRAMA ANUAL DE AUDITORÍAS | I274: =+'F4'!G14 -> Sensibilizar al personal de la Entidad sobre: 1) Las responsabilidades en el cumplimiento de sus obligaciones y la necesidad de implementar mecanismos de control y autocontrol en las actividades diarias con el fin de contribuir al logro de los objetivos institucionales. 2) Conceptos claves sobre el Modelo Estándar de Control Interno - MECI así como del Sistema TransMilenio. | J274: =+'F4'!J14 -> CONTROL INTERNO | K274: =+'F4'!L14 -> Esta actividad fue dirigida a todos los servidores públicos vinculados con TRANSMILENIO S.A. que voluntariamente manifestaron su interés por acudir a la convocatoria realizada por la Oficina de Control Interno a esta actividad. Cuatro de ellos fueron premiados por su conocimiento en el MECI y sobre el Autocontrol a través de preguntas que se realizaron en el concurso "Quien quiere ser Transmillonario"
A275: Transmilenio S.A. | B275: Movilidad | C275: =+'F4'!$I$3 -> 2015 | D275: =+'F4'!$M$3 -> 31 DE DICIMEBRE | E275: =+'F4'!B15 -> Verificación de la Liquidación de Saldos Presupuestales 2013 - 2015. | F275: =+'F4'!E15 -> SOLICITUD ALTA DIRECCIÓN | I275: =+'F4'!G15 -> Verificar que una vez los contratos suscritos por la Entidad hayan culminado su ejecución, los mismos sean oportunamente liquidados y los saldos presupuestales derivados de la liquidación hayan sido liberados. | J275: =+'F4'!J15 -> EVALUACIÓN DE GESTIÓN Y RESULTADOS | K275: =+'F4'!L15 -> Aunque la Subgerencia Económica publica periódicamente en la Intranet Institucional los informes de cuentas por pagar, como resultado de la verificación practicada se pudo evidenciar la existencia de saldos presupuestales correspondientes a contratos liquidados, así como la permanencia de contratos vencidos pendientes por liquidar, incumpliendo así lo establecido en el artículo 11 de la Ley 1150 de 2007 y el Manual de Supervisión e Interventoría de la Entidad, lo cual podría llegar a generar el desaprovechamiento de recursos económicos para otros fines prioritarios en la Organización.
A276: Transmilenio S.A. | B276: Movilidad | C276: =+'F4'!$I$3 -> 2015 | D276: =+'F4'!$M$3 -> 31 DE DICIMEBRE | E276: =+'F4'!B16 -> Auditoría Interna Procesos: Planeación del SITP / Supervisión y Control de la Operación del SITP. | F276: =+'F4'!E16 -> PROGRAMA ANUAL DE AUDITORÍAS | I276: =+'F4'!G16 -> 1) Evaluar el diseño y la eficacia operacional de los controles internos del proceso y los subprocesos asociados. 2) Identificar oportunidades de mejoramiento que permitan agregar valor a los procesos de gestión de riesgos, control y gobierno de la Entidad. 3) Evaluar el grado de conformidad del Sistema Integrado de Gestión de la Entidad con respecto a los requisitos aplicables al Proceso Auditado. | J276: =+'F4'!J16 -> CONTROL INTERNO | K276: =+'F4'!L16 -> Como resultado de la Auditoría Interna al proceso Planeación del SITP / Supervisión y Control de la Operación del SITP., se registran diecisiete (17) hallazgos y de los cuales se suscribieron nueve (9) Planes de Mejoramiento para los hallazgos aceptados.
A277: Transmilenio S.A. | B277: Movilidad | C277: =+'F4'!$I$3 -> 2015 | D277: =+'F4'!$M$3 -> 31 DE DICIMEBRE | E277: =+'F4'!B17 -> Auditoría Interna Proceso Gestión de Servicios Logísticos | F277: =+'F4'!E17 -> PROGRAMA ANUAL DE AUDITORÍAS | I277: =+'F4'!G17 -> 1) Evaluar el diseño y la eficacia operacional de los controles internos del proceso y los subprocesos asociados. 2) Identificar oportunidades de mejoramiento que permitan agregar valor a los procesos de gestión de riesgos, control y gobierno de la Entidad. 3) Evaluar el grado de conformidad del Sistema Integrado de Gestión de la Entidad con respecto a los requisitos aplicables al Proceso Auditado. | J277: =+'F4'!J17 -> CONTROL INTERNO | K277: =+'F4'!L17 -> Como resultado de la Auditoría Interna al Proceso Gestión de Servicios Logísticos, en el informe se registran cinco (5) hallazgos al subproceso de Gestión de Inventarios, Un (1) hallazgo al subproceso de Aseguramiento de Bienes e Intereses Patrimoniales, siete (7) hallazgos al subproceso de Gestión Documental y un (1) hallazgo general, para un total de catorce (14) hallazgos abiertos, asi como el Plan de Mejoramiento establecidos por los auditados.
A278: Transmilenio S.A. | B278: Movilidad | C278: =+'F4'!$I$3 -> 2015 | D278: =+'F4'!$M$3 -> 31 DE DICIMEBRE | E278: =+'F4'!B18 -> Seguimiento al Cumplimiento de las Funciones del Comité de Conciliación y Defensa Judicial | F278: =+'F4'!E18 -> LEGAL | I278: =+'F4'!G18 -> Verificar el cumplimiento de las obligaciones establecidas en el Decreto 1069 de 2015 “Por medio del cual se expide el Decreto Único Reglamentario del Sector Justicia y del Derecho” (Antes Decreto 1716 de 2009) por parte del Comité de Conciliación de TRANSMILENIO S.A. | J278: =+'F4'!J18 -> CONTROL INTERNO | K278: =+'F4'!L18 -> Según lo detallado en este informe, se concluye que existen observaciones sobre las cuales el Comité de Conciliación de TRANSMILENIO S.A. debe implementar actividades de control que garanticen el cumplimiento de la normatividad aplicable.
A279: Transmilenio S.A. | B279: Movilidad | C279: =+'F4'!$I$3 -> 2015 | D279: =+'F4'!$M$3 -> 31 DE DICIMEBRE | E279: =+'F4'!B19 -> Seguimiento a las Estrategias del Plan Anticorrupción y de Atención al Ciudadano | F279: =+'F4'!E19 -> LEGAL | I279: =+'F4'!G19 -> Verificar el cumplimiento de las estrategias para la construcción del Plan Anticorrupción y de Atención al Ciudadano de TRANSMILENIO S.A. establecidas para la vigencia 2015. | J279: =+'F4'!J19 -> CONTROL INTERNO | K279: =+'F4'!L19 -> De acuerdo con la información suministrada por los responsables de los distintos procesos y subprocesos de la Entidad, a la fecha de publicación del este informe, no se ha obtenido evidencia que permita deducir la materialización de los riesgos de corrupción previamente identificados. Con respecto al componente “Atención al Ciudadano”, la Entidad ha venido implementado diferentes actividades de control tendientes a optimizar la atención de las necesidades de los ciudadanos, no obstante, durante la vigencia 2015 la Oficina de Control Interno ha detectado diferentes oportunidades de mejoramiento al respecto, las cuales han sido reveladas de forma semestral en el Informe de Atención al Ciudadano y Gestión de Peticiones, Quejas, Reclamos y Sugerencias (Ley 1474 de 2011 – Decreto 2641 de 2012). Así mismo, en relación con los componentes “Rendición de Cuentas” y “Antitrámites”, se puede concluir de forma razonable que la Entidad ha venido ejecutando satisfactoriamente las actividades previstas para la vigencia 2015. Finalmente, se reafirma la necesidad que todas las áreas cuenten con la identificación y evaluación de los riesgos asociados a corrupción, lo cual debe quedar plasmado en el próximo Plan Anticorrupción y de Atención al Ciudadano vigencia 2016.
A280: Transmilenio S.A. | B280: Movilidad | C280: =+'F4'!$I$3 -> 2015 | D280: =+'F4'!$M$3 -> 31 DE DICIMEBRE | E280: =+'F4'!B20 -> Informe Proceso de Empalme – Control Interno Contable, Circular Externa N° 005 de 2015 emitida por la Contaduría General de la Nación | F280: =+'F4'!E20 -> OTRO | I280: =+'F4'!G20 -> Verificar el cumplimiento de las obligaciones establecidas en la Circula Externa No. 005 de 2015 emitida por la Contaduría General de la Nación, relacionadas con el proceso de empalme y el Control Interno Contable , conforme al cronograma de actividades dispuesto por la Administración saliente. | J280: =+'F4'!J20 -> CONTROL INTERNO | K280: =+'F4'!L20 -> En este informe la Oficina de Control Interno verificó las disposiciones incluidas en la Circular Externa N° 05 de 2015 expedida por la Contaduría General de la Nación en lo que hace referencia al empalme entre mandatarios distritales.
A281: Transmilenio S.A. | B281: Movilidad | C281: =+'F4'!$I$3 -> 2015 | D281: =+'F4'!$M$3 -> 31 DE DICIMEBRE | E281: =+'F4'!B21 -> 0 | F281: =+'F4'!E21 -> 0 | I281: =+'F4'!G21 -> 0 | J281: =+'F4'!J21 -> 0 | K281: =+'F4'!L21 -> 0
A282: Transmilenio S.A. | B282: Movilidad | C282: =+'F4'!$I$3 -> 2015 | D282: =+'F4'!$M$3 -> 31 DE DICIMEBRE | E282: =+'F4'!B22 -> 0 | F282: =+'F4'!E22 -> 0 | I282: =+'F4'!G22 -> 0 | J282: =+'F4'!J22 -> 0 | K282: =+'F4'!L22 -> 0
A283: Transmilenio S.A. | B283: Movilidad | C283: =+'F4'!$I$3 -> 2015 | D283: =+'F4'!$M$3 -> 31 DE DICIMEBRE | E283: =+'F4'!B23 -> 0 | F283: =+'F4'!E23 -> 0 | I283: =+'F4'!G23 -> 0 | J283: =+'F4'!J23 -> 0 | K283: =+'F4'!L23 -> 0
A284: Transmilenio S.A. | B284: Movilidad | C284: =+'F4'!$I$3 -> 2015 | D284: =+'F4'!$M$3 -> 31 DE DICIMEBRE | E284: =+'F4'!B24 -> 0 | F284: =+'F4'!E24 -> 0 | I284: =+'F4'!G24 -> 0 | J284: =+'F4'!J24 -> 0 | K284: =+'F4'!L24 -> 0
A285: Transmilenio S.A. | B285: Movilidad | C285: =+'F4'!$I$3 -> 2015 | D285: =+'F4'!$M$3 -> 31 DE DICIMEBRE | E285: =+'F4'!B25 -> 0 | F285: =+'F4'!E25 -> 0 | I285: =+'F4'!G25 -> 0 | J285: =+'F4'!J25 -> 0 | K285: =+'F4'!L25 -> 0
A286: Transmilenio S.A. | B286: Movilidad | C286: =+'F4'!$I$3 -> 2015 | D286: =+'F4'!$M$3 -> 31 DE DICIMEBRE | E286: =+'F4'!B26 -> 0 | F286: =+'F4'!E26 -> 0 | I286: =+'F4'!G26 -> 0 | J286: =+'F4'!J26 -> 0 | K286: =+'F4'!L26 -> 0
A287: Transmilenio S.A. | B287: Movilidad | C287: =+'F4'!$I$3 -> 2015 | D287: =+'F4'!$M$3 -> 31 DE DICIMEBRE | E287: =+'F4'!B27 -> 0 | F287: =+'F4'!E27 -> 0 | I287: =+'F4'!G27 -> 0 | J287: =+'F4'!J27 -> 0 | K287: =+'F4'!L27 -> 0
A288: Transmilenio S.A. | B288: Movilidad | C288: =+'F4'!$I$3 -> 2015 | D288: =+'F4'!$M$3 -> 31 DE DICIMEBRE | E288: =+'F4'!B28 -> 0 | F288: =+'F4'!E28 -> 0 | I288: =+'F4'!G28 -> 0 | J288: =+'F4'!J28 -> 0 | K288: =+'F4'!L28 -> 0
A289: Transmilenio S.A. | B289: Movilidad | C289: =+'F4'!$I$3 -> 2015 | D289: =+'F4'!$M$3 -> 31 DE DICIMEBRE | E289: =+'F4'!B29 -> 0 | F289: =+'F4'!E29 -> 0 | I289: =+'F4'!G29 -> 0 | J289: =+'F4'!J29 -> 0 | K289: =+'F4'!L29 -> 0
A290: Transmilenio S.A. | B290: Movilidad | C290: =+'F4'!$I$3 -> 2015 | D290: =+'F4'!$M$3 -> 31 DE DICIMEBRE | E290: =+'F4'!B30 -> 0 | F290: =+'F4'!E30 -> 0 | I290: =+'F4'!G30 -> 0 | J290: =+'F4'!J30 -> 0 | K290: =+'F4'!L30 -> 0
A291: Transmilenio S.A. | B291: Movilidad | C291: =+'F4'!$I$3 -> 2015 | D291: =+'F4'!$M$3 -> 31 DE DICIMEBRE | E291: =+'F4'!B31 -> 0 | F291: =+'F4'!E31 -> 0 | I291: =+'F4'!G31 -> 0 | J291: =+'F4'!J31 -> 0 | K291: =+'F4'!L31 -> 0
A292: Transmilenio S.A. | B292: Movilidad | C292: =+'F4'!$I$3 -> 2015 | D292: =+'F4'!$M$3 -> 31 DE DICIMEBRE | E292: =+'F4'!B32 -> 0 | F292: =+'F4'!E32 -> 0 | I292: =+'F4'!G32 -> 0 | J292: =+'F4'!J32 -> 0 | K292: =+'F4'!L32 -> 0
A293: Transmilenio S.A. | B293: Movilidad | C293: =+'F4'!$I$3 -> 2015 | D293: =+'F4'!$M$3 -> 31 DE DICIMEBRE | E293: =+'F4'!B33 -> 0 | F293: =+'F4'!E33 -> 0 | I293: =+'F4'!G33 -> 0 | J293: =+'F4'!J33 -> 0 | K293: =+'F4'!L33 -> 0
A294: Transmilenio S.A. | B294: Movilidad | C294: =+'F4'!$I$3 -> 2015 | D294: =+'F4'!$M$3 -> 31 DE DICIMEBRE | E294: =+'F4'!B34 -> 0 | F294: =+'F4'!E34 -> 0 | I294: =+'F4'!G34 -> 0 | J294: =+'F4'!J34 -> 0 | K294: =+'F4'!L34 -> 0
A295: Transmilenio S.A. | B295: Movilidad | C295: =+'F4'!$I$3 -> 2015 | D295: =+'F4'!$M$3 -> 31 DE DICIMEBRE | E295: =+'F4'!B35 -> 0 | F295: =+'F4'!E35 -> 0 | I295: =+'F4'!G35 -> 0 | J295: =+'F4'!J35 -> 0 | K295: =+'F4'!L35 -> 0
A296: Transmilenio S.A. | B296: Movilidad | C296: =+'F4'!$I$3 -> 2015 | D296: =+'F4'!$M$3 -> 31 DE DICIMEBRE | E296: =+'F4'!B36 -> 0 | F296: =+'F4'!E36 -> 0 | I296: =+'F4'!G36 -> 0 | J296: =+'F4'!J36 -> 0 | K296: =+'F4'!L36 -> 0
A298: RIESGOS
L299: RESULTADOS DE LA EVALUACIÓN DEL RIESGO | O299: PLAN DE MANEJO
A300: ENTIDAD | B300: SECTOR ADMITIVO | C300: VIGENCIA | D300: PERIODO EVALUADO | E300: EJE | F300: PROGRAMA | I300: RIESGOS IDENTIFICADOS | J300: TIPO DE RIESGO | K300: CONTROLES | L300: IMPACTO | M300: PROBABILIDAD | N300: ZONA DE RIESGO | O300: OPCIONES DE MANEJO | P300: ACCIONES
A301: =$C$4 -> Transmilenio S.A. | B301: =$A$4 -> Movilidad | C301: =+'F2'!$I$3 -> 0 | D301: =+'F2'!$L$3 -> 0 | E301: =+'F2'!C6 -> 0 | F301: =+'F2'!J6 -> 0 | I301: =+'F2'!C10 -> 0 | J301: =+'F2'!D10 -> 0 | K301: =+'F2'!E10 -> 0 | L301: =+'F2'!F10 -> 0 | M301: =+'F2'!G10 -> 0 | N301: =+'F2'!H10 ->  | O301: =+'F2'!I10 ->  | P301: =+'F2'!J10 -> 0
A302: =$C$4 -> Transmilenio S.A. | B302: =$A$4 -> Movilidad | C302: =+'F2'!$I$3 -> 0 | D302: =+'F2'!$L$3 -> 0 | E302: =+E301 -> 0 | F302: =+F301 -> 0 | I302: =+'F2'!C11 -> 0 | J302: =+'F2'!D11 -> 0 | K302: =+'F2'!E11 -> 0 | L302: =+'F2'!F11 -> 0 | M302: =+'F2'!G11 -> 0 | N302: =+'F2'!H11 ->  | O302: =+'F2'!I11 ->  | P302: =+'F2'!J11 -> 0
A303: Transmilenio S.A. | B303: Movilidad | C303: =+'F2'!$I$3 -> 0 | D303: =+'F2'!$L$3 -> 0 | E303: =+E302 -> 0 | F303: =+F302 -> 0 | I303: =+'F2'!C12 -> 0 | J303: =+'F2'!D12 -> 0 | K303: =+'F2'!E12 -> 0 | L303: =+'F2'!F12 -> 0 | M303: =+'F2'!G12 -> 0 | N303: =+'F2'!H12 ->  | O303: =+'F2'!I12 ->  | P303: =+'F2'!J12 -> 0
A304: Transmilenio S.A. | B304: Movilidad | C304: =+'F2'!$I$3 -> 0 | D304: =+'F2'!$L$3 -> 0 | E304: 0 | F304: 0 | I304: =+'F2'!C13 -> 0 | J304: =+'F2'!D13 -> 0 | K304: =+'F2'!E13 -> 0 | L304: =+'F2'!F13 -> 0 | M304: =+'F2'!G13 -> 0 | N304: =+'F2'!H13 ->  | O304: =+'F2'!I13 ->  | P304: =+'F2'!J13 -> 0
A305: Transmilenio S.A. | B305: Movilidad | C305: =+'F2'!$I$3 -> 0 | D305: =+'F2'!$L$3 -> 0 | E305: 0 | F305: 0 | I305: =+'F2'!C14 -> 0 | J305: =+'F2'!D14 -> 0 | K305: =+'F2'!E14 -> 0 | L305: =+'F2'!F14 -> 0 | M305: =+'F2'!G14 -> 0 | N305: =+'F2'!H14 ->  | O305: =+'F2'!I14 ->  | P305: =+'F2'!J14 -> 0
A306: Transmilenio S.A. | B306: Movilidad | C306: =+'F2'!$I$3 -> 0 | D306: =+'F2'!$L$3 -> 0 | E306: 0 | F306: 0 | I306: =+'F2'!C15 -> 0 | J306: =+'F2'!D15 -> 0 | K306: =+'F2'!E15 -> 0 | L306: =+'F2'!F15 -> 0 | M306: =+'F2'!G15 -> 0 | N306: =+'F2'!H15 ->  | O306: =+'F2'!I15 ->  | P306: =+'F2'!J15 -> 0
A307: Transmilenio S.A. | B307: Movilidad | C307: =+'F2'!$I$3 -> 0 | D307: =+'F2'!$L$3 -> 0 | E307: 0 | F307: 0 | I307: =+'F2'!C16 -> 0 | J307: =+'F2'!D16 -> 0 | K307: =+'F2'!E16 -> 0 | L307: =+'F2'!F16 -> 0 | M307: =+'F2'!G16 -> 0 | N307: =+'F2'!H16 ->  | O307: =+'F2'!I16 ->  | P307: =+'F2'!J16 -> 0
A308: Transmilenio S.A. | B308: Movilidad | C308: =+'F2'!$I$3 -> 0 | D308: =+'F2'!$L$3 -> 0 | E308: 0 | F308: 0 | I308: =+'F2'!C17 -> 0 | J308: =+'F2'!D17 -> 0 | K308: =+'F2'!E17 -> 0 | L308: =+'F2'!F17 -> 0 | M308: =+'F2'!G17 -> 0 | N308: =+'F2'!H17 ->  | O308: =+'F2'!I17 ->  | P308: =+'F2'!J17 -> 0
A309: Transmilenio S.A. | B309: Movilidad | C309: =+'F2'!$I$3 -> 0 | D309: =+'F2'!$L$3 -> 0 | E309: 0 | F309: 0 | I309: =+'F2'!C18 -> 0 | J309: =+'F2'!D18 -> 0 | K309: =+'F2'!E18 -> 0 | L309: =+'F2'!F18 -> 0 | M309: =+'F2'!G18 -> 0 | N309: =+'F2'!H18 ->  | O309: =+'F2'!I18 ->  | P309: =+'F2'!J18 -> 0
A310: Transmilenio S.A. | B310: Movilidad | C310: =+'F2'!$I$3 -> 0 | D310: =+'F2'!$L$3 -> 0 | E310: 0 | F310: 0 | I310: =+'F2'!C19 -> 0 | J310: =+'F2'!D19 -> 0 | K310: =+'F2'!E19 -> 0 | L310: =+'F2'!F19 -> 0 | M310: =+'F2'!G19 -> 0 | N310: =+'F2'!H19 ->  | O310: =+'F2'!I19 ->  | P310: =+'F2'!J19 -> 0
A311: Transmilenio S.A. | B311: Movilidad | C311: =+'F2'!$I$3 -> 0 | D311: =+'F2'!$L$3 -> 0 | E311: 0 | F311: 0 | I311: =+'F2'!C20 -> 0 | J311: =+'F2'!D20 -> 0 | K311: =+'F2'!E20 -> 0 | L311: =+'F2'!F20 -> 0 | M311: =+'F2'!G20 -> 0 | N311: =+'F2'!H20 ->  | O311: =+'F2'!I20 ->  | P311: =+'F2'!J20 -> 0
A312: Transmilenio S.A. | B312: Movilidad | C312: =+'F2'!$I$3 -> 0 | D312: =+'F2'!$L$3 -> 0 | E312: 0 | F312: 0 | I312: =+'F2'!C21 -> 0 | J312: =+'F2'!D21 -> 0 | K312: =+'F2'!E21 -> 0 | L312: =+'F2'!F21 -> 0 | M312: =+'F2'!G21 -> 0 | N312: =+'F2'!H21 ->  | O312: =+'F2'!I21 ->  | P312: =+'F2'!J21 -> 0
A313: Transmilenio S.A. | B313: Movilidad | C313: =+'F2'!$I$3 -> 0 | D313: =+'F2'!$L$3 -> 0 | E313: 0 | F313: 0 | I313: =+'F2'!C22 -> 0 | J313: =+'F2'!D22 -> 0 | K313: =+'F2'!E22 -> 0 | L313: =+'F2'!F22 -> 0 | M313: =+'F2'!G22 -> 0 | N313: =+'F2'!H22 ->  | O313: =+'F2'!I22 ->  | P313: =+'F2'!J22 -> 0
A314: Transmilenio S.A. | B314: Movilidad | C314: =+'F2'!$I$3 -> 0 | D314: =+'F2'!$L$3 -> 0 | E314: 0 | F314: 0 | I314: =+'F2'!C23 -> 0 | J314: =+'F2'!D23 -> 0 | K314: =+'F2'!E23 -> 0 | L314: =+'F2'!F23 -> 0 | M314: =+'F2'!G23 -> 0 | N314: =+'F2'!H23 ->  | O314: =+'F2'!I23 ->  | P314: =+'F2'!J23 -> 0
A315: Transmilenio S.A. | B315: Movilidad | C315: =+'F2'!$I$3 -> 0 | D315: =+'F2'!$L$3 -> 0 | E315: 0 | F315: 0 | I315: =+'F2'!C24 -> 0 | J315: =+'F2'!D24 -> 0 | K315: =+'F2'!E24 -> 0 | L315: =+'F2'!F24 -> 0 | M315: =+'F2'!G24 -> 0 | N315: =+'F2'!H24 ->  | O315: =+'F2'!I24 ->  | P315: =+'F2'!J24 -> 0
A316: Transmilenio S.A. | B316: Movilidad | C316: =+'F2'!$I$3 -> 0 | D316: =+'F2'!$L$3 -> 0 | E316: 0 | F316: 0 | I316: =+'F2'!C25 -> 0 | J316: =+'F2'!D25 -> 0 | K316: =+'F2'!E25 -> 0 | L316: =+'F2'!F25 -> 0 | M316: =+'F2'!G25 -> 0 | N316: =+'F2'!H25 ->  | O316: =+'F2'!I25 ->  | P316: =+'F2'!J25 -> 0
A317: =$C$4 -> Transmilenio S.A. | B317: =$A$4 -> Movilidad | C317: =+'F2'!$I$3 -> 0 | D317: =+'F2'!$L$3 -> 0 | E317: =+'F2'!C29 -> 0 | F317: =+'F2'!J29 -> 0 | I317: =+'F2'!C33 -> 0 | J317: =+'F2'!D33 -> 0 | K317: =+'F2'!E33 -> 0 | L317: =+'F2'!F33 -> 0 | M317: =+'F2'!G33 -> 0 | N317: =+'F2'!H33 ->  | O317: =+'F2'!I33 ->  | P317: =+'F2'!J33 -> 0
A318: =$C$4 -> Transmilenio S.A. | B318: =$A$4 -> Movilidad | C318: =+'F2'!$I$3 -> 0 | D318: =+'F2'!$L$3 -> 0 | E318: =+E317 -> 0 | F318: =+F317 -> 0 | I318: =+'F2'!C34 -> 0 | J318: =+'F2'!D34 -> 0 | K318: =+'F2'!E34 -> 0 | L318: =+'F2'!F34 -> 0 | M318: =+'F2'!G34 -> 0 | N318: =+'F2'!H34 ->  | O318: =+'F2'!I34 ->  | P318: =+'F2'!J34 -> 0
A319: Transmilenio S.A. | B319: Movilidad | C319: =+'F2'!$I$3 -> 0 | D319: =+'F2'!$L$3 -> 0 | E319: =+E318 -> 0 | F319: =+F318 -> 0 | I319: =+'F2'!C35 -> 0 | J319: =+'F2'!D35 -> 0 | K319: =+'F2'!E35 -> 0 | L319: =+'F2'!F35 -> 0 | M319: =+'F2'!G35 -> 0 | N319: =+'F2'!H35 ->  | O319: =+'F2'!I35 ->  | P319: =+'F2'!J35 -> 0
A320: Transmilenio S.A. | B320: Movilidad | C320: =+'F2'!$I$3 -> 0 | D320: =+'F2'!$L$3 -> 0 | E320: 0 | F320: 0 | I320: =+'F2'!C36 -> 0 | J320: =+'F2'!D36 -> 0 | K320: =+'F2'!E36 -> 0 | L320: =+'F2'!F36 -> 0 | M320: =+'F2'!G36 -> 0 | N320: =+'F2'!H36 ->  | O320: =+'F2'!I36 ->  | P320: =+'F2'!J36 -> 0
A321: Transmilenio S.A. | B321: Movilidad | C321: =+'F2'!$I$3 -> 0 | D321: =+'F2'!$L$3 -> 0 | E321: 0 | F321: 0 | I321: =+'F2'!C37 -> 0 | J321: =+'F2'!D37 -> 0 | K321: =+'F2'!E37 -> 0 | L321: =+'F2'!F37 -> 0 | M321: =+'F2'!G37 -> 0 | N321: =+'F2'!H37 ->  | O321: =+'F2'!I37 ->  | P321: =+'F2'!J37 -> 0
A322: Transmilenio S.A. | B322: Movilidad | C322: =+'F2'!$I$3 -> 0 | D322: =+'F2'!$L$3 -> 0 | E322: 0 | F322: 0 | I322: =+'F2'!C38 -> 0 | J322: =+'F2'!D38 -> 0 | K322: =+'F2'!E38 -> 0 | L322: =+'F2'!F38 -> 0 | M322: =+'F2'!G38 -> 0 | N322: =+'F2'!H38 ->  | O322: =+'F2'!I38 ->  | P322: =+'F2'!J38 -> 0
A323: Transmilenio S.A. | B323: Movilidad | C323: =+'F2'!$I$3 -> 0 | D323: =+'F2'!$L$3 -> 0 | E323: 0 | F323: 0 | I323: =+'F2'!C39 -> 0 | J323: =+'F2'!D39 -> 0 | K323: =+'F2'!E39 -> 0 | L323: =+'F2'!F39 -> 0 | M323: =+'F2'!G39 -> 0 | N323: =+'F2'!H39 ->  | O323: =+'F2'!I39 ->  | P323: =+'F2'!J39 -> 0
A324: Transmilenio S.A. | B324: Movilidad | C324: =+'F2'!$I$3 -> 0 | D324: =+'F2'!$L$3 -> 0 | E324: 0 | F324: 0 | I324: =+'F2'!C40 -> 0 | J324: =+'F2'!D40 -> 0 | K324: =+'F2'!E40 -> 0 | L324: =+'F2'!F40 -> 0 | M324: =+'F2'!G40 -> 0 | N324: =+'F2'!H40 ->  | O324: =+'F2'!I40 ->  | P324: =+'F2'!J40 -> 0
A325: Transmilenio S.A. | B325: Movilidad | C325: =+'F2'!$I$3 -> 0 | D325: =+'F2'!$L$3 -> 0 | E325: 0 | F325: 0 | I325: =+'F2'!C41 -> 0 | J325: =+'F2'!D41 -> 0 | K325: =+'F2'!E41 -> 0 | L325: =+'F2'!F41 -> 0 | M325: =+'F2'!G41 -> 0 | N325: =+'F2'!H41 ->  | O325: =+'F2'!I41 ->  | P325: =+'F2'!J41 -> 0
A326: Transmilenio S.A. | B326: Movilidad | C326: =+'F2'!$I$3 -> 0 | D326: =+'F2'!$L$3 -> 0 | E326: 0 | F326: 0 | I326: =+'F2'!C42 -> 0 | J326: =+'F2'!D42 -> 0 | K326: =+'F2'!E42 -> 0 | L326: =+'F2'!F42 -> 0 | M326: =+'F2'!G42 -> 0 | N326: =+'F2'!H42 ->  | O326: =+'F2'!I42 ->  | P326: =+'F2'!J42 -> 0
A327: Transmilenio S.A. | B327: Movilidad | C327: =+'F2'!$I$3 -> 0 | D327: =+'F2'!$L$3 -> 0 | E327: 0 | F327: 0 | I327: =+'F2'!C43 -> 0 | J327: =+'F2'!D43 -> 0 | K327: =+'F2'!E43 -> 0 | L327: =+'F2'!F43 -> 0 | M327: =+'F2'!G43 -> 0 | N327: =+'F2'!H43 ->  | O327: =+'F2'!I43 ->  | P327: =+'F2'!J43 -> 0
A328: Transmilenio S.A. | B328: Movilidad | C328: =+'F2'!$I$3 -> 0 | D328: =+'F2'!$L$3 -> 0 | E328: 0 | F328: 0 | I328: =+'F2'!C44 -> 0 | J328: =+'F2'!D44 -> 0 | K328: =+'F2'!E44 -> 0 | L328: =+'F2'!F44 -> 0 | M328: =+'F2'!G44 -> 0 | N328: =+'F2'!H44 ->  | O328: =+'F2'!I44 ->  | P328: =+'F2'!J44 -> 0
A329: Transmilenio S.A. | B329: Movilidad | C329: =+'F2'!$I$3 -> 0 | D329: =+'F2'!$L$3 -> 0 | E329: 0 | F329: 0 | I329: =+'F2'!C45 -> 0 | J329: =+'F2'!D45 -> 0 | K329: =+'F2'!E45 -> 0 | L329: =+'F2'!F45 -> 0 | M329: =+'F2'!G45 -> 0 | N329: =+'F2'!H45 ->  | O329: =+'F2'!I45 ->  | P329: =+'F2'!J45 -> 0
A330: Transmilenio S.A. | B330: Movilidad | C330: =+'F2'!$I$3 -> 0 | D330: =+'F2'!$L$3 -> 0 | E330: 0 | F330: 0 | I330: =+'F2'!C46 -> 0 | J330: =+'F2'!D46 -> 0 | K330: =+'F2'!E46 -> 0 | L330: =+'F2'!F46 -> 0 | M330: =+'F2'!G46 -> 0 | N330: =+'F2'!H46 ->  | O330: =+'F2'!I46 ->  | P330: =+'F2'!J46 -> 0
A331: Transmilenio S.A. | B331: Movilidad | C331: =+'F2'!$I$3 -> 0 | D331: =+'F2'!$L$3 -> 0 | E331: 0 | F331: 0 | I331: =+'F2'!C47 -> 0 | J331: =+'F2'!D47 -> 0 | K331: =+'F2'!E47 -> 0 | L331: =+'F2'!F47 -> 0 | M331: =+'F2'!G47 -> 0 | N331: =+'F2'!H47 ->  | O331: =+'F2'!I47 ->  | P331: =+'F2'!J47 -> 0
A332: Transmilenio S.A. | B332: Movilidad | C332: =+'F2'!$I$3 -> 0 | D332: =+'F2'!$L$3 -> 0 | E332: 0 | F332: 0 | I332: =+'F2'!C48 -> 0 | J332: =+'F2'!D48 -> 0 | K332: =+'F2'!E48 -> 0 | L332: =+'F2'!F48 -> 0 | M332: =+'F2'!G48 -> 0 | N332: =+'F2'!H48 ->  | O332: =+'F2'!I48 ->  | P332: =+'F2'!J48 -> 0
A333: Transmilenio S.A. | B333: Movilidad | C333: =+'F2'!$I$3 -> 0 | D333: =+'F2'!$L$3 -> 0 | E333: =+'F2'!C52 -> 0 | F333: =+'F2'!J52 -> 0 | I333: =+'F2'!C56 -> 0 | J333: =+'F2'!D56 -> 0 | K333: =+'F2'!E56 -> 0 | L333: =+'F2'!F56 -> 0 | M333: =+'F2'!G56 -> 0 | N333: =+'F2'!H56 ->  | O333: =+'F2'!I56 ->  | P333: =+'F2'!J56 -> 0
A334: Transmilenio S.A. | B334: Movilidad | C334: =+'F2'!$I$3 -> 0 | D334: =+'F2'!$L$3 -> 0 | E334: =+E333 -> 0 | F334: =+F333 -> 0 | I334: =+'F2'!C57 -> 0 | J334: =+'F2'!D57 -> 0 | K334: =+'F2'!E57 -> 0 | L334: =+'F2'!F57 -> 0 | M334: =+'F2'!G57 -> 0 | N334: =+'F2'!H57 ->  | O334: =+'F2'!I57 ->  | P334: =+'F2'!J57 -> 0
A335: Transmilenio S.A. | B335: Movilidad | C335: =+'F2'!$I$3 -> 0 | D335: =+'F2'!$L$3 -> 0 | E335: =+E334 -> 0 | F335: =+F334 -> 0 | I335: =+'F2'!C58 -> 0 | J335: =+'F2'!D58 -> 0 | K335: =+'F2'!E58 -> 0 | L335: =+'F2'!F58 -> 0 | M335: =+'F2'!G58 -> 0 | N335: =+'F2'!H58 ->  | O335: =+'F2'!I58 ->  | P335: =+'F2'!J58 -> 0
A336: Transmilenio S.A. | B336: Movilidad | C336: =+'F2'!$I$3 -> 0 | D336: =+'F2'!$L$3 -> 0 | E336: 0 | F336: 0 | I336: =+'F2'!C59 -> 0 | J336: =+'F2'!D59 -> 0 | K336: =+'F2'!E59 -> 0 | L336: =+'F2'!F59 -> 0 | M336: =+'F2'!G59 -> 0 | N336: =+'F2'!H59 ->  | O336: =+'F2'!I59 ->  | P336: =+'F2'!J59 -> 0
A337: Transmilenio S.A. | B337: Movilidad | C337: =+'F2'!$I$3 -> 0 | D337: =+'F2'!$L$3 -> 0 | E337: 0 | F337: 0 | I337: =+'F2'!C60 -> 0 | J337: =+'F2'!D60 -> 0 | K337: =+'F2'!E60 -> 0 | L337: =+'F2'!F60 -> 0 | M337: =+'F2'!G60 -> 0 | N337: =+'F2'!H60 ->  | O337: =+'F2'!I60 ->  | P337: =+'F2'!J60 -> 0
A338: Transmilenio S.A. | B338: Movilidad | C338: =+'F2'!$I$3 -> 0 | D338: =+'F2'!$L$3 -> 0 | E338: 0 | F338: 0 | I338: =+'F2'!C61 -> 0 | J338: =+'F2'!D61 -> 0 | K338: =+'F2'!E61 -> 0 | L338: =+'F2'!F61 -> 0 | M338: =+'F2'!G61 -> 0 | N338: =+'F2'!H61 ->  | O338: =+'F2'!I61 ->  | P338: =+'F2'!J61 -> 0
A339: Transmilenio S.A. | B339: Movilidad | C339: =+'F2'!$I$3 -> 0 | D339: =+'F2'!$L$3 -> 0 | E339: 0 | F339: 0 | I339: =+'F2'!C62 -> 0 | J339: =+'F2'!D62 -> 0 | K339: =+'F2'!E62 -> 0 | L339: =+'F2'!F62 -> 0 | M339: =+'F2'!G62 -> 0 | N339: =+'F2'!H62 ->  | O339: =+'F2'!I62 ->  | P339: =+'F2'!J62 -> 0
A340: Transmilenio S.A. | B340: Movilidad | C340: =+'F2'!$I$3 -> 0 | D340: =+'F2'!$L$3 -> 0 | E340: 0 | F340: 0 | I340: =+'F2'!C63 -> 0 | J340: =+'F2'!D63 -> 0 | K340: =+'F2'!E63 -> 0 | L340: =+'F2'!F63 -> 0 | M340: =+'F2'!G63 -> 0 | N340: =+'F2'!H63 ->  | O340: =+'F2'!I63 ->  | P340: =+'F2'!J63 -> 0
A341: Transmilenio S.A. | B341: Movilidad | C341: =+'F2'!$I$3 -> 0 | D341: =+'F2'!$L$3 -> 0 | E341: 0 | F341: 0 | I341: =+'F2'!C64 -> 0 | J341: =+'F2'!D64 -> 0 | K341: =+'F2'!E64 -> 0 | L341: =+'F2'!F64 -> 0 | M341: =+'F2'!G64 -> 0 | N341: =+'F2'!H64 ->  | O341: =+'F2'!I64 ->  | P341: =+'F2'!J64 -> 0
A342: Transmilenio S.A. | B342: Movilidad | C342: =+'F2'!$I$3 -> 0 | D342: =+'F2'!$L$3 -> 0 | E342: 0 | F342: 0 | I342: =+'F2'!C65 -> 0 | J342: =+'F2'!D65 -> 0 | K342: =+'F2'!E65 -> 0 | L342: =+'F2'!F65 -> 0 | M342: =+'F2'!G65 -> 0 | N342: =+'F2'!H65 ->  | O342: =+'F2'!I65 ->  | P342: =+'F2'!J65 -> 0
A343: Transmilenio S.A. | B343: Movilidad | C343: =+'F2'!$I$3 -> 0 | D343: =+'F2'!$L$3 -> 0 | E343: 0 | F343: 0 | I343: =+'F2'!C66 -> 0 | J343: =+'F2'!D66 -> 0 | K343: =+'F2'!E66 -> 0 | L343: =+'F2'!F66 -> 0 | M343: =+'F2'!G66 -> 0 | N343: =+'F2'!H66 ->  | O343: =+'F2'!I66 ->  | P343: =+'F2'!J66 -> 0
A344: Transmilenio S.A. | B344: Movilidad | C344: =+'F2'!$I$3 -> 0 | D344: =+'F2'!$L$3 -> 0 | E344: 0 | F344: 0 | I344: =+'F2'!C67 -> 0 | J344: =+'F2'!D67 -> 0 | K344: =+'F2'!E67 -> 0 | L344: =+'F2'!F67 -> 0 | M344: =+'F2'!G67 -> 0 | N344: =+'F2'!H67 ->  | O344: =+'F2'!I67 ->  | P344: =+'F2'!J67 -> 0
A345: Transmilenio S.A. | B345: Movilidad | C345: =+'F2'!$I$3 -> 0 | D345: =+'F2'!$L$3 -> 0 | E345: 0 | F345: 0 | I345: =+'F2'!C68 -> 0 | J345: =+'F2'!D68 -> 0 | K345: =+'F2'!E68 -> 0 | L345: =+'F2'!F68 -> 0 | M345: =+'F2'!G68 -> 0 | N345: =+'F2'!H68 ->  | O345: =+'F2'!I68 ->  | P345: =+'F2'!J68 -> 0
A346: Transmilenio S.A. | B346: Movilidad | C346: =+'F2'!$I$3 -> 0 | D346: =+'F2'!$L$3 -> 0 | E346: 0 | F346: 0 | I346: =+'F2'!C69 -> 0 | J346: =+'F2'!D69 -> 0 | K346: =+'F2'!E69 -> 0 | L346: =+'F2'!F69 -> 0 | M346: =+'F2'!G69 -> 0 | N346: =+'F2'!H69 ->  | O346: =+'F2'!I69 ->  | P346: =+'F2'!J69 -> 0
A347: Transmilenio S.A. | B347: Movilidad | C347: =+'F2'!$I$3 -> 0 | D347: =+'F2'!$L$3 -> 0 | E347: 0 | F347: 0 | I347: =+'F2'!C70 -> 0 | J347: =+'F2'!D70 -> 0 | K347: =+'F2'!E70 -> 0 | L347: =+'F2'!F70 -> 0 | M347: =+'F2'!G70 -> 0 | N347: =+'F2'!H70 ->  | O347: =+'F2'!I70 ->  | P347: =+'F2'!J70 -> 0
A348: Transmilenio S.A. | B348: Movilidad | C348: =+'F2'!$I$3 -> 0 | D348: =+'F2'!$L$3 -> 0 | E348: 0 | F348: 0 | I348: =+'F2'!C71 -> 0 | J348: =+'F2'!D71 -> 0 | K348: =+'F2'!E71 -> 0 | L348: =+'F2'!F71 -> 0 | M348: =+'F2'!G71 -> 0 | N348: =+'F2'!H71 ->  | O348: =+'F2'!I71 ->  | P348: =+'F2'!J71 -> 0
A349: Transmilenio S.A. | B349: Movilidad | C349: =+'F2'!$I$3 -> 0 | D349: =+'F2'!$L$3 -> 0 | E349: =+'F2'!C75 -> 0 | F349: =+'F2'!J75 -> 0 | I349: =+'F2'!C79 -> 0 | J349: =+'F2'!D79 -> 0 | K349: =+'F2'!E79 -> 0 | L349: =+'F2'!F79 -> 0 | M349: =+'F2'!G79 -> 0 | N349: =+'F2'!H79 ->  | O349: =+'F2'!I79 ->  | P349: =+'F2'!J79 -> 0
A350: Transmilenio S.A. | B350: Movilidad | C350: =+'F2'!$I$3 -> 0 | D350: =+'F2'!$L$3 -> 0 | E350: =+E349 -> 0 | F350: =+F349 -> 0 | I350: =+'F2'!C80 -> 0 | J350: =+'F2'!D80 -> 0 | K350: =+'F2'!E80 -> 0 | L350: =+'F2'!F80 -> 0 | M350: =+'F2'!G80 -> 0 | N350: =+'F2'!H80 ->  | O350: =+'F2'!I80 ->  | P350: =+'F2'!J80 -> 0
A351: Transmilenio S.A. | B351: Movilidad | C351: =+'F2'!$I$3 -> 0 | D351: =+'F2'!$L$3 -> 0 | E351: =+E350 -> 0 | F351: =+F350 -> 0 | I351: =+'F2'!C81 -> 0 | J351: =+'F2'!D81 -> 0 | K351: =+'F2'!E81 -> 0 | L351: =+'F2'!F81 -> 0 | M351: =+'F2'!G81 -> 0 | N351: =+'F2'!H81 ->  | O351: =+'F2'!I81 ->  | P351: =+'F2'!J81 -> 0
A352: Transmilenio S.A. | B352: Movilidad | C352: =+'F2'!$I$3 -> 0 | D352: =+'F2'!$L$3 -> 0 | E352: 0 | F352: 0 | I352: =+'F2'!C82 -> 0 | J352: =+'F2'!D82 -> 0 | K352: =+'F2'!E82 -> 0 | L352: =+'F2'!F82 -> 0 | M352: =+'F2'!G82 -> 0 | N352: =+'F2'!H82 ->  | O352: =+'F2'!I82 ->  | P352: =+'F2'!J82 -> 0
A353: Transmilenio S.A. | B353: Movilidad | C353: =+'F2'!$I$3 -> 0 | D353: =+'F2'!$L$3 -> 0 | E353: 0 | F353: 0 | I353: =+'F2'!C83 -> 0 | J353: =+'F2'!D83 -> 0 | K353: =+'F2'!E83 -> 0 | L353: =+'F2'!F83 -> 0 | M353: =+'F2'!G83 -> 0 | N353: =+'F2'!H83 ->  | O353: =+'F2'!I83 ->  | P353: =+'F2'!J83 -> 0
A354: Transmilenio S.A. | B354: Movilidad | C354: =+'F2'!$I$3 -> 0 | D354: =+'F2'!$L$3 -> 0 | E354: 0 | F354: 0 | I354: =+'F2'!C84 -> 0 | J354: =+'F2'!D84 -> 0 | K354: =+'F2'!E84 -> 0 | L354: =+'F2'!F84 -> 0 | M354: =+'F2'!G84 -> 0 | N354: =+'F2'!H84 ->  | O354: =+'F2'!I84 ->  | P354: =+'F2'!J84 -> 0
A355: Transmilenio S.A. | B355: Movilidad | C355: =+'F2'!$I$3 -> 0 | D355: =+'F2'!$L$3 -> 0 | E355: 0 | F355: 0 | I355: =+'F2'!C85 -> 0 | J355: =+'F2'!D85 -> 0 | K355: =+'F2'!E85 -> 0 | L355: =+'F2'!F85 -> 0 | M355: =+'F2'!G85 -> 0 | N355: =+'F2'!H85 ->  | O355: =+'F2'!I85 ->  | P355: =+'F2'!J85 -> 0
A356: Transmilenio S.A. | B356: Movilidad | C356: =+'F2'!$I$3 -> 0 | D356: =+'F2'!$L$3 -> 0 | E356: 0 | F356: 0 | I356: =+'F2'!C86 -> 0 | J356: =+'F2'!D86 -> 0 | K356: =+'F2'!E86 -> 0 | L356: =+'F2'!F86 -> 0 | M356: =+'F2'!G86 -> 0 | N356: =+'F2'!H86 ->  | O356: =+'F2'!I86 ->  | P356: =+'F2'!J86 -> 0
A357: Transmilenio S.A. | B357: Movilidad | C357: =+'F2'!$I$3 -> 0 | D357: =+'F2'!$L$3 -> 0 | E357: 0 | F357: 0 | I357: =+'F2'!C87 -> 0 | J357: =+'F2'!D87 -> 0 | K357: =+'F2'!E87 -> 0 | L357: =+'F2'!F87 -> 0 | M357: =+'F2'!G87 -> 0 | N357: =+'F2'!H87 ->  | O357: =+'F2'!I87 ->  | P357: =+'F2'!J87 -> 0
A358: Transmilenio S.A. | B358: Movilidad | C358: =+'F2'!$I$3 -> 0 | D358: =+'F2'!$L$3 -> 0 | E358: 0 | F358: 0 | I358: =+'F2'!C88 -> 0 | J358: =+'F2'!D88 -> 0 | K358: =+'F2'!E88 -> 0 | L358: =+'F2'!F88 -> 0 | M358: =+'F2'!G88 -> 0 | N358: =+'F2'!H88 ->  | O358: =+'F2'!I88 ->  | P358: =+'F2'!J88 -> 0
A359: Transmilenio S.A. | B359: Movilidad | C359: =+'F2'!$I$3 -> 0 | D359: =+'F2'!$L$3 -> 0 | E359: 0 | F359: 0 | I359: =+'F2'!C89 -> 0 | J359: =+'F2'!D89 -> 0 | K359: =+'F2'!E89 -> 0 | L359: =+'F2'!F89 -> 0 | M359: =+'F2'!G89 -> 0 | N359: =+'F2'!H89 ->  | O359: =+'F2'!I89 ->  | P359: =+'F2'!J89 -> 0
A360: Transmilenio S.A. | B360: Movilidad | C360: =+'F2'!$I$3 -> 0 | D360: =+'F2'!$L$3 -> 0 | E360: 0 | F360: 0 | I360: =+'F2'!C90 -> 0 | J360: =+'F2'!D90 -> 0 | K360: =+'F2'!E90 -> 0 | L360: =+'F2'!F90 -> 0 | M360: =+'F2'!G90 -> 0 | N360: =+'F2'!H90 ->  | O360: =+'F2'!I90 ->  | P360: =+'F2'!J90 -> 0
A361: Transmilenio S.A. | B361: Movilidad | C361: =+'F2'!$I$3 -> 0 | D361: =+'F2'!$L$3 -> 0 | E361: 0 | F361: 0 | I361: =+'F2'!C91 -> 0 | J361: =+'F2'!D91 -> 0 | K361: =+'F2'!E91 -> 0 | L361: =+'F2'!F91 -> 0 | M361: =+'F2'!G91 -> 0 | N361: =+'F2'!H91 ->  | O361: =+'F2'!I91 ->  | P361: =+'F2'!J91 -> 0
A362: Transmilenio S.A. | B362: Movilidad | C362: =+'F2'!$I$3 -> 0 | D362: =+'F2'!$L$3 -> 0 | E362: 0 | F362: 0 | I362: =+'F2'!C92 -> 0 | J362: =+'F2'!D92 -> 0 | K362: =+'F2'!E92 -> 0 | L362: =+'F2'!F92 -> 0 | M362: =+'F2'!G92 -> 0 | N362: =+'F2'!H92 ->  | O362: =+'F2'!I92 ->  | P362: =+'F2'!J92 -> 0
A363: Transmilenio S.A. | B363: Movilidad | C363: =+'F2'!$I$3 -> 0 | D363: =+'F2'!$L$3 -> 0 | E363: 0 | F363: 0 | I363: =+'F2'!C93 -> 0 | J363: =+'F2'!D93 -> 0 | K363: =+'F2'!E93 -> 0 | L363: =+'F2'!F93 -> 0 | M363: =+'F2'!G93 -> 0 | N363: =+'F2'!H93 ->  | O363: =+'F2'!I93 ->  | P363: =+'F2'!J93 -> 0
A364: Transmilenio S.A. | B364: Movilidad | C364: =+'F2'!$I$3 -> 0 | D364: =+'F2'!$L$3 -> 0 | E364: 0 | F364: 0 | I364: =+'F2'!C94 -> 0 | J364: =+'F2'!D94 -> 0 | K364: =+'F2'!E94 -> 0 | L364: =+'F2'!F94 -> 0 | M364: =+'F2'!G94 -> 0 | N364: =+'F2'!H94 ->  | O364: =+'F2'!I94 ->  | P364: =+'F2'!J94 -> 0
A365: Transmilenio S.A. | B365: Movilidad | C365: =+'F2'!$I$3 -> 0 | D365: =+'F2'!$L$3 -> 0 | E365: =+'F2'!C98 -> 0 | F365: =+'F2'!J98 -> 0 | I365: =+'F2'!C102 -> 0 | J365: =+'F2'!D102 -> 0 | K365: =+'F2'!E102 -> 0 | L365: =+'F2'!F102 -> 0 | M365: =+'F2'!G102 -> 0 | N365: =+'F2'!H102 ->  | O365: =+'F2'!I102 ->  | P365: =+'F2'!J102 -> 0
A366: Transmilenio S.A. | B366: Movilidad | C366: =+'F2'!$I$3 -> 0 | D366: =+'F2'!$L$3 -> 0 | E366: =+E365 -> 0 | F366: =+F365 -> 0 | I366: =+'F2'!C103 -> 0 | J366: =+'F2'!D103 -> 0 | K366: =+'F2'!E103 -> 0 | L366: =+'F2'!F103 -> 0 | M366: =+'F2'!G103 -> 0 | N366: =+'F2'!H103 ->  | O366: =+'F2'!I103 ->  | P366: =+'F2'!J103 -> 0
... 62 more rows

Sheet Hoja1 (hidden)
